BODY,BODY NAME,SUPPLIER CODE,SUPPLIER NAME,TRANSACTION NUMBER,INVOICE DATE,THEIR REF,NARR1,PAID DATE,VAT AMOUNT,EXCLUSIVE AMOUNT,INCLUSIVE AMOUNT,EXPENSE AREA,EXPENSE TYPE,EXPENSE CODE
http://statistics.data.gov.uk/id/local-authority/12UE,Huntingdonshire District Council,201339.00,TOTAL PRODUCTIONS THEATRES UK,23706,09/10/2019,1142019,BURGESS HALL 20/09/19,10/10/2019,-17.5,-87.5,-105,One Leisure Support Team,"Advertising, Publicity And Marketing",62005
http://statistics.data.gov.uk/id/local-authority/12UE,Huntingdonshire District Council,200686.00,RIGHT MARKET LTD RIGHT MARKET LTD,23415,01/08/2019,1214,olsi subscription,03/10/2019,522,2610,3132,One Leisure Support Team,"Advertising, Publicity And Marketing",62005
http://statistics.data.gov.uk/id/local-authority/12UE,Huntingdonshire District Council,200198.00,CLANPRESS KING'S LYNN LTD CLANPRESS KING'S LYNN LTD,25023,15/10/2019,44339,HALF TERM PROGRAMMES,08/11/2019,0,2246,2246,One Leisure Support Team,"Advertising, Publicity And Marketing",62005
http://statistics.data.gov.uk/id/local-authority/12UE,Huntingdonshire District Council,200058.00,ARCHANT HERTS AND CAMBS ARCHANT HERTS AND CAMBS,24418,05/10/2019,83040817,BURGESS HALL,31/10/2019,377.51,1887.55,2265.06,One Leisure Support Team,"Advertising, Publicity And Marketing",62005
http://statistics.data.gov.uk/id/local-authority/12UE,Huntingdonshire District Council,200103.00,BIGPRINTING BIGPRINTING,26935,03/12/2019,1712812,OL ST IVES,19/12/2019,340.8,1704,2044.8,One Leisure Support Team,"Advertising, Publicity And Marketing",62005
http://statistics.data.gov.uk/id/local-authority/12UE,Huntingdonshire District Council,200344.00,GLOBAL RADIO SERVICES LTD GLOBAL RADIO SERVICES LTD,25298,31/10/2019,1209647,OL HUNTINGDON,28/11/2019,336.69,1683.47,2020.16,One Leisure Support Team,"Advertising, Publicity And Marketing",62005
http://statistics.data.gov.uk/id/local-authority/12UE,Huntingdonshire District Council,200058.00,ARCHANT HERTS AND CAMBS ARCHANT HERTS AND CAMBS,24754,07/09/2019,83031069A,BURGESS HALL,31/10/2019,330.01,1650.04,1980.05,One Leisure Support Team,"Advertising, Publicity And Marketing",62005
http://statistics.data.gov.uk/id/local-authority/12UE,Huntingdonshire District Council,200058.00,ARCHANT HERTS AND CAMBS ARCHANT HERTS AND CAMBS,25884,09/11/2019,83054109,BURGESS HALL,05/12/2019,330.01,1650.04,1980.05,One Leisure Support Team,"Advertising, Publicity And Marketing",62005
http://statistics.data.gov.uk/id/local-authority/12UE,Huntingdonshire District Council,200344.00,GLOBAL RADIO SERVICES LTD GLOBAL RADIO SERVICES LTD,24065,30/09/2019,1205821,OL HUNTINGDON,24/10/2019,278.14,1390.71,1668.85,One Leisure Support Team,"Advertising, Publicity And Marketing",62005
http://statistics.data.gov.uk/id/local-authority/12UE,Huntingdonshire District Council,200344.00,GLOBAL RADIO SERVICES LTD GLOBAL RADIO SERVICES LTD,23414,31/08/2019,1201795,olsi adverts,03/10/2019,260.86,1304.28,1565.14,One Leisure Support Team,"Advertising, Publicity And Marketing",62005
http://statistics.data.gov.uk/id/local-authority/12UE,Huntingdonshire District Council,200103.00,BIGPRINTING BIGPRINTING,26936,03/12/2019,1712813,OL ST IVES,19/12/2019,150,750,900,One Leisure Support Team,"Advertising, Publicity And Marketing",62005
http://statistics.data.gov.uk/id/local-authority/12UE,Huntingdonshire District Council,200344.00,GLOBAL RADIO SERVICES LTD GLOBAL RADIO SERVICES LTD,25427,31/10/2019,1209648,OL HUNTINGDON,28/11/2019,135.47,677.34,812.81,One Leisure Support Team,"Advertising, Publicity And Marketing",62005
http://statistics.data.gov.uk/id/local-authority/12UE,Huntingdonshire District Council,200344.00,GLOBAL RADIO SERVICES LTD GLOBAL RADIO SERVICES LTD,23411,31/08/2019,1201796,olh sponsorship,03/10/2019,124.25,621.24,745.49,One Leisure Support Team,"Advertising, Publicity And Marketing",62005
http://statistics.data.gov.uk/id/local-authority/12UE,Huntingdonshire District Council,200344.00,GLOBAL RADIO SERVICES LTD GLOBAL RADIO SERVICES LTD,26939,30/11/2019,1213652,OL ST IVES,19/12/2019,124.09,620.46,744.55,One Leisure Support Team,"Advertising, Publicity And Marketing",62005
http://statistics.data.gov.uk/id/local-authority/12UE,Huntingdonshire District Council,200344.00,GLOBAL RADIO SERVICES LTD GLOBAL RADIO SERVICES LTD,24280,30/09/2019,1205822,OL HUNTINGDON,24/10/2019,118.1,590.52,708.62,One Leisure Support Team,"Advertising, Publicity And Marketing",62005
http://statistics.data.gov.uk/id/local-authority/12UE,Huntingdonshire District Council,200198.00,CLANPRESS KING'S LYNN LTD CLANPRESS KING'S LYNN LTD,24793,30/09/2019,44295,ACTIVITY PACKS,31/10/2019,116.8,584,700.8,One Leisure Support Team,"Advertising, Publicity And Marketing",62005
http://statistics.data.gov.uk/id/local-authority/12UE,Huntingdonshire District Council,201007.00,PRIMARY TIMES IN CAMBRIDGESHIRE,25424,15/10/2019,31940,OL ST IVES,08/11/2019,80,400,480,One Leisure Support Team,"Advertising, Publicity And Marketing",62005
http://statistics.data.gov.uk/id/local-authority/12UE,Huntingdonshire District Council,201007.00,PRIMARY TIMES IN CAMBRIDGESHIRE,26937,25/11/2019,32144,OL ST IVES,19/12/2019,80,400,480,One Leisure Support Team,"Advertising, Publicity And Marketing",62005
http://statistics.data.gov.uk/id/local-authority/12UE,Huntingdonshire District Council,200021.00,ACTIVE IN TIME LTD ACTIVE IN TIME LTD,24400,02/10/2019,1800250,LICENCE 01/08-30/10/19,24/10/2019,78,390,468,One Leisure Support Team,"Advertising, Publicity And Marketing",62005
http://statistics.data.gov.uk/id/local-authority/12UE,Huntingdonshire District Council,200198.00,CLANPRESS KING'S LYNN LTD CLANPRESS KING'S LYNN LTD,26576,28/11/2019,44517,MEMBERSHIP LEAFLETS,19/12/2019,0,382,382,One Leisure Support Team,"Advertising, Publicity And Marketing",62005
http://statistics.data.gov.uk/id/local-authority/12UE,Huntingdonshire District Council,200058.00,ARCHANT HERTS AND CAMBS ARCHANT HERTS AND CAMBS,26934,30/11/2019,83060467,HUNTS POST 27/11/19,19/12/2019,56,280,336,One Leisure Support Team,"Advertising, Publicity And Marketing",62005
http://statistics.data.gov.uk/id/local-authority/12UE,Huntingdonshire District Council,202035.00,THE FENS MAGAZINE,26322,24/11/2019,INV-1844,ADVERTISING,28/11/2019,108,540,648,OLSI - Site & Centre Management,"Advertising, Publicity And Marketing",62005
http://statistics.data.gov.uk/id/local-authority/12UE,Huntingdonshire District Council,200021.00,ACTIVE IN TIME LTD ACTIVE IN TIME LTD,26303,22/11/2019,1800270,LICENCE FEE,19/12/2019,78,390,468,OLSI - Site & Centre Management,"Advertising, Publicity And Marketing",62005
http://statistics.data.gov.uk/id/local-authority/12UE,Huntingdonshire District Council,202035.00,THE FENS MAGAZINE,26195,25/09/2019,INV-1652,THE FENS RAMSEY OCT 19,28/11/2019,72,360,432,OLSI - Site & Centre Management,"Advertising, Publicity And Marketing",62005
http://statistics.data.gov.uk/id/local-authority/12UE,Huntingdonshire District Council,202035.00,THE FENS MAGAZINE,26196,23/10/2019,INV-1727,THE FENS RAMSEY NOV 19,28/11/2019,72,360,432,OLSI - Site & Centre Management,"Advertising, Publicity And Marketing",62005
http://statistics.data.gov.uk/id/local-authority/12UE,Huntingdonshire District Council,202082.00,LOCAL BUZZ MARKETING LTD,26302,04/11/2019,INV-0949,ADVERTISING,28/11/2019,66,330,396,OLSI - Site & Centre Management,"Advertising, Publicity And Marketing",62005
http://statistics.data.gov.uk/id/local-authority/12UE,Huntingdonshire District Council,202101.00,TRAINING SHED FAMILY LTD,26641,20/11/2019,INV-0013,STAFF RECRUITMENT/ TRAINING,05/12/2019,500,2500,3000,OLSIO - Training Shed,"Advertising, Publicity And Marketing",62005
http://statistics.data.gov.uk/id/local-authority/12UE,Huntingdonshire District Council,201138.00,BORNEY UK LTD,24990,24/10/2019,49785,PRINTING,21/11/2019,155.6,778,933.6,Transformation Programme,"Advertising, Publicity And Marketing",62005
http://statistics.data.gov.uk/id/local-authority/12UE,Huntingdonshire District Council,200613.00,PETERBOROUGH CITY COUNCIL PETERBOROUGH CITY COUNCIL,23028,16/09/2019,156407,ADVERTISING,10/10/2019,316.8,1584,1900.8,BBfA New Programme Funding,"Advertising, Publicity And Marketing",62005
http://statistics.data.gov.uk/id/local-authority/12UE,Huntingdonshire District Council,201291.00,MORGARD COURT LTD T/A GARDNERS,24158,07/10/2019,154445,BANNERS DRIVER,31/10/2019,238,1190,1428,Recycling Collections,"Advertising, Publicity And Marketing",62005
http://statistics.data.gov.uk/id/local-authority/12UE,Huntingdonshire District Council,201328.00,HEGARTY LLP SOLICITORS,26019,12/09/2019,301069,REDACTED,21/11/2019,0,55,55,Bridge Place Car Park Const,Agency Staff,60011
http://statistics.data.gov.uk/id/local-authority/12UE,Huntingdonshire District Council,201328.00,HEGARTY LLP SOLICITORS,26019,12/09/2019,301069,REDACTED,21/11/2019,1282.51,6412.55,7695.06,Bridge Place Car Park Const,Agency Staff,60011
http://statistics.data.gov.uk/id/local-authority/12UE,Huntingdonshire District Council,200719.00,SHOW & EVENT SECURITY SHOW & EVENT SECURITY,23727,30/09/2019,26453,BURGESS HALL 28/09/19,17/10/2019,87.5,437.5,525,OLSI - Burgess Hall,Agency Staff,60011
http://statistics.data.gov.uk/id/local-authority/12UE,Huntingdonshire District Council,200746.00,STARLITE ROADSHOW STARLITE ROADSHOW,25516,02/11/2019,INV-000002,BURGESS HALL 02/11/19,13/11/2019,0,430,430,OLSI - Burgess Hall,Agency Staff,60011
http://statistics.data.gov.uk/id/local-authority/12UE,Huntingdonshire District Council,200746.00,STARLITE ROADSHOW STARLITE ROADSHOW,27452,15/12/2019,INV-000005,BURGESS HALL,19/12/2019,0,304.5,304.5,OLSI - Burgess Hall,Agency Staff,60011
http://statistics.data.gov.uk/id/local-authority/12UE,Huntingdonshire District Council,200746.00,STARLITE ROADSHOW STARLITE ROADSHOW,27451,15/12/2019,INV-000006,BURGESS HALL,19/12/2019,0,294,294,OLSI - Burgess Hall,Agency Staff,60011
http://statistics.data.gov.uk/id/local-authority/12UE,Huntingdonshire District Council,200746.00,STARLITE ROADSHOW STARLITE ROADSHOW,27067,08/12/2019,INV-000003,BURGESS HALL,19/12/2019,0,273,273,OLSI - Burgess Hall,Agency Staff,60011
http://statistics.data.gov.uk/id/local-authority/12UE,Huntingdonshire District Council,200746.00,STARLITE ROADSHOW STARLITE ROADSHOW,27068,08/12/2019,INV-000004,BURGESS HALL,19/12/2019,0,273,273,OLSI - Burgess Hall,Agency Staff,60011
http://statistics.data.gov.uk/id/local-authority/12UE,Huntingdonshire District Council,200719.00,SHOW & EVENT SECURITY SHOW & EVENT SECURITY,26152,31/10/2019,26539,BURGESS HALL 04/10/19,28/11/2019,51.3,256.5,307.8,OLSI - Burgess Hall,Agency Staff,60011
http://statistics.data.gov.uk/id/local-authority/12UE,Huntingdonshire District Council,200918.00,1ST CHOICE RECRUITMENT,25733,09/11/2019,4000008383,REDACTED,05/12/2019,52.2,260.99,313.19,Parks & Open Spaces,Agency Staff,60011
http://statistics.data.gov.uk/id/local-authority/12UE,Huntingdonshire District Council,200918.00,1ST CHOICE RECRUITMENT,24257,05/10/2019,4000008239,REDACTED,08/11/2019,51.5,257.52,309.02,Parks & Open Spaces,Agency Staff,60011
http://statistics.data.gov.uk/id/local-authority/12UE,Huntingdonshire District Council,200918.00,1ST CHOICE RECRUITMENT,25138,19/10/2019,4000008303,REDACTED,13/11/2019,51.5,257.52,309.02,Parks & Open Spaces,Agency Staff,60011
http://statistics.data.gov.uk/id/local-authority/12UE,Huntingdonshire District Council,200918.00,1ST CHOICE RECRUITMENT,25234,26/10/2019,4000008330,REDACTED,21/11/2019,51.5,257.52,309.02,Parks & Open Spaces,Agency Staff,60011
http://statistics.data.gov.uk/id/local-authority/12UE,Huntingdonshire District Council,200918.00,1ST CHOICE RECRUITMENT,26761,30/11/2019,4000008456,REDACTED,19/12/2019,51.5,257.52,309.02,Parks & Open Spaces,Agency Staff,60011
http://statistics.data.gov.uk/id/local-authority/12UE,Huntingdonshire District Council,200918.00,1ST CHOICE RECRUITMENT,27230,16/11/2019,4000008408,REDACTED,19/12/2019,51.5,257.52,309.02,Parks & Open Spaces,Agency Staff,60011
http://statistics.data.gov.uk/id/local-authority/12UE,Huntingdonshire District Council,200918.00,1ST CHOICE RECRUITMENT,23808,28/09/2019,4000005207,REDACTED,24/10/2019,50.11,250.56,300.67,Parks & Open Spaces,Agency Staff,60011
http://statistics.data.gov.uk/id/local-authority/12UE,Huntingdonshire District Council,200918.00,1ST CHOICE RECRUITMENT,24255,28/09/2019,4000008207,REDACTED,24/10/2019,50.11,250.56,300.67,Parks & Open Spaces,Agency Staff,60011
http://statistics.data.gov.uk/id/local-authority/12UE,Huntingdonshire District Council,200918.00,1ST CHOICE RECRUITMENT,24482,12/10/2019,4000008272,REDACTED,08/11/2019,50.11,250.56,300.67,Parks & Open Spaces,Agency Staff,60011
http://statistics.data.gov.uk/id/local-authority/12UE,Huntingdonshire District Council,200918.00,1ST CHOICE RECRUITMENT,25587,02/11/2019,4000008358,REDACTED,28/11/2019,50.11,250.56,300.67,Parks & Open Spaces,Agency Staff,60011
http://statistics.data.gov.uk/id/local-authority/12UE,Huntingdonshire District Council,200918.00,1ST CHOICE RECRUITMENT,27231,23/11/2019,4000008432,REDACTED,19/12/2019,29.93,149.63,179.56,Parks & Open Spaces,Agency Staff,60011
http://statistics.data.gov.uk/id/local-authority/12UE,Huntingdonshire District Council,200918.00,1ST CHOICE RECRUITMENT,23744,21/09/2019,4000008177,REDACTED,17/10/2019,27.49,137.45,164.94,Parks & Open Spaces,Agency Staff,60011
http://statistics.data.gov.uk/id/local-authority/12UE,Huntingdonshire District Council,200297.00,FIRST RECRUITMENT GROUP LTD FIRST RECRUITMENT GROUP LTD,27579,20/11/2019,364087,REDACTED,19/12/2019,152.64,763.2,915.84,Cctv Shared Service Hosting,Agency Staff,60011
http://statistics.data.gov.uk/id/local-authority/12UE,Huntingdonshire District Council,200297.00,FIRST RECRUITMENT GROUP LTD FIRST RECRUITMENT GROUP LTD,27534,27/11/2019,364699,REDACTED,19/12/2019,140.01,700.04,840.05,Cctv Shared Service Hosting,Agency Staff,60011
http://statistics.data.gov.uk/id/local-authority/12UE,Huntingdonshire District Council,200297.00,FIRST RECRUITMENT GROUP LTD FIRST RECRUITMENT GROUP LTD,25584,30/10/2019,362262,REDACTED,21/11/2019,44.48,222.38,266.86,Cctv Shared Service Hosting,Agency Staff,60011
http://statistics.data.gov.uk/id/local-authority/12UE,Huntingdonshire District Council,200297.00,FIRST RECRUITMENT GROUP LTD FIRST RECRUITMENT GROUP LTD,25584,30/10/2019,362262,REDACTED,21/11/2019,31.84,159.22,191.06,Cctv Shared Service Hosting,Agency Staff,60011
http://statistics.data.gov.uk/id/local-authority/12UE,Huntingdonshire District Council,200297.00,FIRST RECRUITMENT GROUP LTD FIRST RECRUITMENT GROUP LTD,25584,30/10/2019,362262,REDACTED,21/11/2019,38.16,190.8,228.96,Cctv Shared Service Hosting,Agency Staff,60011
http://statistics.data.gov.uk/id/local-authority/12UE,Huntingdonshire District Council,200297.00,FIRST RECRUITMENT GROUP LTD FIRST RECRUITMENT GROUP LTD,26189,13/11/2019,363484,REDACTED,05/12/2019,105.01,525.03,630.04,Cctv Shared Service Hosting,Agency Staff,60011
http://statistics.data.gov.uk/id/local-authority/12UE,Huntingdonshire District Council,200297.00,FIRST RECRUITMENT GROUP LTD FIRST RECRUITMENT GROUP LTD,27575,04/12/2019,365326,REDACTED,19/12/2019,105.01,525.03,630.04,Cctv Shared Service Hosting,Agency Staff,60011
http://statistics.data.gov.uk/id/local-authority/12UE,Huntingdonshire District Council,200297.00,FIRST RECRUITMENT GROUP LTD FIRST RECRUITMENT GROUP LTD,25762,06/11/2019,362800,REDACTED,05/12/2019,50.86,254.29,305.15,Cctv Shared Service Hosting,Agency Staff,60011
http://statistics.data.gov.uk/id/local-authority/12UE,Huntingdonshire District Council,200297.00,FIRST RECRUITMENT GROUP LTD FIRST RECRUITMENT GROUP LTD,25762,06/11/2019,362800,REDACTED,05/12/2019,35,175.01,210.01,Cctv Shared Service Hosting,Agency Staff,60011
http://statistics.data.gov.uk/id/local-authority/12UE,Huntingdonshire District Council,200297.00,FIRST RECRUITMENT GROUP LTD FIRST RECRUITMENT GROUP LTD,24121,25/09/2019,359025,REDACTED,17/10/2019,76.32,381.6,457.92,Cctv Shared Service Hosting,Agency Staff,60011
http://statistics.data.gov.uk/id/local-authority/12UE,Huntingdonshire District Council,200297.00,FIRST RECRUITMENT GROUP LTD FIRST RECRUITMENT GROUP LTD,25181,23/10/2019,361658,REDACTED,13/11/2019,76.32,381.6,457.92,Cctv Shared Service Hosting,Agency Staff,60011
http://statistics.data.gov.uk/id/local-authority/12UE,Huntingdonshire District Council,200297.00,FIRST RECRUITMENT GROUP LTD FIRST RECRUITMENT GROUP LTD,26187,13/11/2019,363486,REDACTED,05/12/2019,76.32,381.6,457.92,Cctv Shared Service Hosting,Agency Staff,60011
http://statistics.data.gov.uk/id/local-authority/12UE,Huntingdonshire District Council,200297.00,FIRST RECRUITMENT GROUP LTD FIRST RECRUITMENT GROUP LTD,25528,16/10/2019,361039,REDACTED,13/11/2019,70,350.02,420.02,Cctv Shared Service Hosting,Agency Staff,60011
http://statistics.data.gov.uk/id/local-authority/12UE,Huntingdonshire District Council,200297.00,FIRST RECRUITMENT GROUP LTD FIRST RECRUITMENT GROUP LTD,25725,30/10/2019,362260,REDACTED,21/11/2019,35,175.01,210.01,Cctv Shared Service Hosting,Agency Staff,60011
http://statistics.data.gov.uk/id/local-authority/12UE,Huntingdonshire District Council,200297.00,FIRST RECRUITMENT GROUP LTD FIRST RECRUITMENT GROUP LTD,25725,30/10/2019,362260,REDACTED,21/11/2019,35,175.01,210.01,Cctv Shared Service Hosting,Agency Staff,60011
http://statistics.data.gov.uk/id/local-authority/12UE,Huntingdonshire District Council,200297.00,FIRST RECRUITMENT GROUP LTD FIRST RECRUITMENT GROUP LTD,26471,06/11/2019,362798,REDACTED,05/12/2019,70,350.02,420.02,Cctv Shared Service Hosting,Agency Staff,60011
http://statistics.data.gov.uk/id/local-authority/12UE,Huntingdonshire District Council,200297.00,FIRST RECRUITMENT GROUP LTD FIRST RECRUITMENT GROUP LTD,27576,04/12/2019,365328,REDACTED,19/12/2019,69.96,349.8,419.76,Cctv Shared Service Hosting,Agency Staff,60011
http://statistics.data.gov.uk/id/local-authority/12UE,Huntingdonshire District Council,200297.00,FIRST RECRUITMENT GROUP LTD FIRST RECRUITMENT GROUP LTD,27554,27/11/2019,9135,REDACTED,19/12/2019,-57.24,-286.2,-343.44,Cctv Shared Service Hosting,Agency Staff,60011
http://statistics.data.gov.uk/id/local-authority/12UE,Huntingdonshire District Council,200827.00,VIVID RESOURCING LIMITED VIVID RESOURCING LIMITED,26312,14/11/2019,41465,REDACTED,12/12/2019,333,1665,1998,Food Safety General,Agency Staff,60011
http://statistics.data.gov.uk/id/local-authority/12UE,Huntingdonshire District Council,200827.00,VIVID RESOURCING LIMITED VIVID RESOURCING LIMITED,26313,21/11/2019,41620,REDACTED,19/12/2019,333,1665,1998,Food Safety General,Agency Staff,60011
http://statistics.data.gov.uk/id/local-authority/12UE,Huntingdonshire District Council,200827.00,VIVID RESOURCING LIMITED VIVID RESOURCING LIMITED,26431,07/11/2019,41264,REDACTED,05/12/2019,333,1665,1998,Food Safety General,Agency Staff,60011
http://statistics.data.gov.uk/id/local-authority/12UE,Huntingdonshire District Council,200827.00,VIVID RESOURCING LIMITED VIVID RESOURCING LIMITED,26965,28/11/2019,41852,REDACTED,19/12/2019,333,1665,1998,Food Safety General,Agency Staff,60011
http://statistics.data.gov.uk/id/local-authority/12UE,Huntingdonshire District Council,200827.00,VIVID RESOURCING LIMITED VIVID RESOURCING LIMITED,27547,31/10/2019,41051,REDACTED,19/12/2019,209.97,1049.85,1259.82,Food Safety General,Agency Staff,60011
http://statistics.data.gov.uk/id/local-authority/12UE,Huntingdonshire District Council,200827.00,VIVID RESOURCING LIMITED VIVID RESOURCING LIMITED,27547,31/10/2019,41051,REDACTED,19/12/2019,44.26,221.28,265.54,Food Safety General,Agency Staff,60011
http://statistics.data.gov.uk/id/local-authority/12UE,Huntingdonshire District Council,200827.00,VIVID RESOURCING LIMITED VIVID RESOURCING LIMITED,27414,08/11/2019,41370,REDACTED,19/12/2019,124.47,622.35,746.82,Food Safety General,Agency Staff,60011
http://statistics.data.gov.uk/id/local-authority/12UE,Huntingdonshire District Council,200292.00,FENNERS CHAMBERS FENNERS CHAMBERS,26443,25/10/2019,387775,LICENSING SUB-COMMITTEE LEGAL ADVISOR,28/11/2019,170,850,1020,Licensing Common Costs,Agency Staff,60011
http://statistics.data.gov.uk/id/local-authority/12UE,Huntingdonshire District Council,200743.00,STAFFLINE GROUP STAFFLINE GROUP,23483,13/09/2019,34724,OPS DRY RECYCLING,10/10/2019,498.18,2490.88,2989.06,Recycling Collections,Agency Staff,60011
http://statistics.data.gov.uk/id/local-authority/12UE,Huntingdonshire District Council,200743.00,STAFFLINE GROUP STAFFLINE GROUP,25706,27/09/2019,37060,DRY RECYCLING W/C 22/09/19,13/11/2019,450.55,2252.76,2703.31,Recycling Collections,Agency Staff,60011
http://statistics.data.gov.uk/id/local-authority/12UE,Huntingdonshire District Council,200743.00,STAFFLINE GROUP STAFFLINE GROUP,26506,15/11/2019,45017,DRY RECYCLING W/C 10/11/19,12/12/2019,445.56,2227.79,2673.35,Recycling Collections,Agency Staff,60011
http://statistics.data.gov.uk/id/local-authority/12UE,Huntingdonshire District Council,201114.00,XP RECRUITMENT LTD,23302,14/09/2019,8491,OPS STAFF,10/10/2019,384.35,1921.75,2306.1,Recycling Collections,Agency Staff,60011
http://statistics.data.gov.uk/id/local-authority/12UE,Huntingdonshire District Council,200743.00,STAFFLINE GROUP STAFFLINE GROUP,22710,06/09/2019,33530,DRY RECYCLING W/C 01/09/19,03/10/2019,388.15,1940.75,2328.9,Recycling Collections,Agency Staff,60011
http://statistics.data.gov.uk/id/local-authority/12UE,Huntingdonshire District Council,201114.00,XP RECRUITMENT LTD,25937,13/11/2019,8781,WAREHOUSE W/E 09/11/19,05/12/2019,372.21,1861.05,2233.26,Recycling Collections,Agency Staff,60011
http://statistics.data.gov.uk/id/local-authority/12UE,Huntingdonshire District Council,200743.00,STAFFLINE GROUP STAFFLINE GROUP,23553,20/09/2019,35896,ops staff,17/10/2019,361.07,1805.36,2166.43,Recycling Collections,Agency Staff,60011
http://statistics.data.gov.uk/id/local-authority/12UE,Huntingdonshire District Council,200743.00,STAFFLINE GROUP STAFFLINE GROUP,25704,04/10/2019,38237,DRY RECYCLING W/C 29/09/19,13/11/2019,342.04,1710.21,2052.25,Recycling Collections,Agency Staff,60011
http://statistics.data.gov.uk/id/local-authority/12UE,Huntingdonshire District Council,200743.00,STAFFLINE GROUP STAFFLINE GROUP,25933,08/11/2019,43925,DRY RECYCLING W/C 03/11/19,05/12/2019,340.42,1702.11,2042.53,Recycling Collections,Agency Staff,60011
http://statistics.data.gov.uk/id/local-authority/12UE,Huntingdonshire District Council,200743.00,STAFFLINE GROUP STAFFLINE GROUP,26597,22/11/2019,46143,DRY RECYCLING W/C 17/11/19,19/12/2019,314.47,1572.33,1886.8,Recycling Collections,Agency Staff,60011
http://statistics.data.gov.uk/id/local-authority/12UE,Huntingdonshire District Council,201114.00,XP RECRUITMENT LTD,26598,27/11/2019,8869,WAREHOUSE W/E 23/11/19,19/12/2019,290.25,1451.25,1741.5,Recycling Collections,Agency Staff,60011
http://statistics.data.gov.uk/id/local-authority/12UE,Huntingdonshire District Council,200743.00,STAFFLINE GROUP STAFFLINE GROUP,24935,18/10/2019,40562,DRY RECYCLING W/C 13/10/19,13/11/2019,276.39,1381.93,1658.32,Recycling Collections,Agency Staff,60011
http://statistics.data.gov.uk/id/local-authority/12UE,Huntingdonshire District Council,200743.00,STAFFLINE GROUP STAFFLINE GROUP,25572,01/11/2019,42826,DRY RECYCLING W/C 27/10/19,28/11/2019,260.94,1304.69,1565.63,Recycling Collections,Agency Staff,60011
http://statistics.data.gov.uk/id/local-authority/12UE,Huntingdonshire District Council,200743.00,STAFFLINE GROUP STAFFLINE GROUP,27240,29/11/2019,47247,DRY RECYCLING W/C 24/11/19,19/12/2019,240.56,1202.78,1443.34,Recycling Collections,Agency Staff,60011
http://statistics.data.gov.uk/id/local-authority/12UE,Huntingdonshire District Council,200743.00,STAFFLINE GROUP STAFFLINE GROUP,25295,25/10/2019,41693,DRY RECYCLING W/C 20/10/19,21/11/2019,176.64,883.2,1059.84,Recycling Collections,Agency Staff,60011
http://statistics.data.gov.uk/id/local-authority/12UE,Huntingdonshire District Council,200743.00,STAFFLINE GROUP STAFFLINE GROUP,26191,11/10/2019,39397,DRY RECYCLING W/C 06/10/19,28/11/2019,162.95,814.77,977.72,Recycling Collections,Agency Staff,60011
http://statistics.data.gov.uk/id/local-authority/12UE,Huntingdonshire District Council,200743.00,STAFFLINE GROUP STAFFLINE GROUP,22722,06/09/2019,33533,STREET CLEANSERS W/C 01/09/19,03/10/2019,85.91,429.57,515.48,Street Cleansing,Agency Staff,60011
http://statistics.data.gov.uk/id/local-authority/12UE,Huntingdonshire District Council,200743.00,STAFFLINE GROUP STAFFLINE GROUP,22722,06/09/2019,33533,STREET CLEANSERS W/C 01/09/19,03/10/2019,85.91,429.57,515.48,Street Cleansing,Agency Staff,60011
http://statistics.data.gov.uk/id/local-authority/12UE,Huntingdonshire District Council,200743.00,STAFFLINE GROUP STAFFLINE GROUP,22722,06/09/2019,33533,STREET CLEANSERS W/C 01/09/19,03/10/2019,85.91,429.57,515.48,Street Cleansing,Agency Staff,60011
http://statistics.data.gov.uk/id/local-authority/12UE,Huntingdonshire District Council,200743.00,STAFFLINE GROUP STAFFLINE GROUP,23307,13/09/2019,34727,OPS- STAFF,10/10/2019,257.74,1288.71,1546.45,Street Cleansing,Agency Staff,60011
http://statistics.data.gov.uk/id/local-authority/12UE,Huntingdonshire District Council,200743.00,STAFFLINE GROUP STAFFLINE GROUP,24648,11/10/2019,39400,STREET CLEANSERS W/C 06/10/19,08/11/2019,85.91,429.57,515.48,Street Cleansing,Agency Staff,60011
http://statistics.data.gov.uk/id/local-authority/12UE,Huntingdonshire District Council,200743.00,STAFFLINE GROUP STAFFLINE GROUP,24648,11/10/2019,39400,STREET CLEANSERS W/C 06/10/19,08/11/2019,85.91,429.57,515.48,Street Cleansing,Agency Staff,60011
http://statistics.data.gov.uk/id/local-authority/12UE,Huntingdonshire District Council,200743.00,STAFFLINE GROUP STAFFLINE GROUP,24648,11/10/2019,39400,STREET CLEANSERS W/C 06/10/19,08/11/2019,85.91,429.57,515.48,Street Cleansing,Agency Staff,60011
http://statistics.data.gov.uk/id/local-authority/12UE,Huntingdonshire District Council,200743.00,STAFFLINE GROUP STAFFLINE GROUP,24712,18/10/2019,40565,STREET CLEANSERS W/C 13/10/19,13/11/2019,85.91,429.57,515.48,Street Cleansing,Agency Staff,60011
http://statistics.data.gov.uk/id/local-authority/12UE,Huntingdonshire District Council,200743.00,STAFFLINE GROUP STAFFLINE GROUP,24712,18/10/2019,40565,STREET CLEANSERS W/C 13/10/19,13/11/2019,85.91,429.57,515.48,Street Cleansing,Agency Staff,60011
http://statistics.data.gov.uk/id/local-authority/12UE,Huntingdonshire District Council,200743.00,STAFFLINE GROUP STAFFLINE GROUP,24712,18/10/2019,40565,STREET CLEANSERS W/C 13/10/19,13/11/2019,85.91,429.57,515.48,Street Cleansing,Agency Staff,60011
http://statistics.data.gov.uk/id/local-authority/12UE,Huntingdonshire District Council,200743.00,STAFFLINE GROUP STAFFLINE GROUP,26251,15/11/2019,45020,STREET CLEANSERS W/C 10/11/19,12/12/2019,85.91,429.57,515.48,Street Cleansing,Agency Staff,60011
http://statistics.data.gov.uk/id/local-authority/12UE,Huntingdonshire District Council,200743.00,STAFFLINE GROUP STAFFLINE GROUP,26251,15/11/2019,45020,STREET CLEANSERS W/C 10/11/19,12/12/2019,85.91,429.57,515.48,Street Cleansing,Agency Staff,60011
http://statistics.data.gov.uk/id/local-authority/12UE,Huntingdonshire District Council,200743.00,STAFFLINE GROUP STAFFLINE GROUP,26251,15/11/2019,45020,STREET CLEANSERS W/C 10/11/19,12/12/2019,85.91,429.57,515.48,Street Cleansing,Agency Staff,60011
http://statistics.data.gov.uk/id/local-authority/12UE,Huntingdonshire District Council,200743.00,STAFFLINE GROUP STAFFLINE GROUP,26503,22/11/2019,46146,STREET CLEANSERS W/C 17/11/19,19/12/2019,85.91,429.57,515.48,Street Cleansing,Agency Staff,60011
http://statistics.data.gov.uk/id/local-authority/12UE,Huntingdonshire District Council,200743.00,STAFFLINE GROUP STAFFLINE GROUP,26503,22/11/2019,46146,STREET CLEANSERS W/C 17/11/19,19/12/2019,85.91,429.57,515.48,Street Cleansing,Agency Staff,60011
http://statistics.data.gov.uk/id/local-authority/12UE,Huntingdonshire District Council,200743.00,STAFFLINE GROUP STAFFLINE GROUP,26503,22/11/2019,46146,STREET CLEANSERS W/C 17/11/19,19/12/2019,85.91,429.57,515.48,Street Cleansing,Agency Staff,60011
http://statistics.data.gov.uk/id/local-authority/12UE,Huntingdonshire District Council,200743.00,STAFFLINE GROUP STAFFLINE GROUP,26069,01/11/2019,42829,STREET CLEANSERS W/C 27/10/19,28/11/2019,85.91,429.57,515.48,Street Cleansing,Agency Staff,60011
http://statistics.data.gov.uk/id/local-authority/12UE,Huntingdonshire District Council,200743.00,STAFFLINE GROUP STAFFLINE GROUP,26069,01/11/2019,42829,STREET CLEANSERS W/C 27/10/19,28/11/2019,69.66,348.3,417.96,Street Cleansing,Agency Staff,60011
http://statistics.data.gov.uk/id/local-authority/12UE,Huntingdonshire District Council,200743.00,STAFFLINE GROUP STAFFLINE GROUP,26069,01/11/2019,42829,STREET CLEANSERS W/C 27/10/19,28/11/2019,85.91,429.57,515.48,Street Cleansing,Agency Staff,60011
http://statistics.data.gov.uk/id/local-authority/12UE,Huntingdonshire District Council,200743.00,STAFFLINE GROUP STAFFLINE GROUP,25366,25/10/2019,41696,STREET CLEANSERS W/C 20/10/19,21/11/2019,68.5,342.5,411,Street Cleansing,Agency Staff,60011
http://statistics.data.gov.uk/id/local-authority/12UE,Huntingdonshire District Council,200743.00,STAFFLINE GROUP STAFFLINE GROUP,25366,25/10/2019,41696,STREET CLEANSERS W/C 20/10/19,21/11/2019,85.91,429.57,515.48,Street Cleansing,Agency Staff,60011
http://statistics.data.gov.uk/id/local-authority/12UE,Huntingdonshire District Council,200743.00,STAFFLINE GROUP STAFFLINE GROUP,25366,25/10/2019,41696,STREET CLEANSERS W/C 20/10/19,21/11/2019,85.91,429.57,515.48,Street Cleansing,Agency Staff,60011
http://statistics.data.gov.uk/id/local-authority/12UE,Huntingdonshire District Council,200743.00,STAFFLINE GROUP STAFFLINE GROUP,23906,20/09/2019,35899,STREET CLEANSERS W/C 15/09/19,17/10/2019,85.91,429.57,515.48,Street Cleansing,Agency Staff,60011
http://statistics.data.gov.uk/id/local-authority/12UE,Huntingdonshire District Council,200743.00,STAFFLINE GROUP STAFFLINE GROUP,23906,20/09/2019,35899,STREET CLEANSERS W/C 15/09/19,17/10/2019,85.91,429.57,515.48,Street Cleansing,Agency Staff,60011
http://statistics.data.gov.uk/id/local-authority/12UE,Huntingdonshire District Council,200743.00,STAFFLINE GROUP STAFFLINE GROUP,23906,20/09/2019,35899,STREET CLEANSERS W/C 15/09/19,17/10/2019,52.25,261.23,313.48,Street Cleansing,Agency Staff,60011
http://statistics.data.gov.uk/id/local-authority/12UE,Huntingdonshire District Council,200743.00,STAFFLINE GROUP STAFFLINE GROUP,25934,08/11/2019,43928,STREET CLEANSERS W/C 03/11/19,05/12/2019,85.91,429.57,515.48,Street Cleansing,Agency Staff,60011
http://statistics.data.gov.uk/id/local-authority/12UE,Huntingdonshire District Council,200743.00,STAFFLINE GROUP STAFFLINE GROUP,25934,08/11/2019,43928,STREET CLEANSERS W/C 03/11/19,05/12/2019,51.08,255.42,306.5,Street Cleansing,Agency Staff,60011
http://statistics.data.gov.uk/id/local-authority/12UE,Huntingdonshire District Council,200743.00,STAFFLINE GROUP STAFFLINE GROUP,25934,08/11/2019,43928,STREET CLEANSERS W/C 03/11/19,05/12/2019,85.91,429.57,515.48,Street Cleansing,Agency Staff,60011
http://statistics.data.gov.uk/id/local-authority/12UE,Huntingdonshire District Council,200743.00,STAFFLINE GROUP STAFFLINE GROUP,26982,29/11/2019,47250,STREET CLEANSERS W/C 24/11/19,19/12/2019,34.83,174.15,208.98,Street Cleansing,Agency Staff,60011
http://statistics.data.gov.uk/id/local-authority/12UE,Huntingdonshire District Council,200743.00,STAFFLINE GROUP STAFFLINE GROUP,26982,29/11/2019,47250,STREET CLEANSERS W/C 24/11/19,19/12/2019,85.91,429.57,515.48,Street Cleansing,Agency Staff,60011
http://statistics.data.gov.uk/id/local-authority/12UE,Huntingdonshire District Council,200743.00,STAFFLINE GROUP STAFFLINE GROUP,26982,29/11/2019,47250,STREET CLEANSERS W/C 24/11/19,19/12/2019,85.91,429.57,515.48,Street Cleansing,Agency Staff,60011
http://statistics.data.gov.uk/id/local-authority/12UE,Huntingdonshire District Council,200743.00,STAFFLINE GROUP STAFFLINE GROUP,24290,04/10/2019,38240,STREET CLEANSERS W/C 29/09/19,31/10/2019,85.91,429.57,515.48,Street Cleansing,Agency Staff,60011
http://statistics.data.gov.uk/id/local-authority/12UE,Huntingdonshire District Council,200743.00,STAFFLINE GROUP STAFFLINE GROUP,24290,04/10/2019,38240,STREET CLEANSERS W/C 29/09/19,31/10/2019,85.91,429.57,515.48,Street Cleansing,Agency Staff,60011
http://statistics.data.gov.uk/id/local-authority/12UE,Huntingdonshire District Council,200743.00,STAFFLINE GROUP STAFFLINE GROUP,25047,27/09/2019,37063,STREET CLEANSER W/C 22/09/19,31/10/2019,85.91,429.57,515.48,Street Cleansing,Agency Staff,60011
http://statistics.data.gov.uk/id/local-authority/12UE,Huntingdonshire District Council,200743.00,STAFFLINE GROUP STAFFLINE GROUP,24276,11/08/2019,30090,HOUSEHOLD WASTE W/C 11/08/19,24/10/2019,552.27,2761.33,3313.6,Domestic Waste Collection,Agency Staff,60011
http://statistics.data.gov.uk/id/local-authority/12UE,Huntingdonshire District Council,200743.00,STAFFLINE GROUP STAFFLINE GROUP,24277,23/08/2019,31232,HOUSEHOLD WASTE W/C 18/08/19,24/10/2019,507.28,2536.38,3043.66,Domestic Waste Collection,Agency Staff,60011
http://statistics.data.gov.uk/id/local-authority/12UE,Huntingdonshire District Council,201114.00,XP RECRUITMENT LTD,22896,11/09/2019,8451,WAREHOUSE W/E 07/09/19,10/10/2019,466.68,2333.4,2800.08,Domestic Waste Collection,Agency Staff,60011
http://statistics.data.gov.uk/id/local-authority/12UE,Huntingdonshire District Council,200743.00,STAFFLINE GROUP STAFFLINE GROUP,24707,30/08/2019,32395,HOUSEHOLD WASTE W/C 25/08/19,31/10/2019,402.36,2011.78,2414.14,Domestic Waste Collection,Agency Staff,60011
http://statistics.data.gov.uk/id/local-authority/12UE,Huntingdonshire District Council,200743.00,STAFFLINE GROUP STAFFLINE GROUP,24710,13/09/2019,34726,HOUSEHOLD WASTE W/C 08/09/19,31/10/2019,367.4,1836.99,2204.39,Domestic Waste Collection,Agency Staff,60011
http://statistics.data.gov.uk/id/local-authority/12UE,Huntingdonshire District Council,200743.00,STAFFLINE GROUP STAFFLINE GROUP,27518,08/11/2019,43927,HOUSEHOLD WASTE W/C 03/11/19,19/12/2019,360.8,1804.02,2164.82,Domestic Waste Collection,Agency Staff,60011
http://statistics.data.gov.uk/id/local-authority/12UE,Huntingdonshire District Council,200743.00,STAFFLINE GROUP STAFFLINE GROUP,27520,22/11/2019,46145,HOUSEHOLD WASTE W/C 17/11/19,19/12/2019,357.68,1788.38,2146.06,Domestic Waste Collection,Agency Staff,60011
http://statistics.data.gov.uk/id/local-authority/12UE,Huntingdonshire District Council,201114.00,XP RECRUITMENT LTD,23985,02/10/2019,8576,WAREHOUSE W/E 28/09/19,24/10/2019,306.95,1534.75,1841.7,Domestic Waste Collection,Agency Staff,60011
http://statistics.data.gov.uk/id/local-authority/12UE,Huntingdonshire District Council,200743.00,STAFFLINE GROUP STAFFLINE GROUP,26193,18/10/2019,40564,HOUSEHOLD WASTE W/C 13/10/19,28/11/2019,300.18,1500.91,1801.09,Domestic Waste Collection,Agency Staff,60011
http://statistics.data.gov.uk/id/local-authority/12UE,Huntingdonshire District Council,200743.00,STAFFLINE GROUP STAFFLINE GROUP,25707,27/09/2019,37062,HOUSEHOLD WASTE W/C 22/09/19,13/11/2019,295.33,1476.65,1771.98,Domestic Waste Collection,Agency Staff,60011
http://statistics.data.gov.uk/id/local-authority/12UE,Huntingdonshire District Council,200743.00,STAFFLINE GROUP STAFFLINE GROUP,26507,15/11/2019,45019,HOUSEHOLD WASTE W/C 10/11/19,12/12/2019,280.8,1403.99,1684.79,Domestic Waste Collection,Agency Staff,60011
http://statistics.data.gov.uk/id/local-authority/12UE,Huntingdonshire District Council,200743.00,STAFFLINE GROUP STAFFLINE GROUP,27521,29/11/2019,47249,HOUSEHOLD WASTE W/C 24/11/19,19/12/2019,280.8,1403.99,1684.79,Domestic Waste Collection,Agency Staff,60011
http://statistics.data.gov.uk/id/local-authority/12UE,Huntingdonshire District Council,200743.00,STAFFLINE GROUP STAFFLINE GROUP,27502,25/10/2019,41695,HOUSEHOLD WASTE W/C 20/10/19,19/12/2019,267.07,1335.36,1602.43,Domestic Waste Collection,Agency Staff,60011
http://statistics.data.gov.uk/id/local-authority/12UE,Huntingdonshire District Council,200743.00,STAFFLINE GROUP STAFFLINE GROUP,26192,11/10/2019,39399,HOUSEHOLD WASTE W/C 06/10/19,28/11/2019,265.79,1328.94,1594.73,Domestic Waste Collection,Agency Staff,60011
http://statistics.data.gov.uk/id/local-authority/12UE,Huntingdonshire District Council,201114.00,XP RECRUITMENT LTD,27235,04/12/2019,8890,WAREHOUSE W/E 30/11/19,19/12/2019,251.55,1257.75,1509.3,Domestic Waste Collection,Agency Staff,60011
http://statistics.data.gov.uk/id/local-authority/12UE,Huntingdonshire District Council,200743.00,STAFFLINE GROUP STAFFLINE GROUP,24711,20/09/2019,35898,HOUSEHOLD WASTE W/C 15/09/19,31/10/2019,242.96,1214.81,1457.77,Domestic Waste Collection,Agency Staff,60011
http://statistics.data.gov.uk/id/local-authority/12UE,Huntingdonshire District Council,200743.00,STAFFLINE GROUP STAFFLINE GROUP,27516,01/11/2019,42828,HOUSEHOLD WASTE W/C 27/10/19,19/12/2019,240.99,1204.97,1445.96,Domestic Waste Collection,Agency Staff,60011
http://statistics.data.gov.uk/id/local-authority/12UE,Huntingdonshire District Council,200743.00,STAFFLINE GROUP STAFFLINE GROUP,24403,06/09/2019,33532,HOUSEHOLD WASTE W/C 01/09/19,24/10/2019,238.71,1193.55,1432.26,Domestic Waste Collection,Agency Staff,60011
http://statistics.data.gov.uk/id/local-authority/12UE,Huntingdonshire District Council,200743.00,STAFFLINE GROUP STAFFLINE GROUP,25705,04/10/2019,38239,HOUSEHOLD WASTE W/C 29/09/19,13/11/2019,203.88,1019.4,1223.28,Domestic Waste Collection,Agency Staff,60011
http://statistics.data.gov.uk/id/local-authority/12UE,Huntingdonshire District Council,201114.00,XP RECRUITMENT LTD,24949,23/10/2019,8688,WAREHOUSE W/E 19/10/19,13/11/2019,193.5,967.5,1161,Domestic Waste Collection,Agency Staff,60011
http://statistics.data.gov.uk/id/local-authority/12UE,Huntingdonshire District Council,201114.00,XP RECRUITMENT LTD,25575,06/11/2019,8747,WAREHOUSE W/E 02/11/19,28/11/2019,174.15,870.75,1044.9,Domestic Waste Collection,Agency Staff,60011
http://statistics.data.gov.uk/id/local-authority/12UE,Huntingdonshire District Council,200420.00,INTERACTION RECRUITMENT PLC INTERACTION RECRUITMENT PLC,24635,21/10/2019,INV1995737,REDACTED,13/11/2019,98.06,490.29,588.35,Domestic Waste Collection,Agency Staff,60011
http://statistics.data.gov.uk/id/local-authority/12UE,Huntingdonshire District Council,200743.00,STAFFLINE GROUP STAFFLINE GROUP,25703,04/10/2019,38238,GREEN WASTE W/C 29/09/19,13/11/2019,521.91,2609.57,3131.48,Green Waste Collection,Agency Staff,60011
http://statistics.data.gov.uk/id/local-authority/12UE,Huntingdonshire District Council,200743.00,STAFFLINE GROUP STAFFLINE GROUP,25708,27/09/2019,37061,GREEN WASTE W/C 22/09/19,13/11/2019,506.34,2531.72,3038.06,Green Waste Collection,Agency Staff,60011
http://statistics.data.gov.uk/id/local-authority/12UE,Huntingdonshire District Council,200743.00,STAFFLINE GROUP STAFFLINE GROUP,24360,23/08/2019,31231,GREEN WASTE W/C 18/08/19,24/10/2019,497.24,2486.21,2983.45,Green Waste Collection,Agency Staff,60011
http://statistics.data.gov.uk/id/local-authority/12UE,Huntingdonshire District Council,200743.00,STAFFLINE GROUP STAFFLINE GROUP,24708,20/09/2019,35897,GREEN WASTE W/C 15/09/19,31/10/2019,488.37,2441.84,2930.21,Green Waste Collection,Agency Staff,60011
http://statistics.data.gov.uk/id/local-authority/12UE,Huntingdonshire District Council,200743.00,STAFFLINE GROUP STAFFLINE GROUP,24401,06/09/2019,33531,GREEN WASTE W/C 01/09/2019,24/10/2019,455.26,2276.3,2731.56,Green Waste Collection,Agency Staff,60011
http://statistics.data.gov.uk/id/local-authority/12UE,Huntingdonshire District Council,201114.00,XP RECRUITMENT LTD,26253,20/11/2019,8834,WAREHOUSE W/E 16/11/19,12/12/2019,396.49,1982.45,2378.94,Green Waste Collection,Agency Staff,60011
http://statistics.data.gov.uk/id/local-authority/12UE,Huntingdonshire District Council,200743.00,STAFFLINE GROUP STAFFLINE GROUP,26194,18/10/2019,40563,GREEN WASTE W/C 13/10/19,28/11/2019,387.82,1939.09,2326.91,Green Waste Collection,Agency Staff,60011
http://statistics.data.gov.uk/id/local-authority/12UE,Huntingdonshire District Council,200743.00,STAFFLINE GROUP STAFFLINE GROUP,24709,13/09/2019,34725,GREEN WASTE W/C 08/09/19,31/10/2019,379.5,1897.52,2277.02,Green Waste Collection,Agency Staff,60011
http://statistics.data.gov.uk/id/local-authority/12UE,Huntingdonshire District Council,200743.00,STAFFLINE GROUP STAFFLINE GROUP,24402,30/08/2019,32394,GREEN WASTE W/C 25/08/19,24/10/2019,377.61,1888.06,2265.67,Green Waste Collection,Agency Staff,60011
http://statistics.data.gov.uk/id/local-authority/12UE,Huntingdonshire District Council,201114.00,XP RECRUITMENT LTD,23889,04/09/2019,8399,WAREHOUSE W/E 31/08/19,17/10/2019,368.89,1844.45,2213.34,Green Waste Collection,Agency Staff,60011
http://statistics.data.gov.uk/id/local-authority/12UE,Huntingdonshire District Council,200743.00,STAFFLINE GROUP STAFFLINE GROUP,27503,25/10/2019,41694,GREEN WASTE W/C 20/10/19,19/12/2019,349.17,1745.87,2095.04,Green Waste Collection,Agency Staff,60011
http://statistics.data.gov.uk/id/local-authority/12UE,Huntingdonshire District Council,200743.00,STAFFLINE GROUP STAFFLINE GROUP,26190,11/10/2019,39398,GREEN WASTE W/C 06/10/19,28/11/2019,336.69,1683.47,2020.16,Green Waste Collection,Agency Staff,60011
http://statistics.data.gov.uk/id/local-authority/12UE,Huntingdonshire District Council,201114.00,XP RECRUITMENT LTD,25074,25/09/2019,8536,WAREHOUSE W/E 21/09/19,08/11/2019,326.3,1631.5,1957.8,Green Waste Collection,Agency Staff,60011
http://statistics.data.gov.uk/id/local-authority/12UE,Huntingdonshire District Council,200743.00,STAFFLINE GROUP STAFFLINE GROUP,27501,01/11/2019,42827,GREEN WASTE W/C 27/10/19,19/12/2019,314.47,1572.33,1886.8,Green Waste Collection,Agency Staff,60011
http://statistics.data.gov.uk/id/local-authority/12UE,Huntingdonshire District Council,201114.00,XP RECRUITMENT LTD,24404,09/10/2019,8612,WAREHOUSE W/E 05/10/19,31/10/2019,304.67,1523.35,1828.02,Green Waste Collection,Agency Staff,60011
http://statistics.data.gov.uk/id/local-authority/12UE,Huntingdonshire District Council,200743.00,STAFFLINE GROUP STAFFLINE GROUP,27517,22/11/2019,46144,GREEN WASTE W/C 17/11/19,19/12/2019,260.38,1301.88,1562.26,Green Waste Collection,Agency Staff,60011
http://statistics.data.gov.uk/id/local-authority/12UE,Huntingdonshire District Council,200743.00,STAFFLINE GROUP STAFFLINE GROUP,27504,08/11/2019,43926,GREEN WASTE W/C 03/11/19,19/12/2019,198.91,994.53,1193.44,Green Waste Collection,Agency Staff,60011
http://statistics.data.gov.uk/id/local-authority/12UE,Huntingdonshire District Council,201114.00,XP RECRUITMENT LTD,24605,16/10/2019,8651,WARE HOUSE W/E 12/10/19,08/11/2019,174.15,870.75,1044.9,Green Waste Collection,Agency Staff,60011
http://statistics.data.gov.uk/id/local-authority/12UE,Huntingdonshire District Council,200743.00,STAFFLINE GROUP STAFFLINE GROUP,27519,29/11/2019,47248,GREEN WASTE W/C 24/11/19,19/12/2019,112.99,564.96,677.95,Green Waste Collection,Agency Staff,60011
http://statistics.data.gov.uk/id/local-authority/12UE,Huntingdonshire District Council,200420.00,INTERACTION RECRUITMENT PLC INTERACTION RECRUITMENT PLC,24597,28/07/2019,INV1975870,REDACTED,31/10/2019,73.13,365.64,438.77,Green Waste Collection,Agency Staff,60011
http://statistics.data.gov.uk/id/local-authority/12UE,Huntingdonshire District Council,200743.00,STAFFLINE GROUP STAFFLINE GROUP,26505,15/11/2019,45018,GREEN WASTE W/C 10/11/19,12/12/2019,52.93,264.65,317.58,Green Waste Collection,Agency Staff,60011
http://statistics.data.gov.uk/id/local-authority/12UE,Huntingdonshire District Council,200918.00,1ST CHOICE RECRUITMENT,25733,09/11/2019,4000008383,REDACTED,05/12/2019,52.2,261.01,313.21,Car Park Management,Agency Staff,60011
http://statistics.data.gov.uk/id/local-authority/12UE,Huntingdonshire District Council,200918.00,1ST CHOICE RECRUITMENT,24235,07/09/2019,4000008110,REDACTED,24/10/2019,103.01,515.04,618.05,Car Park Management,Agency Staff,60011
http://statistics.data.gov.uk/id/local-authority/12UE,Huntingdonshire District Council,200918.00,1ST CHOICE RECRUITMENT,24257,05/10/2019,4000008239,REDACTED,08/11/2019,51.51,257.52,309.03,Car Park Management,Agency Staff,60011
http://statistics.data.gov.uk/id/local-authority/12UE,Huntingdonshire District Council,200918.00,1ST CHOICE RECRUITMENT,25138,19/10/2019,4000008303,REDACTED,13/11/2019,51.51,257.52,309.03,Car Park Management,Agency Staff,60011
http://statistics.data.gov.uk/id/local-authority/12UE,Huntingdonshire District Council,200918.00,1ST CHOICE RECRUITMENT,25234,26/10/2019,4000008330,REDACTED,21/11/2019,51.51,257.52,309.03,Car Park Management,Agency Staff,60011
http://statistics.data.gov.uk/id/local-authority/12UE,Huntingdonshire District Council,200918.00,1ST CHOICE RECRUITMENT,26761,30/11/2019,4000008456,REDACTED,19/12/2019,51.51,257.52,309.03,Car Park Management,Agency Staff,60011
http://statistics.data.gov.uk/id/local-authority/12UE,Huntingdonshire District Council,200918.00,1ST CHOICE RECRUITMENT,27230,16/11/2019,4000008408,REDACTED,19/12/2019,51.51,257.52,309.03,Car Park Management,Agency Staff,60011
http://statistics.data.gov.uk/id/local-authority/12UE,Huntingdonshire District Council,200918.00,1ST CHOICE RECRUITMENT,23808,28/09/2019,4000005207,REDACTED,24/10/2019,50.11,250.56,300.67,Car Park Management,Agency Staff,60011
http://statistics.data.gov.uk/id/local-authority/12UE,Huntingdonshire District Council,200918.00,1ST CHOICE RECRUITMENT,24255,28/09/2019,4000008207,REDACTED,24/10/2019,50.11,250.56,300.67,Car Park Management,Agency Staff,60011
http://statistics.data.gov.uk/id/local-authority/12UE,Huntingdonshire District Council,200918.00,1ST CHOICE RECRUITMENT,24482,12/10/2019,4000008272,REDACTED,08/11/2019,50.11,250.56,300.67,Car Park Management,Agency Staff,60011
http://statistics.data.gov.uk/id/local-authority/12UE,Huntingdonshire District Council,200918.00,1ST CHOICE RECRUITMENT,25587,02/11/2019,4000008358,REDACTED,28/11/2019,50.11,250.56,300.67,Car Park Management,Agency Staff,60011
http://statistics.data.gov.uk/id/local-authority/12UE,Huntingdonshire District Council,200918.00,1ST CHOICE RECRUITMENT,26064,31/08/2019,4000008069,REDACTED,28/11/2019,0.51,2.53,3.04,Car Park Management,Agency Staff,60011
http://statistics.data.gov.uk/id/local-authority/12UE,Huntingdonshire District Council,200918.00,1ST CHOICE RECRUITMENT,26064,31/08/2019,4000008069,REDACTED,28/11/2019,68.25,341.25,409.5,Car Park Management,Agency Staff,60011
http://statistics.data.gov.uk/id/local-authority/12UE,Huntingdonshire District Council,200918.00,1ST CHOICE RECRUITMENT,26064,31/08/2019,4000008069,REDACTED,28/11/2019,29.2,145.97,175.17,Car Park Management,Agency Staff,60011
http://statistics.data.gov.uk/id/local-authority/12UE,Huntingdonshire District Council,200918.00,1ST CHOICE RECRUITMENT,24233,31/08/2019,4000008068,REDACTED,24/10/2019,11.14,55.68,66.82,Car Park Management,Agency Staff,60011
http://statistics.data.gov.uk/id/local-authority/12UE,Huntingdonshire District Council,200918.00,1ST CHOICE RECRUITMENT,24233,31/08/2019,4000008068,REDACTED,24/10/2019,75.17,375.84,451.01,Car Park Management,Agency Staff,60011
http://statistics.data.gov.uk/id/local-authority/12UE,Huntingdonshire District Council,200918.00,1ST CHOICE RECRUITMENT,26060,14/09/2019,4000008144,REDACTED,28/11/2019,40.95,204.75,245.7,Car Park Management,Agency Staff,60011
http://statistics.data.gov.uk/id/local-authority/12UE,Huntingdonshire District Council,200918.00,1ST CHOICE RECRUITMENT,26060,14/09/2019,4000008144,REDACTED,28/11/2019,27.3,136.5,163.8,Car Park Management,Agency Staff,60011
http://statistics.data.gov.uk/id/local-authority/12UE,Huntingdonshire District Council,200918.00,1ST CHOICE RECRUITMENT,26060,14/09/2019,4000008144,REDACTED,28/11/2019,12.5,62.48,74.98,Car Park Management,Agency Staff,60011
http://statistics.data.gov.uk/id/local-authority/12UE,Huntingdonshire District Council,200918.00,1ST CHOICE RECRUITMENT,26062,21/09/2019,4000008176,REDACTED,28/11/2019,68.25,341.25,409.5,Car Park Management,Agency Staff,60011
http://statistics.data.gov.uk/id/local-authority/12UE,Huntingdonshire District Council,200918.00,1ST CHOICE RECRUITMENT,26062,21/09/2019,4000008176,REDACTED,28/11/2019,12.44,62.22,74.66,Car Park Management,Agency Staff,60011
http://statistics.data.gov.uk/id/local-authority/12UE,Huntingdonshire District Council,200918.00,1ST CHOICE RECRUITMENT,24237,14/09/2019,4000008143,REDACTED,24/10/2019,66.82,334.08,400.9,Car Park Management,Agency Staff,60011
http://statistics.data.gov.uk/id/local-authority/12UE,Huntingdonshire District Council,200918.00,1ST CHOICE RECRUITMENT,22783,07/09/2019,4000008108,REDACTED,03/10/2019,54.6,273,327.6,Car Park Management,Agency Staff,60011
http://statistics.data.gov.uk/id/local-authority/12UE,Huntingdonshire District Council,200918.00,1ST CHOICE RECRUITMENT,22783,07/09/2019,4000008108,REDACTED,03/10/2019,9.01,45.06,54.07,Car Park Management,Agency Staff,60011
http://statistics.data.gov.uk/id/local-authority/12UE,Huntingdonshire District Council,200918.00,1ST CHOICE RECRUITMENT,27231,23/11/2019,4000008432,REDACTED,19/12/2019,29.93,149.65,179.58,Car Park Management,Agency Staff,60011
http://statistics.data.gov.uk/id/local-authority/12UE,Huntingdonshire District Council,200918.00,1ST CHOICE RECRUITMENT,23744,21/09/2019,4000008177,REDACTED,17/10/2019,27.49,137.47,164.96,Car Park Management,Agency Staff,60011
http://statistics.data.gov.uk/id/local-authority/12UE,Huntingdonshire District Council,200365.00,HAYS HAYS,23256,20/09/2019,1010011443,ESTATES STAFF,17/10/2019,550.6,2753,3303.6,Property Development And Mgt,Agency Staff,60011
http://statistics.data.gov.uk/id/local-authority/12UE,Huntingdonshire District Council,200365.00,HAYS HAYS,23698,26/09/2019,1010032400,REDACTED,24/10/2019,550.6,2753,3303.6,Property Development And Mgt,Agency Staff,60011
http://statistics.data.gov.uk/id/local-authority/12UE,Huntingdonshire District Council,200365.00,HAYS HAYS,24704,11/10/2019,1010072939,REDACTED,08/11/2019,550.6,2753,3303.6,Property Development And Mgt,Agency Staff,60011
http://statistics.data.gov.uk/id/local-authority/12UE,Huntingdonshire District Council,200365.00,HAYS HAYS,24720,07/10/2019,1010053515,REDACTED,31/10/2019,550.6,2753,3303.6,Property Development And Mgt,Agency Staff,60011
http://statistics.data.gov.uk/id/local-authority/12UE,Huntingdonshire District Council,200365.00,HAYS HAYS,25170,31/10/2019,1010131978,REDACTED,28/11/2019,550.6,2753,3303.6,Property Development And Mgt,Agency Staff,60011
http://statistics.data.gov.uk/id/local-authority/12UE,Huntingdonshire District Council,200365.00,HAYS HAYS,25540,07/11/2019,1010151234,REDACTED,05/12/2019,550.6,2753,3303.6,Property Development And Mgt,Agency Staff,60011
http://statistics.data.gov.uk/id/local-authority/12UE,Huntingdonshire District Council,200365.00,HAYS HAYS,26103,19/11/2019,1010176962,REDACTED,12/12/2019,550.6,2753,3303.6,Property Development And Mgt,Agency Staff,60011
http://statistics.data.gov.uk/id/local-authority/12UE,Huntingdonshire District Council,200365.00,HAYS HAYS,26569,21/11/2019,1010185046,REDACTED,19/12/2019,550.6,2753,3303.6,Property Development And Mgt,Agency Staff,60011
http://statistics.data.gov.uk/id/local-authority/12UE,Huntingdonshire District Council,200365.00,HAYS HAYS,26588,28/11/2019,1010203285,REDACTED,19/12/2019,550.6,2753,3303.6,Property Development And Mgt,Agency Staff,60011
http://statistics.data.gov.uk/id/local-authority/12UE,Huntingdonshire District Council,200785.00,THE OYSTER PARTNERSHIP THE OYSTER PARTNERSHIP,23016,17/09/2019,1059388,REDACTED,10/10/2019,475,2375,2850,Property Development And Mgt,Agency Staff,60011
http://statistics.data.gov.uk/id/local-authority/12UE,Huntingdonshire District Council,200785.00,THE OYSTER PARTNERSHIP THE OYSTER PARTNERSHIP,23017,17/09/2019,1059390,REDACTED,10/10/2019,475,2375,2850,Property Development And Mgt,Agency Staff,60011
http://statistics.data.gov.uk/id/local-authority/12UE,Huntingdonshire District Council,200785.00,THE OYSTER PARTNERSHIP THE OYSTER PARTNERSHIP,23493,25/09/2019,1060034,estaets staff,17/10/2019,475,2375,2850,Property Development And Mgt,Agency Staff,60011
http://statistics.data.gov.uk/id/local-authority/12UE,Huntingdonshire District Council,200785.00,THE OYSTER PARTNERSHIP THE OYSTER PARTNERSHIP,23976,02/10/2019,1060412,REDACTED,24/10/2019,475,2375,2850,Property Development And Mgt,Agency Staff,60011
http://statistics.data.gov.uk/id/local-authority/12UE,Huntingdonshire District Council,200785.00,THE OYSTER PARTNERSHIP THE OYSTER PARTNERSHIP,24658,23/10/2019,1061612,REDACTED,13/11/2019,475,2375,2850,Property Development And Mgt,Agency Staff,60011
http://statistics.data.gov.uk/id/local-authority/12UE,Huntingdonshire District Council,200785.00,THE OYSTER PARTNERSHIP THE OYSTER PARTNERSHIP,25125,31/10/2019,1062662,REDACTED,28/11/2019,475,2375,2850,Property Development And Mgt,Agency Staff,60011
http://statistics.data.gov.uk/id/local-authority/12UE,Huntingdonshire District Council,200785.00,THE OYSTER PARTNERSHIP THE OYSTER PARTNERSHIP,25447,06/11/2019,1062852,REDACTED,28/11/2019,475,2375,2850,Property Development And Mgt,Agency Staff,60011
http://statistics.data.gov.uk/id/local-authority/12UE,Huntingdonshire District Council,200785.00,THE OYSTER PARTNERSHIP THE OYSTER PARTNERSHIP,25502,06/11/2019,1062851,REDACTED,28/11/2019,390,1950,2340,Property Development And Mgt,Agency Staff,60011
http://statistics.data.gov.uk/id/local-authority/12UE,Huntingdonshire District Council,200785.00,THE OYSTER PARTNERSHIP THE OYSTER PARTNERSHIP,25844,13/11/2019,1063303,REDACTED,05/12/2019,390,1950,2340,Property Development And Mgt,Agency Staff,60011
http://statistics.data.gov.uk/id/local-authority/12UE,Huntingdonshire District Council,200785.00,THE OYSTER PARTNERSHIP THE OYSTER PARTNERSHIP,26568,20/11/2019,1063780,REDACTED,12/12/2019,390,1950,2340,Property Development And Mgt,Agency Staff,60011
http://statistics.data.gov.uk/id/local-authority/12UE,Huntingdonshire District Council,200785.00,THE OYSTER PARTNERSHIP THE OYSTER PARTNERSHIP,26587,27/11/2019,1064268,REDACTED,19/12/2019,390,1950,2340,Property Development And Mgt,Agency Staff,60011
http://statistics.data.gov.uk/id/local-authority/12UE,Huntingdonshire District Council,200785.00,THE OYSTER PARTNERSHIP THE OYSTER PARTNERSHIP,26864,04/12/2019,1064760,REDACTED,19/12/2019,390,1950,2340,Property Development And Mgt,Agency Staff,60011
http://statistics.data.gov.uk/id/local-authority/12UE,Huntingdonshire District Council,200365.00,HAYS HAYS,23128,18/09/2019,1009997731,ESTATES - STAFF,10/10/2019,385.42,1927.1,2312.52,Property Development And Mgt,Agency Staff,60011
http://statistics.data.gov.uk/id/local-authority/12UE,Huntingdonshire District Council,200785.00,THE OYSTER PARTNERSHIP THE OYSTER PARTNERSHIP,23011,17/09/2019,1059391,REDACTED,10/10/2019,385,1925,2310,Property Development And Mgt,Agency Staff,60011
http://statistics.data.gov.uk/id/local-authority/12UE,Huntingdonshire District Council,200785.00,THE OYSTER PARTNERSHIP THE OYSTER PARTNERSHIP,23013,17/09/2019,1059389,REDACTED,10/10/2019,385,1925,2310,Property Development And Mgt,Agency Staff,60011
http://statistics.data.gov.uk/id/local-authority/12UE,Huntingdonshire District Council,200785.00,THE OYSTER PARTNERSHIP THE OYSTER PARTNERSHIP,24199,09/10/2019,1060804,REDACTED,31/10/2019,385,1925,2310,Property Development And Mgt,Agency Staff,60011
http://statistics.data.gov.uk/id/local-authority/12UE,Huntingdonshire District Council,200785.00,THE OYSTER PARTNERSHIP THE OYSTER PARTNERSHIP,24478,16/10/2019,1061211,REDACTED,08/11/2019,385,1925,2310,Property Development And Mgt,Agency Staff,60011
http://statistics.data.gov.uk/id/local-authority/12UE,Huntingdonshire District Council,200785.00,THE OYSTER PARTNERSHIP THE OYSTER PARTNERSHIP,25126,31/10/2019,1062663,REDACTED,28/11/2019,385,1925,2310,Property Development And Mgt,Agency Staff,60011
http://statistics.data.gov.uk/id/local-authority/12UE,Huntingdonshire District Council,200365.00,HAYS HAYS,25122,30/10/2019,1010121624,REDACTED,21/11/2019,330.36,1651.8,1982.16,Property Development And Mgt,Agency Staff,60011
http://statistics.data.gov.uk/id/local-authority/12UE,Huntingdonshire District Council,200785.00,THE OYSTER PARTNERSHIP THE OYSTER PARTNERSHIP,23884,02/10/2019,1060413,REDACTED,24/10/2019,308,1540,1848,Property Development And Mgt,Agency Staff,60011
http://statistics.data.gov.uk/id/local-authority/12UE,Huntingdonshire District Council,200785.00,THE OYSTER PARTNERSHIP THE OYSTER PARTNERSHIP,24705,23/10/2019,1061613,REDACTED,13/11/2019,308,1540,1848,Property Development And Mgt,Agency Staff,60011
http://statistics.data.gov.uk/id/local-authority/12UE,Huntingdonshire District Council,200785.00,THE OYSTER PARTNERSHIP THE OYSTER PARTNERSHIP,25839,13/11/2019,1063305,REDACTED,05/12/2019,308,1540,1848,Property Development And Mgt,Agency Staff,60011
http://statistics.data.gov.uk/id/local-authority/12UE,Huntingdonshire District Council,200785.00,THE OYSTER PARTNERSHIP THE OYSTER PARTNERSHIP,26586,27/11/2019,1064270,REDACTED,19/12/2019,308,1540,1848,Property Development And Mgt,Agency Staff,60011
http://statistics.data.gov.uk/id/local-authority/12UE,Huntingdonshire District Council,200785.00,THE OYSTER PARTNERSHIP THE OYSTER PARTNERSHIP,24480,16/10/2019,1061210,REDACTED,08/11/2019,285,1425,1710,Property Development And Mgt,Agency Staff,60011
http://statistics.data.gov.uk/id/local-authority/12UE,Huntingdonshire District Council,200785.00,THE OYSTER PARTNERSHIP THE OYSTER PARTNERSHIP,25079,30/10/2019,1062421,REDACTED,08/11/2019,285,1425,1710,Property Development And Mgt,Agency Staff,60011
http://statistics.data.gov.uk/id/local-authority/12UE,Huntingdonshire District Council,200785.00,THE OYSTER PARTNERSHIP THE OYSTER PARTNERSHIP,23527,25/09/2019,1060035,ESTATES STAFF,17/10/2019,269.5,1347.5,1617,Property Development And Mgt,Agency Staff,60011
http://statistics.data.gov.uk/id/local-authority/12UE,Huntingdonshire District Council,200785.00,THE OYSTER PARTNERSHIP THE OYSTER PARTNERSHIP,25448,06/11/2019,1062853,REDACTED,28/11/2019,269.5,1347.5,1617,Property Development And Mgt,Agency Staff,60011
http://statistics.data.gov.uk/id/local-authority/12UE,Huntingdonshire District Council,200785.00,THE OYSTER PARTNERSHIP THE OYSTER PARTNERSHIP,25081,30/10/2019,1062422,REDACTED,08/11/2019,231,1155,1386,Property Development And Mgt,Agency Staff,60011
http://statistics.data.gov.uk/id/local-authority/12UE,Huntingdonshire District Council,200785.00,THE OYSTER PARTNERSHIP THE OYSTER PARTNERSHIP,26202,20/11/2019,1063782,REDACTED,12/12/2019,231,1155,1386,Property Development And Mgt,Agency Staff,60011
http://statistics.data.gov.uk/id/local-authority/12UE,Huntingdonshire District Council,200785.00,THE OYSTER PARTNERSHIP THE OYSTER PARTNERSHIP,25085,30/10/2019,1062024,REDACTED,13/11/2019,190,950,1140,Property Development And Mgt,Agency Staff,60011
http://statistics.data.gov.uk/id/local-authority/12UE,Huntingdonshire District Council,200785.00,THE OYSTER PARTNERSHIP THE OYSTER PARTNERSHIP,25086,30/10/2019,1062025,REDACTED,13/11/2019,154,770,924,Property Development And Mgt,Agency Staff,60011
http://statistics.data.gov.uk/id/local-authority/12UE,Huntingdonshire District Council,200785.00,THE OYSTER PARTNERSHIP THE OYSTER PARTNERSHIP,24198,09/10/2019,1060803,REDACTED,31/10/2019,142.5,712.5,855,Property Development And Mgt,Agency Staff,60011
http://statistics.data.gov.uk/id/local-authority/12UE,Huntingdonshire District Council,200785.00,THE OYSTER PARTNERSHIP THE OYSTER PARTNERSHIP,25897,13/11/2019,1063302,REDACTED,05/12/2019,78,390,468,Property Development And Mgt,Agency Staff,60011
http://statistics.data.gov.uk/id/local-authority/12UE,Huntingdonshire District Council,200785.00,THE OYSTER PARTNERSHIP THE OYSTER PARTNERSHIP,25118,31/10/2019,CN-1062025,REDACTED,08/11/2019,-154,-770,-924,Property Development And Mgt,Agency Staff,60011
http://statistics.data.gov.uk/id/local-authority/12UE,Huntingdonshire District Council,200785.00,THE OYSTER PARTNERSHIP THE OYSTER PARTNERSHIP,25117,31/10/2019,CN-1062024,REDACTED,08/11/2019,-190,-950,-1140,Property Development And Mgt,Agency Staff,60011
http://statistics.data.gov.uk/id/local-authority/12UE,Huntingdonshire District Council,200785.00,THE OYSTER PARTNERSHIP THE OYSTER PARTNERSHIP,25120,31/10/2019,CN-1062422,REDACTED,08/11/2019,-231,-1155,-1386,Property Development And Mgt,Agency Staff,60011
http://statistics.data.gov.uk/id/local-authority/12UE,Huntingdonshire District Council,200785.00,THE OYSTER PARTNERSHIP THE OYSTER PARTNERSHIP,25119,31/10/2019,CN-1062421,REDACTED,08/11/2019,-285,-1425,-1710,Property Development And Mgt,Agency Staff,60011
http://statistics.data.gov.uk/id/local-authority/12UE,Huntingdonshire District Council,200420.00,INTERACTION RECRUITMENT PLC INTERACTION RECRUITMENT PLC,23112,23/09/2019,INV1987676,OPS - STAFF TF,17/10/2019,113.7,568.5,682.2,Document Centre,Agency Staff,60011
http://statistics.data.gov.uk/id/local-authority/12UE,Huntingdonshire District Council,200420.00,INTERACTION RECRUITMENT PLC INTERACTION RECRUITMENT PLC,22698,08/09/2019,INV1985960,REDACTED,03/10/2019,112.18,560.92,673.1,Document Centre,Agency Staff,60011
http://statistics.data.gov.uk/id/local-authority/12UE,Huntingdonshire District Council,200420.00,INTERACTION RECRUITMENT PLC INTERACTION RECRUITMENT PLC,23494,22/09/2019,INV1989387,doc centre staff,17/10/2019,112.18,560.92,673.1,Document Centre,Agency Staff,60011
http://statistics.data.gov.uk/id/local-authority/12UE,Huntingdonshire District Council,200420.00,INTERACTION RECRUITMENT PLC INTERACTION RECRUITMENT PLC,23868,29/09/2019,INV1991205,REDACTED,24/10/2019,112.18,560.92,673.1,Document Centre,Agency Staff,60011
http://statistics.data.gov.uk/id/local-authority/12UE,Huntingdonshire District Council,200420.00,INTERACTION RECRUITMENT PLC INTERACTION RECRUITMENT PLC,24488,13/10/2019,INV1994661,REDACTED,08/11/2019,112.18,560.92,673.1,Document Centre,Agency Staff,60011
http://statistics.data.gov.uk/id/local-authority/12UE,Huntingdonshire District Council,200420.00,INTERACTION RECRUITMENT PLC INTERACTION RECRUITMENT PLC,24669,20/10/2019,INV1996399,REDACTED,13/11/2019,112.18,560.92,673.1,Document Centre,Agency Staff,60011
http://statistics.data.gov.uk/id/local-authority/12UE,Huntingdonshire District Council,200420.00,INTERACTION RECRUITMENT PLC INTERACTION RECRUITMENT PLC,25473,03/11/2019,INV1999870,REDACTED,28/11/2019,112.18,560.92,673.1,Document Centre,Agency Staff,60011
http://statistics.data.gov.uk/id/local-authority/12UE,Huntingdonshire District Council,200420.00,INTERACTION RECRUITMENT PLC INTERACTION RECRUITMENT PLC,26238,17/11/2019,INV2003486,REDACTED,12/12/2019,112.18,560.92,673.1,Document Centre,Agency Staff,60011
http://statistics.data.gov.uk/id/local-authority/12UE,Huntingdonshire District Council,200420.00,INTERACTION RECRUITMENT PLC INTERACTION RECRUITMENT PLC,26442,24/11/2019,INV2005350,REDACTED,19/12/2019,112.18,560.92,673.1,Document Centre,Agency Staff,60011
http://statistics.data.gov.uk/id/local-authority/12UE,Huntingdonshire District Council,200420.00,INTERACTION RECRUITMENT PLC INTERACTION RECRUITMENT PLC,26849,01/12/2019,INV2007157,REDACTED,19/12/2019,112.18,560.92,673.1,Document Centre,Agency Staff,60011
http://statistics.data.gov.uk/id/local-authority/12UE,Huntingdonshire District Council,200420.00,INTERACTION RECRUITMENT PLC INTERACTION RECRUITMENT PLC,23651,23/06/2019,INV1967978,REDACTED,10/10/2019,97.78,488.91,586.69,Document Centre,Agency Staff,60011
http://statistics.data.gov.uk/id/local-authority/12UE,Huntingdonshire District Council,200420.00,INTERACTION RECRUITMENT PLC INTERACTION RECRUITMENT PLC,24265,06/10/2019,INV1992906,REDACTED,31/10/2019,90.96,454.8,545.76,Document Centre,Agency Staff,60011
http://statistics.data.gov.uk/id/local-authority/12UE,Huntingdonshire District Council,200420.00,INTERACTION RECRUITMENT PLC INTERACTION RECRUITMENT PLC,25115,27/10/2019,INV1998156,REDACTED,21/11/2019,87.17,435.85,523.02,Document Centre,Agency Staff,60011
http://statistics.data.gov.uk/id/local-authority/12UE,Huntingdonshire District Council,201114.00,XP RECRUITMENT LTD,22894,11/09/2019,8450,GROUNDSMEN W/E 07/09/19,10/10/2019,20,100,120,Grounds Maintenance,Agency Staff,60011
http://statistics.data.gov.uk/id/local-authority/12UE,Huntingdonshire District Council,201114.00,XP RECRUITMENT LTD,22894,11/09/2019,8450,GROUNDSMEN W/E 07/09/19,10/10/2019,76.7,383.5,460.2,Grounds Maintenance,Agency Staff,60011
http://statistics.data.gov.uk/id/local-authority/12UE,Huntingdonshire District Council,201114.00,XP RECRUITMENT LTD,22894,11/09/2019,8450,GROUNDSMEN W/E 07/09/19,10/10/2019,92.5,462.5,555,Grounds Maintenance,Agency Staff,60011
http://statistics.data.gov.uk/id/local-authority/12UE,Huntingdonshire District Council,201114.00,XP RECRUITMENT LTD,22894,11/09/2019,8450,GROUNDSMEN W/E 07/09/19,10/10/2019,92.5,462.5,555,Grounds Maintenance,Agency Staff,60011
http://statistics.data.gov.uk/id/local-authority/12UE,Huntingdonshire District Council,201114.00,XP RECRUITMENT LTD,23297,14/09/2019,8492,OPS STAFF,10/10/2019,92.5,462.5,555,Grounds Maintenance,Agency Staff,60011
http://statistics.data.gov.uk/id/local-authority/12UE,Huntingdonshire District Council,201114.00,XP RECRUITMENT LTD,23297,14/09/2019,8492,OPS STAFF,10/10/2019,92.5,462.5,555,Grounds Maintenance,Agency Staff,60011
http://statistics.data.gov.uk/id/local-authority/12UE,Huntingdonshire District Council,201114.00,XP RECRUITMENT LTD,23297,14/09/2019,8492,OPS STAFF,10/10/2019,96.2,481,577.2,Grounds Maintenance,Agency Staff,60011
http://statistics.data.gov.uk/id/local-authority/12UE,Huntingdonshire District Council,201114.00,XP RECRUITMENT LTD,23986,02/10/2019,8575,GROUNDSMEN W/E 28/09/19,24/10/2019,96.2,481,577.2,Grounds Maintenance,Agency Staff,60011
http://statistics.data.gov.uk/id/local-authority/12UE,Huntingdonshire District Council,201114.00,XP RECRUITMENT LTD,23986,02/10/2019,8575,GROUNDSMEN W/E 28/09/19,24/10/2019,92.5,462.5,555,Grounds Maintenance,Agency Staff,60011
http://statistics.data.gov.uk/id/local-authority/12UE,Huntingdonshire District Council,201114.00,XP RECRUITMENT LTD,23986,02/10/2019,8575,GROUNDSMEN W/E 28/09/19,24/10/2019,92.5,462.5,555,Grounds Maintenance,Agency Staff,60011
http://statistics.data.gov.uk/id/local-authority/12UE,Huntingdonshire District Council,201114.00,XP RECRUITMENT LTD,25073,25/09/2019,8535,GROUNDSMEN W/E 21/09/19,08/11/2019,96.2,481,577.2,Grounds Maintenance,Agency Staff,60011
http://statistics.data.gov.uk/id/local-authority/12UE,Huntingdonshire District Council,201114.00,XP RECRUITMENT LTD,25073,25/09/2019,8535,GROUNDSMEN W/E 21/09/19,08/11/2019,92.5,462.5,555,Grounds Maintenance,Agency Staff,60011
http://statistics.data.gov.uk/id/local-authority/12UE,Huntingdonshire District Council,201114.00,XP RECRUITMENT LTD,25073,25/09/2019,8535,GROUNDSMEN W/E 21/09/19,08/11/2019,92.5,462.5,555,Grounds Maintenance,Agency Staff,60011
http://statistics.data.gov.uk/id/local-authority/12UE,Huntingdonshire District Council,201114.00,XP RECRUITMENT LTD,25367,29/10/2019,8724,GROUNDSMEN W/E 26/10/19,21/11/2019,96.2,481,577.2,Grounds Maintenance,Agency Staff,60011
http://statistics.data.gov.uk/id/local-authority/12UE,Huntingdonshire District Council,201114.00,XP RECRUITMENT LTD,25367,29/10/2019,8724,GROUNDSMEN W/E 26/10/19,21/11/2019,92.5,462.5,555,Grounds Maintenance,Agency Staff,60011
http://statistics.data.gov.uk/id/local-authority/12UE,Huntingdonshire District Council,201114.00,XP RECRUITMENT LTD,25367,29/10/2019,8724,GROUNDSMEN W/E 26/10/19,21/11/2019,92.5,462.5,555,Grounds Maintenance,Agency Staff,60011
http://statistics.data.gov.uk/id/local-authority/12UE,Huntingdonshire District Council,201114.00,XP RECRUITMENT LTD,24457,09/10/2019,8611,GROUNDSMEN W/E 05/10/19,31/10/2019,96.2,481,577.2,Grounds Maintenance,Agency Staff,60011
http://statistics.data.gov.uk/id/local-authority/12UE,Huntingdonshire District Council,201114.00,XP RECRUITMENT LTD,24457,09/10/2019,8611,GROUNDSMEN W/E 05/10/19,31/10/2019,80,400,480,Grounds Maintenance,Agency Staff,60011
http://statistics.data.gov.uk/id/local-authority/12UE,Huntingdonshire District Council,201114.00,XP RECRUITMENT LTD,24457,09/10/2019,8611,GROUNDSMEN W/E 05/10/19,31/10/2019,92.5,462.5,555,Grounds Maintenance,Agency Staff,60011
http://statistics.data.gov.uk/id/local-authority/12UE,Huntingdonshire District Council,201114.00,XP RECRUITMENT LTD,24952,23/10/2019,8687,GROUNDSMEN W/E 19/10/19,13/11/2019,72.5,362.5,435,Grounds Maintenance,Agency Staff,60011
http://statistics.data.gov.uk/id/local-authority/12UE,Huntingdonshire District Council,201114.00,XP RECRUITMENT LTD,24952,23/10/2019,8687,GROUNDSMEN W/E 19/10/19,13/11/2019,96.2,481,577.2,Grounds Maintenance,Agency Staff,60011
http://statistics.data.gov.uk/id/local-authority/12UE,Huntingdonshire District Council,201114.00,XP RECRUITMENT LTD,24952,23/10/2019,8687,GROUNDSMEN W/E 19/10/19,13/11/2019,92.5,462.5,555,Grounds Maintenance,Agency Staff,60011
http://statistics.data.gov.uk/id/local-authority/12UE,Huntingdonshire District Council,201114.00,XP RECRUITMENT LTD,24620,16/10/2019,8650,GROUNDSMEN W/E 12/10/19,08/11/2019,92.5,462.5,555,Grounds Maintenance,Agency Staff,60011
http://statistics.data.gov.uk/id/local-authority/12UE,Huntingdonshire District Council,201114.00,XP RECRUITMENT LTD,24620,16/10/2019,8650,GROUNDSMEN W/E 12/10/19,08/11/2019,92.5,462.5,555,Grounds Maintenance,Agency Staff,60011
http://statistics.data.gov.uk/id/local-authority/12UE,Huntingdonshire District Council,201114.00,XP RECRUITMENT LTD,25576,06/11/2019,8746,GROUNDSMEN W/E 02/11/19,28/11/2019,83.2,416,499.2,Grounds Maintenance,Agency Staff,60011
http://statistics.data.gov.uk/id/local-authority/12UE,Huntingdonshire District Council,201114.00,XP RECRUITMENT LTD,25576,06/11/2019,8746,GROUNDSMEN W/E 02/11/19,28/11/2019,80,400,480,Grounds Maintenance,Agency Staff,60011
http://statistics.data.gov.uk/id/local-authority/12UE,Huntingdonshire District Council,201114.00,XP RECRUITMENT LTD,25576,06/11/2019,8746,GROUNDSMEN W/E 02/11/19,28/11/2019,20,100,120,Grounds Maintenance,Agency Staff,60011
http://statistics.data.gov.uk/id/local-authority/12UE,Huntingdonshire District Council,200420.00,INTERACTION RECRUITMENT PLC INTERACTION RECRUITMENT PLC,24631,21/10/2019,INV1995738,REDACTED,13/11/2019,105,525,630,Grounds Maintenance,Agency Staff,60011
http://statistics.data.gov.uk/id/local-authority/12UE,Huntingdonshire District Council,201114.00,XP RECRUITMENT LTD,24619,12/10/2019,8649,GROUNDSMEN W/E 12/10/19,08/11/2019,75.4,377,452.4,Grounds Maintenance,Agency Staff,60011
http://statistics.data.gov.uk/id/local-authority/12UE,Huntingdonshire District Council,200026.00,ADVANTAGE ADVANTAGE,26197,23/10/2019,131830,REDACTED,28/11/2019,390,1950,2340,City Recoverable,Agency Staff,60011
http://statistics.data.gov.uk/id/local-authority/12UE,Huntingdonshire District Council,200026.00,ADVANTAGE ADVANTAGE,23135,24/09/2019,131536,OPS- CONSULTANT,17/10/2019,300,1500,1800,City Recoverable,Agency Staff,60011
http://statistics.data.gov.uk/id/local-authority/12UE,Huntingdonshire District Council,200026.00,ADVANTAGE ADVANTAGE,23764,25/09/2019,131635,REDACTED,17/10/2019,300,1500,1800,City Recoverable,Agency Staff,60011
http://statistics.data.gov.uk/id/local-authority/12UE,Huntingdonshire District Council,200026.00,ADVANTAGE ADVANTAGE,24243,02/10/2019,131705,REDACTED,24/10/2019,300,1500,1800,City Recoverable,Agency Staff,60011
http://statistics.data.gov.uk/id/local-authority/12UE,Huntingdonshire District Council,200026.00,ADVANTAGE ADVANTAGE,24856,16/10/2019,131773,REDACTED,08/11/2019,300,1500,1800,City Recoverable,Agency Staff,60011
http://statistics.data.gov.uk/id/local-authority/12UE,Huntingdonshire District Council,200026.00,ADVANTAGE ADVANTAGE,24863,09/10/2019,131729,REDACTED,31/10/2019,300,1500,1800,City Recoverable,Agency Staff,60011
http://statistics.data.gov.uk/id/local-authority/12UE,Huntingdonshire District Council,200026.00,ADVANTAGE ADVANTAGE,26164,13/11/2019,131942,REDACTED,05/12/2019,300,1500,1800,City Recoverable,Agency Staff,60011
http://statistics.data.gov.uk/id/local-authority/12UE,Huntingdonshire District Council,200026.00,ADVANTAGE ADVANTAGE,27331,20/11/2019,131981,REDACTED,19/12/2019,300,1500,1800,City Recoverable,Agency Staff,60011
http://statistics.data.gov.uk/id/local-authority/12UE,Huntingdonshire District Council,200026.00,ADVANTAGE ADVANTAGE,27332,27/11/2019,132033,REDACTED,19/12/2019,300,1500,1800,City Recoverable,Agency Staff,60011
http://statistics.data.gov.uk/id/local-authority/12UE,Huntingdonshire District Council,200026.00,ADVANTAGE ADVANTAGE,27333,04/12/2019,132079,REDACTED,19/12/2019,300,1500,1800,City Recoverable,Agency Staff,60011
http://statistics.data.gov.uk/id/local-authority/12UE,Huntingdonshire District Council,200026.00,ADVANTAGE ADVANTAGE,23134,24/09/2019,131506,OPS CONSULTANCY,17/10/2019,240,1200,1440,City Recoverable,Agency Staff,60011
http://statistics.data.gov.uk/id/local-authority/12UE,Huntingdonshire District Council,200026.00,ADVANTAGE ADVANTAGE,23765,18/09/2019,131584,REDACTED,17/10/2019,240,1200,1440,City Recoverable,Agency Staff,60011
http://statistics.data.gov.uk/id/local-authority/12UE,Huntingdonshire District Council,200886.00,NICK BURTON LTD,25728,31/10/2019,19/06,PROJECT MANAGEMENT,28/11/2019,0,16200,16200,SCDC Recoverable,Agency Staff,60011
http://statistics.data.gov.uk/id/local-authority/12UE,Huntingdonshire District Council,200886.00,NICK BURTON LTD,24697,25/09/2019,1905,SHARED PLANNING ICT PROJECT,31/10/2019,0,8100,8100,SCDC Recoverable,Agency Staff,60011
http://statistics.data.gov.uk/id/local-authority/12UE,Huntingdonshire District Council,200886.00,NICK BURTON LTD,24696,26/07/2019,19/04,SHARED PLANNING ICT PROJECT,31/10/2019,0,6750,6750,SCDC Recoverable,Agency Staff,60011
http://statistics.data.gov.uk/id/local-authority/12UE,Huntingdonshire District Council,200027.00,ADVANTAGE RESOURCING ADVANTAGE RESOURCING,23188,05/09/2019,90601946,3CICT STAFF,03/10/2019,254.37,1271.86,1526.23,IMD Shared Service,Agency Staff,60011
http://statistics.data.gov.uk/id/local-authority/12UE,Huntingdonshire District Council,200027.00,ADVANTAGE RESOURCING ADVANTAGE RESOURCING,23188,05/09/2019,90601946,3CICT STAFF,03/10/2019,335.34,1676.7,2012.04,IMD Shared Service,Agency Staff,60011
http://statistics.data.gov.uk/id/local-authority/12UE,Huntingdonshire District Council,200816.00,VENN GROUP RECRUITMENT VENN GROUP RECRUITMENT,23321,11/09/2019,3576853,3cict staff,10/10/2019,414,2070,2484,IMD Shared Service,Agency Staff,60011
http://statistics.data.gov.uk/id/local-authority/12UE,Huntingdonshire District Council,200027.00,ADVANTAGE RESOURCING ADVANTAGE RESOURCING,26124,12/09/2019,90603163,REDACTED,28/11/2019,413.1,2065.5,2478.6,IMD Shared Service,Agency Staff,60011
http://statistics.data.gov.uk/id/local-authority/12UE,Huntingdonshire District Council,200027.00,ADVANTAGE RESOURCING ADVANTAGE RESOURCING,23167,24/09/2019,90604381,3CICT,17/10/2019,409.89,2049.46,2459.35,IMD Shared Service,Agency Staff,60011
http://statistics.data.gov.uk/id/local-authority/12UE,Huntingdonshire District Council,200816.00,VENN GROUP RECRUITMENT VENN GROUP RECRUITMENT,24156,26/09/2019,3582048,REDACTED,24/10/2019,345,1725,2070,IMD Shared Service,Agency Staff,60011
http://statistics.data.gov.uk/id/local-authority/12UE,Huntingdonshire District Council,200816.00,VENN GROUP RECRUITMENT VENN GROUP RECRUITMENT,24787,23/10/2019,3591053,REDACTED,13/11/2019,345,1725,2070,IMD Shared Service,Agency Staff,60011
http://statistics.data.gov.uk/id/local-authority/12UE,Huntingdonshire District Council,200816.00,VENN GROUP RECRUITMENT VENN GROUP RECRUITMENT,24788,09/10/2019,3586328,REDACTED,31/10/2019,345,1725,2070,IMD Shared Service,Agency Staff,60011
http://statistics.data.gov.uk/id/local-authority/12UE,Huntingdonshire District Council,200816.00,VENN GROUP RECRUITMENT VENN GROUP RECRUITMENT,24928,18/09/2019,3579139,REDACTED,31/10/2019,345,1725,2070,IMD Shared Service,Agency Staff,60011
http://statistics.data.gov.uk/id/local-authority/12UE,Huntingdonshire District Council,200816.00,VENN GROUP RECRUITMENT VENN GROUP RECRUITMENT,25149,30/10/2019,3593516,REDACTED,21/11/2019,345,1725,2070,IMD Shared Service,Agency Staff,60011
http://statistics.data.gov.uk/id/local-authority/12UE,Huntingdonshire District Council,200816.00,VENN GROUP RECRUITMENT VENN GROUP RECRUITMENT,25484,06/11/2019,3595945,REDACTED,28/11/2019,345,1725,2070,IMD Shared Service,Agency Staff,60011
http://statistics.data.gov.uk/id/local-authority/12UE,Huntingdonshire District Council,200816.00,VENN GROUP RECRUITMENT VENN GROUP RECRUITMENT,23322,04/09/2019,3574384,3cict staff,03/10/2019,310.5,1552.5,1863,IMD Shared Service,Agency Staff,60011
http://statistics.data.gov.uk/id/local-authority/12UE,Huntingdonshire District Council,200816.00,VENN GROUP RECRUITMENT VENN GROUP RECRUITMENT,24790,02/10/2019,3583867,REDACTED,31/10/2019,276,1380,1656,IMD Shared Service,Agency Staff,60011
http://statistics.data.gov.uk/id/local-authority/12UE,Huntingdonshire District Council,200816.00,VENN GROUP RECRUITMENT VENN GROUP RECRUITMENT,25981,13/11/2019,3598478,REDACTED,05/12/2019,276,1380,1656,IMD Shared Service,Agency Staff,60011
http://statistics.data.gov.uk/id/local-authority/12UE,Huntingdonshire District Council,200816.00,VENN GROUP RECRUITMENT VENN GROUP RECRUITMENT,24789,16/10/2019,3588698,REDACTED,08/11/2019,138,690,828,IMD Shared Service,Agency Staff,60011
http://statistics.data.gov.uk/id/local-authority/12UE,Huntingdonshire District Council,201321.00,SIDESTEP CONSULTING,25466,06/11/2019,100241B,REDACTED,13/11/2019,310,1550,1860,Eastnet CPSN,Agency Staff,60011
http://statistics.data.gov.uk/id/local-authority/12UE,Huntingdonshire District Council,201321.00,SIDESTEP CONSULTING,25466,06/11/2019,100241B,REDACTED,13/11/2019,310,1550,1860,Eastnet CPSN,Agency Staff,60011
http://statistics.data.gov.uk/id/local-authority/12UE,Huntingdonshire District Council,201321.00,SIDESTEP CONSULTING,25466,06/11/2019,100241B,REDACTED,13/11/2019,310,1550,1860,Eastnet CPSN,Agency Staff,60011
http://statistics.data.gov.uk/id/local-authority/12UE,Huntingdonshire District Council,201321.00,SIDESTEP CONSULTING,25466,06/11/2019,100241B,REDACTED,13/11/2019,310,1550,1860,Eastnet CPSN,Agency Staff,60011
http://statistics.data.gov.uk/id/local-authority/12UE,Huntingdonshire District Council,201321.00,SIDESTEP CONSULTING,25151,25/09/2019,100233,REDACTED,08/11/2019,300,1500,1800,Eastnet CPSN,Agency Staff,60011
http://statistics.data.gov.uk/id/local-authority/12UE,Huntingdonshire District Council,201321.00,SIDESTEP CONSULTING,25151,25/09/2019,100233,REDACTED,08/11/2019,300,1500,1800,Eastnet CPSN,Agency Staff,60011
http://statistics.data.gov.uk/id/local-authority/12UE,Huntingdonshire District Council,201321.00,SIDESTEP CONSULTING,25151,25/09/2019,100233,REDACTED,08/11/2019,60,300,360,Eastnet CPSN,Agency Staff,60011
http://statistics.data.gov.uk/id/local-authority/12UE,Huntingdonshire District Council,201321.00,SIDESTEP CONSULTING,25465,06/11/2019,100241A,REDACTED,13/11/2019,300,1500,1800,Eastnet CPSN,Agency Staff,60011
http://statistics.data.gov.uk/id/local-authority/12UE,Huntingdonshire District Council,201321.00,SIDESTEP CONSULTING,25465,06/11/2019,100241A,REDACTED,13/11/2019,300,1500,1800,Eastnet CPSN,Agency Staff,60011
http://statistics.data.gov.uk/id/local-authority/12UE,Huntingdonshire District Council,202063.00,NATIONWIDE PEOPLE LTD,26614,11/11/2019,21972,REDACTED,05/12/2019,350,1750,2100,Eastnet CPSN,Agency Staff,60011
http://statistics.data.gov.uk/id/local-authority/12UE,Huntingdonshire District Council,202063.00,NATIONWIDE PEOPLE LTD,26615,24/11/2019,22011,REDACTED,19/12/2019,350,1750,2100,Eastnet CPSN,Agency Staff,60011
http://statistics.data.gov.uk/id/local-authority/12UE,Huntingdonshire District Council,201321.00,SIDESTEP CONSULTING,25152,09/10/2019,100234,REDACTED,08/11/2019,300,1500,1800,Eastnet CPSN,Agency Staff,60011
http://statistics.data.gov.uk/id/local-authority/12UE,Huntingdonshire District Council,200365.00,HAYS HAYS,23213,18/09/2019,1010002354,FINANCE STAFF,10/10/2019,380.73,1903.65,2284.38,Finance,Agency Staff,60011
http://statistics.data.gov.uk/id/local-authority/12UE,Huntingdonshire District Council,200365.00,HAYS HAYS,24140,26/09/2019,1010031529,REDACTED,24/10/2019,380.73,1903.65,2284.38,Finance,Agency Staff,60011
http://statistics.data.gov.uk/id/local-authority/12UE,Huntingdonshire District Council,200365.00,HAYS HAYS,24524,16/10/2019,1010079173,REDACTED,08/11/2019,380.73,1903.65,2284.38,Finance,Agency Staff,60011
http://statistics.data.gov.uk/id/local-authority/12UE,Huntingdonshire District Council,200365.00,HAYS HAYS,24525,16/10/2019,1010057928,REDACTED,08/11/2019,380.73,1903.65,2284.38,Finance,Agency Staff,60011
http://statistics.data.gov.uk/id/local-authority/12UE,Huntingdonshire District Council,200365.00,HAYS HAYS,24803,23/09/2019,1010011628,REDACTED,31/10/2019,380.73,1903.65,2284.38,Finance,Agency Staff,60011
http://statistics.data.gov.uk/id/local-authority/12UE,Huntingdonshire District Council,200365.00,HAYS HAYS,24805,17/10/2019,1010088436,REDACTED,13/11/2019,380.73,1903.65,2284.38,Finance,Agency Staff,60011
http://statistics.data.gov.uk/id/local-authority/12UE,Huntingdonshire District Council,200365.00,HAYS HAYS,25555,07/11/2019,1010115358,REDACTED,05/12/2019,380.73,1903.65,2284.38,Finance,Agency Staff,60011
http://statistics.data.gov.uk/id/local-authority/12UE,Huntingdonshire District Council,200365.00,HAYS HAYS,26216,21/11/2019,1010133192,REDACTED,19/12/2019,380.73,1903.65,2284.38,Finance,Agency Staff,60011
http://statistics.data.gov.uk/id/local-authority/12UE,Huntingdonshire District Council,200365.00,HAYS HAYS,26274,21/11/2019,1010185780,REDACTED,19/12/2019,380.73,1903.65,2284.38,Finance,Agency Staff,60011
http://statistics.data.gov.uk/id/local-authority/12UE,Huntingdonshire District Council,200365.00,HAYS HAYS,26275,21/11/2019,1010177414,REDACTED,19/12/2019,380.73,1903.65,2284.38,Finance,Agency Staff,60011
http://statistics.data.gov.uk/id/local-authority/12UE,Huntingdonshire District Council,200365.00,HAYS HAYS,26605,28/11/2019,1010202273,REDACTED,19/12/2019,380.73,1903.65,2284.38,Finance,Agency Staff,60011
http://statistics.data.gov.uk/id/local-authority/12UE,Huntingdonshire District Council,200365.00,HAYS HAYS,24396,07/10/2019,1010051268,REDACTED,31/10/2019,218.42,1092.12,1310.54,Finance,Agency Staff,60011
http://statistics.data.gov.uk/id/local-authority/12UE,Huntingdonshire District Council,200365.00,HAYS HAYS,22827,05/09/2019,1009928344,REDACTED,03/10/2019,215.55,1077.75,1293.3,Finance,Agency Staff,60011
http://statistics.data.gov.uk/id/local-authority/12UE,Huntingdonshire District Council,200365.00,HAYS HAYS,23212,18/09/2019,1009995952,FINANCE STAFF,10/10/2019,215.55,1077.75,1293.3,Finance,Agency Staff,60011
http://statistics.data.gov.uk/id/local-authority/12UE,Huntingdonshire District Council,200365.00,HAYS HAYS,23262,23/09/2019,1010013534,FINANCE STAFF,17/10/2019,215.55,1077.75,1293.3,Finance,Agency Staff,60011
http://statistics.data.gov.uk/id/local-authority/12UE,Huntingdonshire District Council,200365.00,HAYS HAYS,24415,11/10/2019,1010071799,REDACTED,08/11/2019,215.55,1077.75,1293.3,Finance,Agency Staff,60011
http://statistics.data.gov.uk/id/local-authority/12UE,Huntingdonshire District Council,200365.00,HAYS HAYS,25227,31/10/2019,1010129858,REDACTED,28/11/2019,215.55,1077.75,1293.3,Finance,Agency Staff,60011
http://statistics.data.gov.uk/id/local-authority/12UE,Huntingdonshire District Council,200365.00,HAYS HAYS,25910,14/11/2019,101064304,REDACTED,12/12/2019,215.55,1077.75,1293.3,Finance,Agency Staff,60011
http://statistics.data.gov.uk/id/local-authority/12UE,Huntingdonshire District Council,200365.00,HAYS HAYS,24139,26/09/2019,1010034439,REDACTED,24/10/2019,214.11,1070.57,1284.68,Finance,Agency Staff,60011
http://statistics.data.gov.uk/id/local-authority/12UE,Huntingdonshire District Council,200365.00,HAYS HAYS,25231,24/10/2019,1010113593,REDACTED,21/11/2019,212.68,1063.38,1276.06,Finance,Agency Staff,60011
http://statistics.data.gov.uk/id/local-authority/12UE,Huntingdonshire District Council,200365.00,HAYS HAYS,25233,17/10/2019,1010088328,REDACTED,13/11/2019,212.68,1063.38,1276.06,Finance,Agency Staff,60011
http://statistics.data.gov.uk/id/local-authority/12UE,Huntingdonshire District Council,200365.00,HAYS HAYS,26456,21/11/2019,101085013,REDACTED,19/12/2019,212.68,1063.38,1276.06,Finance,Agency Staff,60011
http://statistics.data.gov.uk/id/local-authority/12UE,Huntingdonshire District Council,200365.00,HAYS HAYS,25559,07/11/2019,1010149599,REDACTED,05/12/2019,204.05,1020.27,1224.32,Finance,Agency Staff,60011
http://statistics.data.gov.uk/id/local-authority/12UE,Huntingdonshire District Council,200365.00,HAYS HAYS,26604,28/11/2019,1010205266,REDACTED,19/12/2019,169.57,847.83,1017.4,Finance,Agency Staff,60011
http://statistics.data.gov.uk/id/local-authority/12UE,Huntingdonshire District Council,200297.00,FIRST RECRUITMENT GROUP LTD FIRST RECRUITMENT GROUP LTD,23732,18/09/2019,358382,REDACTED,17/10/2019,95.46,477.3,572.76,Finance,Agency Staff,60011
http://statistics.data.gov.uk/id/local-authority/12UE,Huntingdonshire District Council,200297.00,FIRST RECRUITMENT GROUP LTD FIRST RECRUITMENT GROUP LTD,23737,11/09/2019,357738,REDACTED,17/10/2019,95.46,477.3,572.76,Finance,Agency Staff,60011
http://statistics.data.gov.uk/id/local-authority/12UE,Huntingdonshire District Council,200297.00,FIRST RECRUITMENT GROUP LTD FIRST RECRUITMENT GROUP LTD,24550,02/10/2019,359662,REDACTED,24/10/2019,95.46,477.3,572.76,Finance,Agency Staff,60011
http://statistics.data.gov.uk/id/local-authority/12UE,Huntingdonshire District Council,200297.00,FIRST RECRUITMENT GROUP LTD FIRST RECRUITMENT GROUP LTD,24551,09/10/2019,360309,REDACTED,31/10/2019,95.46,477.3,572.76,Finance,Agency Staff,60011
http://statistics.data.gov.uk/id/local-authority/12UE,Huntingdonshire District Council,200297.00,FIRST RECRUITMENT GROUP LTD FIRST RECRUITMENT GROUP LTD,25341,23/10/2019,361657,REDACTED,13/11/2019,95.46,477.3,572.76,Finance,Agency Staff,60011
http://statistics.data.gov.uk/id/local-authority/12UE,Huntingdonshire District Council,200297.00,FIRST RECRUITMENT GROUP LTD FIRST RECRUITMENT GROUP LTD,25342,16/10/2019,361040,REDACTED,08/11/2019,95.46,477.3,572.76,Finance,Agency Staff,60011
http://statistics.data.gov.uk/id/local-authority/12UE,Huntingdonshire District Council,200297.00,FIRST RECRUITMENT GROUP LTD FIRST RECRUITMENT GROUP LTD,26376,13/11/2019,363485,REDACTED,05/12/2019,95.46,477.3,572.76,Finance,Agency Staff,60011
http://statistics.data.gov.uk/id/local-authority/12UE,Huntingdonshire District Council,200297.00,FIRST RECRUITMENT GROUP LTD FIRST RECRUITMENT GROUP LTD,26377,20/11/2019,364086,REDACTED,12/12/2019,95.46,477.3,572.76,Finance,Agency Staff,60011
http://statistics.data.gov.uk/id/local-authority/12UE,Huntingdonshire District Council,200297.00,FIRST RECRUITMENT GROUP LTD FIRST RECRUITMENT GROUP LTD,27176,04/12/2019,365327,REDACTED,19/12/2019,95.46,477.3,572.76,Finance,Agency Staff,60011
http://statistics.data.gov.uk/id/local-authority/12UE,Huntingdonshire District Council,200297.00,FIRST RECRUITMENT GROUP LTD FIRST RECRUITMENT GROUP LTD,27177,27/11/2019,364700,REDACTED,19/12/2019,95.46,477.3,572.76,Finance,Agency Staff,60011
http://statistics.data.gov.uk/id/local-authority/12UE,Huntingdonshire District Council,200537.00,MEYER SCOTT RECRUITMENT LIMITED MEYER SCOTT RECRUITMENT LIMITED,25217,16/09/2019,39419,REDACTED,08/11/2019,81.12,405.6,486.72,Finance,Agency Staff,60011
http://statistics.data.gov.uk/id/local-authority/12UE,Huntingdonshire District Council,200537.00,MEYER SCOTT RECRUITMENT LIMITED MEYER SCOTT RECRUITMENT LIMITED,25218,22/07/2019,39128,REDACTED,08/11/2019,81.12,405.6,486.72,Finance,Agency Staff,60011
http://statistics.data.gov.uk/id/local-authority/12UE,Huntingdonshire District Council,200537.00,MEYER SCOTT RECRUITMENT LIMITED MEYER SCOTT RECRUITMENT LIMITED,25219,02/09/2019,39334,REDACTED,08/11/2019,81.12,405.6,486.72,Finance,Agency Staff,60011
http://statistics.data.gov.uk/id/local-authority/12UE,Huntingdonshire District Council,200537.00,MEYER SCOTT RECRUITMENT LIMITED MEYER SCOTT RECRUITMENT LIMITED,25220,09/09/2019,39376,REDACTED,08/11/2019,81.12,405.6,486.72,Finance,Agency Staff,60011
http://statistics.data.gov.uk/id/local-authority/12UE,Huntingdonshire District Council,200537.00,MEYER SCOTT RECRUITMENT LIMITED MEYER SCOTT RECRUITMENT LIMITED,25222,29/07/2019,39160,REDACTED,08/11/2019,81.12,405.6,486.72,Finance,Agency Staff,60011
http://statistics.data.gov.uk/id/local-authority/12UE,Huntingdonshire District Council,200537.00,MEYER SCOTT RECRUITMENT LIMITED MEYER SCOTT RECRUITMENT LIMITED,25224,23/09/2019,39458,REDACTED,08/11/2019,81.12,405.6,486.72,Finance,Agency Staff,60011
http://statistics.data.gov.uk/id/local-authority/12UE,Huntingdonshire District Council,200297.00,FIRST RECRUITMENT GROUP LTD FIRST RECRUITMENT GROUP LTD,23733,25/09/2019,359024,REDACTED,17/10/2019,77.4,387,464.4,Finance,Agency Staff,60011
http://statistics.data.gov.uk/id/local-authority/12UE,Huntingdonshire District Council,200297.00,FIRST RECRUITMENT GROUP LTD FIRST RECRUITMENT GROUP LTD,23736,04/09/2019,356997,REDACTED,17/10/2019,76.11,380.55,456.66,Finance,Agency Staff,60011
http://statistics.data.gov.uk/id/local-authority/12UE,Huntingdonshire District Council,200297.00,FIRST RECRUITMENT GROUP LTD FIRST RECRUITMENT GROUP LTD,25614,30/10/2019,362261,REDACTED,21/11/2019,74.82,374.1,448.92,Finance,Agency Staff,60011
http://statistics.data.gov.uk/id/local-authority/12UE,Huntingdonshire District Council,202077.00,PARK AVENUE RECRUITMENT LTD,27192,27/11/2019,563491,REDACTED,19/12/2019,391.3,1956.5,2347.8,Development Management,Agency Staff,60011
http://statistics.data.gov.uk/id/local-authority/12UE,Huntingdonshire District Council,202077.00,PARK AVENUE RECRUITMENT LTD,26973,04/12/2019,567388,REDACTED,19/12/2019,318.2,1591,1909.2,Development Management,Agency Staff,60011
http://statistics.data.gov.uk/id/local-authority/12UE,Huntingdonshire District Council,202077.00,PARK AVENUE RECRUITMENT LTD,27191,27/11/2019,563492,REDACTED,19/12/2019,318.2,1591,1909.2,Development Management,Agency Staff,60011
http://statistics.data.gov.uk/id/local-authority/12UE,Huntingdonshire District Council,200918.00,1ST CHOICE RECRUITMENT,24151,31/08/2019,4000008067,REDACTED,24/10/2019,3.12,15.57,18.69,Operations Business Support,Agency Staff,60011
http://statistics.data.gov.uk/id/local-authority/12UE,Huntingdonshire District Council,200918.00,1ST CHOICE RECRUITMENT,24151,31/08/2019,4000008067,REDACTED,24/10/2019,45.44,227.21,272.65,Operations Business Support,Agency Staff,60011
http://statistics.data.gov.uk/id/local-authority/12UE,Huntingdonshire District Council,200918.00,1ST CHOICE RECRUITMENT,24151,31/08/2019,4000008067,REDACTED,24/10/2019,2.49,12.45,14.94,Operations Business Support,Agency Staff,60011
http://statistics.data.gov.uk/id/local-authority/12UE,Huntingdonshire District Council,200879.00,CHURCHILL SECURITY SOLUTIONS LTD,25813,31/10/2019,75532,PFH OCT 19,28/11/2019,1526.66,7633.3,9159.96,Pathfinder House,Agency Staff,60011
http://statistics.data.gov.uk/id/local-authority/12UE,Huntingdonshire District Council,200879.00,CHURCHILL SECURITY SOLUTIONS LTD,27323,30/11/2019,75826,AGENCY STAFF,19/12/2019,1415.22,7076.12,8491.34,Pathfinder House,Agency Staff,60011
http://statistics.data.gov.uk/id/local-authority/12UE,Huntingdonshire District Council,200879.00,CHURCHILL SECURITY SOLUTIONS LTD,23481,31/08/2019,74898,OPS - SECURITY,10/10/2019,1408.67,7043.35,8452.02,Pathfinder House,Agency Staff,60011
http://statistics.data.gov.uk/id/local-authority/12UE,Huntingdonshire District Council,200879.00,CHURCHILL SECURITY SOLUTIONS LTD,24092,30/09/2019,75225,PFH,24/10/2019,1402.77,7013.85,8416.62,Pathfinder House,Agency Staff,60011
http://statistics.data.gov.uk/id/local-authority/12UE,Huntingdonshire District Council,201114.00,XP RECRUITMENT LTD,23302,14/09/2019,8491,OPS STAFF,10/10/2019,58.05,290.25,348.3,Trade Refuse,Agency Staff,60011
http://statistics.data.gov.uk/id/local-authority/12UE,Huntingdonshire District Council,200743.00,STAFFLINE GROUP STAFFLINE GROUP,23557,20/09/2019,35895,ops comm waste,17/10/2019,85.91,429.57,515.48,Trade Refuse,Agency Staff,60011
http://statistics.data.gov.uk/id/local-authority/12UE,Huntingdonshire District Council,200280.00,ERNST & YOUNG ERNST & YOUNG,24138,19/09/2019,GB10100177106,AUDIT SERVICES,24/10/2019,2049.6,10248,12297.6,Corporate Finance,Audit Fees,62100
http://statistics.data.gov.uk/id/local-authority/12UE,Huntingdonshire District Council,201012.00,COACH & HORSES,23251,16/09/2019,401,HLESS ACCOMMODATION,03/10/2019,56,280,336,Homelessness,B&B Accommodation,64401
http://statistics.data.gov.uk/id/local-authority/12UE,Huntingdonshire District Council,201012.00,COACH & HORSES,23253,23/09/2019,402,HLESS ACCOMMODATION,03/10/2019,56,280,336,Homelessness,B&B Accommodation,64401
http://statistics.data.gov.uk/id/local-authority/12UE,Huntingdonshire District Council,201012.00,COACH & HORSES,24472,14/10/2019,405,07-13/10/19,24/10/2019,56,280,336,Homelessness,B&B Accommodation,64401
http://statistics.data.gov.uk/id/local-authority/12UE,Huntingdonshire District Council,201012.00,COACH & HORSES,23782,30/09/2019,403,23-29/09/19,17/10/2019,56,280,336,Homelessness,B&B Accommodation,64401
http://statistics.data.gov.uk/id/local-authority/12UE,Huntingdonshire District Council,201012.00,COACH & HORSES,24153,07/10/2019,404,30/09-06/10/19,24/10/2019,56,280,336,Homelessness,B&B Accommodation,64401
http://statistics.data.gov.uk/id/local-authority/12UE,Huntingdonshire District Council,200808.00,IMPERIAL PORTFOLIOS LTD,23962,01/10/2019,SEP001_HUNT_2019,SEPT 2019,17/10/2019,45,225,270,Homelessness,B&B Accommodation,64401
http://statistics.data.gov.uk/id/local-authority/12UE,Huntingdonshire District Council,201011.00,CENTENNIAL PROPERTY LTD,23252,16/09/2019,CP-HDC067,HLESS ACCOMMODATION,03/10/2019,0,570,570,Homelessness,B&B Accommodation,64401
http://statistics.data.gov.uk/id/local-authority/12UE,Huntingdonshire District Council,201011.00,CENTENNIAL PROPERTY LTD,24621,17/10/2019,CP-HDC069,1-16 OCT 19,31/10/2019,0,608,608,Homelessness,B&B Accommodation,64401
http://statistics.data.gov.uk/id/local-authority/12UE,Huntingdonshire District Council,201011.00,CENTENNIAL PROPERTY LTD,26209,16/11/2019,CP-HDC071,1-15 NOV 19,28/11/2019,0,570,570,Homelessness,B&B Accommodation,64401
http://statistics.data.gov.uk/id/local-authority/12UE,Huntingdonshire District Council,201011.00,CENTENNIAL PROPERTY LTD,23960,01/10/2019,CP-HDC068,16-30 SEPT 2019,17/10/2019,0,570,570,Homelessness,B&B Accommodation,64401
http://statistics.data.gov.uk/id/local-authority/12UE,Huntingdonshire District Council,201011.00,CENTENNIAL PROPERTY LTD,25304,01/11/2019,CP-HDC070,17-31 OCT 19,08/11/2019,0,570,570,Homelessness,B&B Accommodation,64401
http://statistics.data.gov.uk/id/local-authority/12UE,Huntingdonshire District Council,201011.00,CENTENNIAL PROPERTY LTD,26749,01/12/2019,CP-HDC072,16-30 NOV 19,05/12/2019,0,570,570,Homelessness,B&B Accommodation,64401
http://statistics.data.gov.uk/id/local-authority/12UE,Huntingdonshire District Council,201011.00,CENTENNIAL PROPERTY LTD,23252,16/09/2019,CP-HDC067,HLESS ACCOMMODATION,03/10/2019,0,570,570,Homelessness,B&B Accommodation,64401
http://statistics.data.gov.uk/id/local-authority/12UE,Huntingdonshire District Council,201011.00,CENTENNIAL PROPERTY LTD,24621,17/10/2019,CP-HDC069,1-16 OCT 19,31/10/2019,0,608,608,Homelessness,B&B Accommodation,64401
http://statistics.data.gov.uk/id/local-authority/12UE,Huntingdonshire District Council,201011.00,CENTENNIAL PROPERTY LTD,26209,16/11/2019,CP-HDC071,1-15 NOV 19,28/11/2019,0,570,570,Homelessness,B&B Accommodation,64401
http://statistics.data.gov.uk/id/local-authority/12UE,Huntingdonshire District Council,201011.00,CENTENNIAL PROPERTY LTD,23960,01/10/2019,CP-HDC068,16-30 SEPT 2019,17/10/2019,0,570,570,Homelessness,B&B Accommodation,64401
http://statistics.data.gov.uk/id/local-authority/12UE,Huntingdonshire District Council,201011.00,CENTENNIAL PROPERTY LTD,25304,01/11/2019,CP-HDC070,17-31 OCT 19,08/11/2019,0,570,570,Homelessness,B&B Accommodation,64401
http://statistics.data.gov.uk/id/local-authority/12UE,Huntingdonshire District Council,201011.00,CENTENNIAL PROPERTY LTD,26749,01/12/2019,CP-HDC072,16-30 NOV 19,05/12/2019,0,570,570,Homelessness,B&B Accommodation,64401
http://statistics.data.gov.uk/id/local-authority/12UE,Huntingdonshire District Council,200673.00,RENT CONNECT RENT CONNECT,23959,01/10/2019,RC-HDC068,SEPT 2019,17/10/2019,0,418,418,Homelessness,B&B Accommodation,64401
http://statistics.data.gov.uk/id/local-authority/12UE,Huntingdonshire District Council,200673.00,RENT CONNECT RENT CONNECT,23243,16/09/2019,RC-HDC067,HLESS ACCOMMODATION,03/10/2019,0,570,570,Homelessness,B&B Accommodation,64401
http://statistics.data.gov.uk/id/local-authority/12UE,Huntingdonshire District Council,201011.00,CENTENNIAL PROPERTY LTD,23252,16/09/2019,CP-HDC067,HLESS ACCOMMODATION,03/10/2019,0,570,570,Homelessness,B&B Accommodation,64401
http://statistics.data.gov.uk/id/local-authority/12UE,Huntingdonshire District Council,201011.00,CENTENNIAL PROPERTY LTD,24621,17/10/2019,CP-HDC069,1-16 OCT 19,31/10/2019,0,380,380,Homelessness,B&B Accommodation,64401
http://statistics.data.gov.uk/id/local-authority/12UE,Huntingdonshire District Council,201011.00,CENTENNIAL PROPERTY LTD,23960,01/10/2019,CP-HDC068,16-30 SEPT 2019,17/10/2019,0,570,570,Homelessness,B&B Accommodation,64401
http://statistics.data.gov.uk/id/local-authority/12UE,Huntingdonshire District Council,200673.00,RENT CONNECT RENT CONNECT,24570,17/10/2019,RC-HDC069,OCT 2019,31/10/2019,0,560,560,Homelessness,B&B Accommodation,64401
http://statistics.data.gov.uk/id/local-authority/12UE,Huntingdonshire District Council,200673.00,RENT CONNECT RENT CONNECT,23959,01/10/2019,RC-HDC068,SEPT 2019,17/10/2019,0,525,525,Homelessness,B&B Accommodation,64401
http://statistics.data.gov.uk/id/local-authority/12UE,Huntingdonshire District Council,200673.00,RENT CONNECT RENT CONNECT,25850,01/11/2019,RC-HDC070,OCT 2019,21/11/2019,0,525,525,Homelessness,B&B Accommodation,64401
http://statistics.data.gov.uk/id/local-authority/12UE,Huntingdonshire District Council,200673.00,RENT CONNECT RENT CONNECT,23243,16/09/2019,RC-HDC067,HLESS ACCOMMODATION,03/10/2019,0,525,525,Homelessness,B&B Accommodation,64401
http://statistics.data.gov.uk/id/local-authority/12UE,Huntingdonshire District Council,200673.00,RENT CONNECT RENT CONNECT,26264,19/11/2019,RC-HDC071,NOV 19,28/11/2019,0,525,525,Homelessness,B&B Accommodation,64401
http://statistics.data.gov.uk/id/local-authority/12UE,Huntingdonshire District Council,200673.00,RENT CONNECT RENT CONNECT,26750,01/12/2019,RC-HDC072,DECEMBER 2019,05/12/2019,0,525,525,Homelessness,B&B Accommodation,64401
http://statistics.data.gov.uk/id/local-authority/12UE,Huntingdonshire District Council,200808.00,IMPERIAL PORTFOLIOS LTD,23962,01/10/2019,SEP001_HUNT_2019,SEPT 2019,17/10/2019,270,1350,1620,Homelessness,B&B Accommodation,64401
http://statistics.data.gov.uk/id/local-authority/12UE,Huntingdonshire District Council,200808.00,IMPERIAL PORTFOLIOS LTD,25303,01/11/2019,OCT001_HUNT_2019,OCT 19,08/11/2019,279,1395,1674,Homelessness,B&B Accommodation,64401
http://statistics.data.gov.uk/id/local-authority/12UE,Huntingdonshire District Council,200808.00,IMPERIAL PORTFOLIOS LTD,26751,01/12/2019,NOV001_HUNT_2019,NOVEMBER 2019,05/12/2019,270,1350,1620,Homelessness,B&B Accommodation,64401
http://statistics.data.gov.uk/id/local-authority/12UE,Huntingdonshire District Council,201012.00,COACH & HORSES,23251,16/09/2019,401,HLESS ACCOMMODATION,03/10/2019,56,280,336,Homelessness,B&B Accommodation,64401
http://statistics.data.gov.uk/id/local-authority/12UE,Huntingdonshire District Council,201012.00,COACH & HORSES,23253,23/09/2019,402,HLESS ACCOMMODATION,03/10/2019,56,280,336,Homelessness,B&B Accommodation,64401
http://statistics.data.gov.uk/id/local-authority/12UE,Huntingdonshire District Council,201012.00,COACH & HORSES,24472,14/10/2019,405,07-13/10/19,24/10/2019,56,280,336,Homelessness,B&B Accommodation,64401
http://statistics.data.gov.uk/id/local-authority/12UE,Huntingdonshire District Council,201012.00,COACH & HORSES,23782,30/09/2019,403,23-29/09/19,17/10/2019,56,280,336,Homelessness,B&B Accommodation,64401
http://statistics.data.gov.uk/id/local-authority/12UE,Huntingdonshire District Council,201012.00,COACH & HORSES,26390,25/11/2019,411,18-24/11/19,28/11/2019,56,280,336,Homelessness,B&B Accommodation,64401
http://statistics.data.gov.uk/id/local-authority/12UE,Huntingdonshire District Council,201012.00,COACH & HORSES,25321,04/11/2019,408,28/10-03/11/19,08/11/2019,56,280,336,Homelessness,B&B Accommodation,64401
http://statistics.data.gov.uk/id/local-authority/12UE,Huntingdonshire District Council,201012.00,COACH & HORSES,25147,28/10/2019,407,21-27/10/19,08/11/2019,56,280,336,Homelessness,B&B Accommodation,64401
http://statistics.data.gov.uk/id/local-authority/12UE,Huntingdonshire District Council,201012.00,COACH & HORSES,24153,07/10/2019,404,30/09-06/10/19,24/10/2019,56,280,336,Homelessness,B&B Accommodation,64401
http://statistics.data.gov.uk/id/local-authority/12UE,Huntingdonshire District Council,201012.00,COACH & HORSES,25905,11/11/2019,409,04-10/11/19,21/11/2019,56,280,336,Homelessness,B&B Accommodation,64401
http://statistics.data.gov.uk/id/local-authority/12UE,Huntingdonshire District Council,201012.00,COACH & HORSES,26628,02/12/2019,412,25/11 - 01/12/19,05/12/2019,56,280,336,Homelessness,B&B Accommodation,64401
http://statistics.data.gov.uk/id/local-authority/12UE,Huntingdonshire District Council,201012.00,COACH & HORSES,25976,18/11/2019,410,11-17/11/19,21/11/2019,56,280,336,Homelessness,B&B Accommodation,64401
http://statistics.data.gov.uk/id/local-authority/12UE,Huntingdonshire District Council,201012.00,COACH & HORSES,27195,09/12/2019,413,02-08/12/19,19/12/2019,16,80,96,Homelessness,B&B Accommodation,64401
http://statistics.data.gov.uk/id/local-authority/12UE,Huntingdonshire District Council,201012.00,COACH & HORSES,24281,21/10/2019,406,14-20/10/19,24/10/2019,56,280,336,Homelessness,B&B Accommodation,64401
http://statistics.data.gov.uk/id/local-authority/12UE,Huntingdonshire District Council,201012.00,COACH & HORSES,24472,14/10/2019,405,07-13/10/19,24/10/2019,40,200,240,Homelessness,B&B Accommodation,64401
http://statistics.data.gov.uk/id/local-authority/12UE,Huntingdonshire District Council,201012.00,COACH & HORSES,26390,25/11/2019,411,18-24/11/19,28/11/2019,56,280,336,Homelessness,B&B Accommodation,64401
http://statistics.data.gov.uk/id/local-authority/12UE,Huntingdonshire District Council,201012.00,COACH & HORSES,25321,04/11/2019,408,28/10-03/11/19,08/11/2019,56,280,336,Homelessness,B&B Accommodation,64401
http://statistics.data.gov.uk/id/local-authority/12UE,Huntingdonshire District Council,201012.00,COACH & HORSES,25147,28/10/2019,407,21-27/10/19,08/11/2019,56,280,336,Homelessness,B&B Accommodation,64401
http://statistics.data.gov.uk/id/local-authority/12UE,Huntingdonshire District Council,201012.00,COACH & HORSES,25905,11/11/2019,409,04-10/11/19,21/11/2019,56,280,336,Homelessness,B&B Accommodation,64401
http://statistics.data.gov.uk/id/local-authority/12UE,Huntingdonshire District Council,201012.00,COACH & HORSES,26628,02/12/2019,412,25/11 - 01/12/19,05/12/2019,56,280,336,Homelessness,B&B Accommodation,64401
http://statistics.data.gov.uk/id/local-authority/12UE,Huntingdonshire District Council,201012.00,COACH & HORSES,25976,18/11/2019,410,11-17/11/19,21/11/2019,56,280,336,Homelessness,B&B Accommodation,64401
http://statistics.data.gov.uk/id/local-authority/12UE,Huntingdonshire District Council,201012.00,COACH & HORSES,27195,09/12/2019,413,02-08/12/19,19/12/2019,56,280,336,Homelessness,B&B Accommodation,64401
http://statistics.data.gov.uk/id/local-authority/12UE,Huntingdonshire District Council,201012.00,COACH & HORSES,24281,21/10/2019,406,14-20/10/19,24/10/2019,56,280,336,Homelessness,B&B Accommodation,64401
http://statistics.data.gov.uk/id/local-authority/12UE,Huntingdonshire District Council,200787.00,THE STATION HOTEL THE STATION HOTEL,23249,11/09/2019,51/2019,HLESS ACCOMMODATION,03/10/2019,0,525,525,Homelessness,B&B Accommodation,64401
http://statistics.data.gov.uk/id/local-authority/12UE,Huntingdonshire District Council,200787.00,THE STATION HOTEL THE STATION HOTEL,23783,24/09/2019,55/2019,REDACTED,17/10/2019,0,525,525,Homelessness,B&B Accommodation,64401
http://statistics.data.gov.uk/id/local-authority/12UE,Huntingdonshire District Council,200787.00,THE STATION HOTEL THE STATION HOTEL,23787,17/09/2019,53/2019,REDACTED,17/10/2019,0,525,525,Homelessness,B&B Accommodation,64401
http://statistics.data.gov.uk/id/local-authority/12UE,Huntingdonshire District Council,200787.00,THE STATION HOTEL THE STATION HOTEL,23961,01/10/2019,57/2019,REDACTED,17/10/2019,0,525,525,Homelessness,B&B Accommodation,64401
http://statistics.data.gov.uk/id/local-authority/12UE,Huntingdonshire District Council,200787.00,THE STATION HOTEL THE STATION HOTEL,25343,08/10/2019,59/2019,REDACTED,08/11/2019,0,525,525,Homelessness,B&B Accommodation,64401
http://statistics.data.gov.uk/id/local-authority/12UE,Huntingdonshire District Council,200787.00,THE STATION HOTEL THE STATION HOTEL,23248,13/09/2019,52/2019,HLESS ACCOMMODATION,03/10/2019,0,350,350,Homelessness,B&B Accommodation,64401
http://statistics.data.gov.uk/id/local-authority/12UE,Huntingdonshire District Council,200787.00,THE STATION HOTEL THE STATION HOTEL,23784,05/09/2019,50/2019,REDACTED,17/10/2019,0,350,350,Homelessness,B&B Accommodation,64401
http://statistics.data.gov.uk/id/local-authority/12UE,Huntingdonshire District Council,200787.00,THE STATION HOTEL THE STATION HOTEL,23785,19/09/2019,54/2019,REDACTED,17/10/2019,0,350,350,Homelessness,B&B Accommodation,64401
http://statistics.data.gov.uk/id/local-authority/12UE,Huntingdonshire District Council,200787.00,THE STATION HOTEL THE STATION HOTEL,23786,26/09/2019,56/2019,REDACTED,17/10/2019,0,350,350,Homelessness,B&B Accommodation,64401
http://statistics.data.gov.uk/id/local-authority/12UE,Huntingdonshire District Council,200787.00,THE STATION HOTEL THE STATION HOTEL,25720,03/10/2019,58/2019,REDACTED,13/11/2019,0,350,350,Homelessness,B&B Accommodation,64401
http://statistics.data.gov.uk/id/local-authority/12UE,Huntingdonshire District Council,201012.00,COACH & HORSES,25321,04/11/2019,408,28/10-03/11/19,08/11/2019,8,40,48,Homelessness,B&B Accommodation,64401
http://statistics.data.gov.uk/id/local-authority/12UE,Huntingdonshire District Council,201012.00,COACH & HORSES,25147,28/10/2019,407,21-27/10/19,08/11/2019,32,160,192,Homelessness,B&B Accommodation,64401
http://statistics.data.gov.uk/id/local-authority/12UE,Huntingdonshire District Council,201012.00,COACH & HORSES,23251,16/09/2019,401,HLESS ACCOMMODATION,03/10/2019,56,280,336,Homelessness,B&B Accommodation,64401
http://statistics.data.gov.uk/id/local-authority/12UE,Huntingdonshire District Council,201012.00,COACH & HORSES,23253,23/09/2019,402,HLESS ACCOMMODATION,03/10/2019,56,280,336,Homelessness,B&B Accommodation,64401
http://statistics.data.gov.uk/id/local-authority/12UE,Huntingdonshire District Council,201012.00,COACH & HORSES,23782,30/09/2019,403,23-29/09/19,17/10/2019,56,280,336,Homelessness,B&B Accommodation,64401
http://statistics.data.gov.uk/id/local-authority/12UE,Huntingdonshire District Council,201012.00,COACH & HORSES,25321,04/11/2019,408,28/10-03/11/19,08/11/2019,16,80,96,Homelessness,B&B Accommodation,64401
http://statistics.data.gov.uk/id/local-authority/12UE,Huntingdonshire District Council,201012.00,COACH & HORSES,25147,28/10/2019,407,21-27/10/19,08/11/2019,56,280,336,Homelessness,B&B Accommodation,64401
http://statistics.data.gov.uk/id/local-authority/12UE,Huntingdonshire District Council,201012.00,COACH & HORSES,24153,07/10/2019,404,30/09-06/10/19,24/10/2019,8,40,48,Homelessness,B&B Accommodation,64401
http://statistics.data.gov.uk/id/local-authority/12UE,Huntingdonshire District Council,201012.00,COACH & HORSES,24281,21/10/2019,406,14-20/10/19,24/10/2019,8,40,48,Homelessness,B&B Accommodation,64401
http://statistics.data.gov.uk/id/local-authority/12UE,Huntingdonshire District Council,201011.00,CENTENNIAL PROPERTY LTD,26209,16/11/2019,CP-HDC071,1-15 NOV 19,28/11/2019,0,360,360,Homelessness,B&B Accommodation,64401
http://statistics.data.gov.uk/id/local-authority/12UE,Huntingdonshire District Council,201011.00,CENTENNIAL PROPERTY LTD,26749,01/12/2019,CP-HDC072,16-30 NOV 19,05/12/2019,0,675,675,Homelessness,B&B Accommodation,64401
http://statistics.data.gov.uk/id/local-authority/12UE,Huntingdonshire District Council,201011.00,CENTENNIAL PROPERTY LTD,23252,16/09/2019,CP-HDC067,HLESS ACCOMMODATION,03/10/2019,0,825,825,Homelessness,B&B Accommodation,64401
http://statistics.data.gov.uk/id/local-authority/12UE,Huntingdonshire District Council,201011.00,CENTENNIAL PROPERTY LTD,23960,01/10/2019,CP-HDC068,16-30 SEPT 2019,17/10/2019,0,165,165,Homelessness,B&B Accommodation,64401
http://statistics.data.gov.uk/id/local-authority/12UE,Huntingdonshire District Council,200808.00,IMPERIAL PORTFOLIOS LTD,23962,01/10/2019,SEP001_HUNT_2019,SEPT 2019,17/10/2019,270,1350,1620,Homelessness,B&B Accommodation,64401
http://statistics.data.gov.uk/id/local-authority/12UE,Huntingdonshire District Council,200808.00,IMPERIAL PORTFOLIOS LTD,25303,01/11/2019,OCT001_HUNT_2019,OCT 19,08/11/2019,279,1395,1674,Homelessness,B&B Accommodation,64401
http://statistics.data.gov.uk/id/local-authority/12UE,Huntingdonshire District Council,200808.00,IMPERIAL PORTFOLIOS LTD,26751,01/12/2019,NOV001_HUNT_2019,NOVEMBER 2019,05/12/2019,54,270,324,Homelessness,B&B Accommodation,64401
http://statistics.data.gov.uk/id/local-authority/12UE,Huntingdonshire District Council,200673.00,RENT CONNECT RENT CONNECT,24570,17/10/2019,RC-HDC069,OCT 2019,31/10/2019,0,720,720,Homelessness,B&B Accommodation,64401
http://statistics.data.gov.uk/id/local-authority/12UE,Huntingdonshire District Council,200673.00,RENT CONNECT RENT CONNECT,23959,01/10/2019,RC-HDC068,SEPT 2019,17/10/2019,0,675,675,Homelessness,B&B Accommodation,64401
http://statistics.data.gov.uk/id/local-authority/12UE,Huntingdonshire District Council,200673.00,RENT CONNECT RENT CONNECT,25850,01/11/2019,RC-HDC070,OCT 2019,21/11/2019,0,360,360,Homelessness,B&B Accommodation,64401
http://statistics.data.gov.uk/id/local-authority/12UE,Huntingdonshire District Council,200673.00,RENT CONNECT RENT CONNECT,23243,16/09/2019,RC-HDC067,HLESS ACCOMMODATION,03/10/2019,0,675,675,Homelessness,B&B Accommodation,64401
http://statistics.data.gov.uk/id/local-authority/12UE,Huntingdonshire District Council,200808.00,IMPERIAL PORTFOLIOS LTD,23962,01/10/2019,SEP001_HUNT_2019,SEPT 2019,17/10/2019,270,1350,1620,Homelessness,B&B Accommodation,64401
http://statistics.data.gov.uk/id/local-authority/12UE,Huntingdonshire District Council,200808.00,IMPERIAL PORTFOLIOS LTD,25303,01/11/2019,OCT001_HUNT_2019,OCT 19,08/11/2019,279,1395,1674,Homelessness,B&B Accommodation,64401
http://statistics.data.gov.uk/id/local-authority/12UE,Huntingdonshire District Council,200808.00,IMPERIAL PORTFOLIOS LTD,26751,01/12/2019,NOV001_HUNT_2019,NOVEMBER 2019,05/12/2019,270,1350,1620,Homelessness,B&B Accommodation,64401
http://statistics.data.gov.uk/id/local-authority/12UE,Huntingdonshire District Council,201012.00,COACH & HORSES,26390,25/11/2019,411,18-24/11/19,28/11/2019,56,280,336,Homelessness,B&B Accommodation,64401
http://statistics.data.gov.uk/id/local-authority/12UE,Huntingdonshire District Council,201012.00,COACH & HORSES,25905,11/11/2019,409,04-10/11/19,21/11/2019,40,200,240,Homelessness,B&B Accommodation,64401
http://statistics.data.gov.uk/id/local-authority/12UE,Huntingdonshire District Council,201012.00,COACH & HORSES,26628,02/12/2019,412,25/11 - 01/12/19,05/12/2019,56,280,336,Homelessness,B&B Accommodation,64401
http://statistics.data.gov.uk/id/local-authority/12UE,Huntingdonshire District Council,201012.00,COACH & HORSES,25976,18/11/2019,410,11-17/11/19,21/11/2019,56,280,336,Homelessness,B&B Accommodation,64401
http://statistics.data.gov.uk/id/local-authority/12UE,Huntingdonshire District Council,201012.00,COACH & HORSES,27195,09/12/2019,413,02-08/12/19,19/12/2019,24,120,144,Homelessness,B&B Accommodation,64401
http://statistics.data.gov.uk/id/local-authority/12UE,Huntingdonshire District Council,200673.00,RENT CONNECT RENT CONNECT,24570,17/10/2019,RC-HDC069,OCT 2019,31/10/2019,0,608,608,Homelessness,B&B Accommodation,64401
http://statistics.data.gov.uk/id/local-authority/12UE,Huntingdonshire District Council,200673.00,RENT CONNECT RENT CONNECT,23959,01/10/2019,RC-HDC068,SEPT 2019,17/10/2019,0,570,570,Homelessness,B&B Accommodation,64401
http://statistics.data.gov.uk/id/local-authority/12UE,Huntingdonshire District Council,200673.00,RENT CONNECT RENT CONNECT,25850,01/11/2019,RC-HDC070,OCT 2019,21/11/2019,0,532,532,Homelessness,B&B Accommodation,64401
http://statistics.data.gov.uk/id/local-authority/12UE,Huntingdonshire District Council,200673.00,RENT CONNECT RENT CONNECT,25850,01/11/2019,RC-HDC070,OCT 2019,21/11/2019,0,38,38,Homelessness,B&B Accommodation,64401
http://statistics.data.gov.uk/id/local-authority/12UE,Huntingdonshire District Council,200673.00,RENT CONNECT RENT CONNECT,23243,16/09/2019,RC-HDC067,HLESS ACCOMMODATION,03/10/2019,0,570,570,Homelessness,B&B Accommodation,64401
http://statistics.data.gov.uk/id/local-authority/12UE,Huntingdonshire District Council,200673.00,RENT CONNECT RENT CONNECT,26264,19/11/2019,RC-HDC071,NOV 19,28/11/2019,0,570,570,Homelessness,B&B Accommodation,64401
http://statistics.data.gov.uk/id/local-authority/12UE,Huntingdonshire District Council,200673.00,RENT CONNECT RENT CONNECT,26750,01/12/2019,RC-HDC072,DECEMBER 2019,05/12/2019,0,570,570,Homelessness,B&B Accommodation,64401
http://statistics.data.gov.uk/id/local-authority/12UE,Huntingdonshire District Council,201011.00,CENTENNIAL PROPERTY LTD,23252,16/09/2019,CP-HDC067,HLESS ACCOMMODATION,03/10/2019,0,825,825,Homelessness,B&B Accommodation,64401
http://statistics.data.gov.uk/id/local-authority/12UE,Huntingdonshire District Council,201011.00,CENTENNIAL PROPERTY LTD,24621,17/10/2019,CP-HDC069,1-16 OCT 19,31/10/2019,0,880,880,Homelessness,B&B Accommodation,64401
http://statistics.data.gov.uk/id/local-authority/12UE,Huntingdonshire District Council,201011.00,CENTENNIAL PROPERTY LTD,26209,16/11/2019,CP-HDC071,1-15 NOV 19,28/11/2019,0,825,825,Homelessness,B&B Accommodation,64401
http://statistics.data.gov.uk/id/local-authority/12UE,Huntingdonshire District Council,201011.00,CENTENNIAL PROPERTY LTD,23960,01/10/2019,CP-HDC068,16-30 SEPT 2019,17/10/2019,0,825,825,Homelessness,B&B Accommodation,64401
http://statistics.data.gov.uk/id/local-authority/12UE,Huntingdonshire District Council,201011.00,CENTENNIAL PROPERTY LTD,25304,01/11/2019,CP-HDC070,17-31 OCT 19,08/11/2019,0,825,825,Homelessness,B&B Accommodation,64401
http://statistics.data.gov.uk/id/local-authority/12UE,Huntingdonshire District Council,201011.00,CENTENNIAL PROPERTY LTD,26749,01/12/2019,CP-HDC072,16-30 NOV 19,05/12/2019,0,825,825,Homelessness,B&B Accommodation,64401
http://statistics.data.gov.uk/id/local-authority/12UE,Huntingdonshire District Council,201012.00,COACH & HORSES,23251,16/09/2019,401,HLESS ACCOMMODATION,03/10/2019,56,280,336,Homelessness,B&B Accommodation,64401
http://statistics.data.gov.uk/id/local-authority/12UE,Huntingdonshire District Council,201012.00,COACH & HORSES,23253,23/09/2019,402,HLESS ACCOMMODATION,03/10/2019,56,280,336,Homelessness,B&B Accommodation,64401
http://statistics.data.gov.uk/id/local-authority/12UE,Huntingdonshire District Council,201012.00,COACH & HORSES,24472,14/10/2019,405,07-13/10/19,24/10/2019,8,40,48,Homelessness,B&B Accommodation,64401
http://statistics.data.gov.uk/id/local-authority/12UE,Huntingdonshire District Council,201012.00,COACH & HORSES,25321,04/11/2019,408,28/10-03/11/19,08/11/2019,56,280,336,Homelessness,B&B Accommodation,64401
http://statistics.data.gov.uk/id/local-authority/12UE,Huntingdonshire District Council,201012.00,COACH & HORSES,25147,28/10/2019,407,21-27/10/19,08/11/2019,48,240,288,Homelessness,B&B Accommodation,64401
http://statistics.data.gov.uk/id/local-authority/12UE,Huntingdonshire District Council,201012.00,COACH & HORSES,24153,07/10/2019,404,30/09-06/10/19,24/10/2019,24,120,144,Homelessness,B&B Accommodation,64401
http://statistics.data.gov.uk/id/local-authority/12UE,Huntingdonshire District Council,200673.00,RENT CONNECT RENT CONNECT,23243,16/09/2019,RC-HDC067,HLESS ACCOMMODATION,03/10/2019,0,280,280,Homelessness,B&B Accommodation,64401
http://statistics.data.gov.uk/id/local-authority/12UE,Huntingdonshire District Council,201012.00,COACH & HORSES,25905,11/11/2019,409,04-10/11/19,21/11/2019,56,280,336,Homelessness,B&B Accommodation,64401
http://statistics.data.gov.uk/id/local-authority/12UE,Huntingdonshire District Council,201012.00,COACH & HORSES,25976,18/11/2019,410,11-17/11/19,21/11/2019,16,80,96,Homelessness,B&B Accommodation,64401
http://statistics.data.gov.uk/id/local-authority/12UE,Huntingdonshire District Council,200673.00,RENT CONNECT RENT CONNECT,24570,17/10/2019,RC-HDC069,OCT 2019,31/10/2019,0,720,720,Homelessness,B&B Accommodation,64401
http://statistics.data.gov.uk/id/local-authority/12UE,Huntingdonshire District Council,200673.00,RENT CONNECT RENT CONNECT,23959,01/10/2019,RC-HDC068,SEPT 2019,17/10/2019,0,675,675,Homelessness,B&B Accommodation,64401
http://statistics.data.gov.uk/id/local-authority/12UE,Huntingdonshire District Council,200673.00,RENT CONNECT RENT CONNECT,25850,01/11/2019,RC-HDC070,OCT 2019,21/11/2019,0,675,675,Homelessness,B&B Accommodation,64401
http://statistics.data.gov.uk/id/local-authority/12UE,Huntingdonshire District Council,200673.00,RENT CONNECT RENT CONNECT,23243,16/09/2019,RC-HDC067,HLESS ACCOMMODATION,03/10/2019,0,675,675,Homelessness,B&B Accommodation,64401
http://statistics.data.gov.uk/id/local-authority/12UE,Huntingdonshire District Council,200673.00,RENT CONNECT RENT CONNECT,26264,19/11/2019,RC-HDC071,NOV 19,28/11/2019,0,675,675,Homelessness,B&B Accommodation,64401
http://statistics.data.gov.uk/id/local-authority/12UE,Huntingdonshire District Council,200673.00,RENT CONNECT RENT CONNECT,26750,01/12/2019,RC-HDC072,DECEMBER 2019,05/12/2019,0,675,675,Homelessness,B&B Accommodation,64401
http://statistics.data.gov.uk/id/local-authority/12UE,Huntingdonshire District Council,200808.00,IMPERIAL PORTFOLIOS LTD,23962,01/10/2019,SEP001_HUNT_2019,SEPT 2019,17/10/2019,240,1200,1440,Homelessness,B&B Accommodation,64401
http://statistics.data.gov.uk/id/local-authority/12UE,Huntingdonshire District Council,200808.00,IMPERIAL PORTFOLIOS LTD,25303,01/11/2019,OCT001_HUNT_2019,OCT 19,08/11/2019,248,1240,1488,Homelessness,B&B Accommodation,64401
http://statistics.data.gov.uk/id/local-authority/12UE,Huntingdonshire District Council,200808.00,IMPERIAL PORTFOLIOS LTD,26751,01/12/2019,NOV001_HUNT_2019,NOVEMBER 2019,05/12/2019,240,1200,1440,Homelessness,B&B Accommodation,64401
http://statistics.data.gov.uk/id/local-authority/12UE,Huntingdonshire District Council,201011.00,CENTENNIAL PROPERTY LTD,23252,16/09/2019,CP-HDC067,HLESS ACCOMMODATION,03/10/2019,0,570,570,Homelessness,B&B Accommodation,64401
http://statistics.data.gov.uk/id/local-authority/12UE,Huntingdonshire District Council,201011.00,CENTENNIAL PROPERTY LTD,24621,17/10/2019,CP-HDC069,1-16 OCT 19,31/10/2019,0,608,608,Homelessness,B&B Accommodation,64401
http://statistics.data.gov.uk/id/local-authority/12UE,Huntingdonshire District Council,201011.00,CENTENNIAL PROPERTY LTD,26209,16/11/2019,CP-HDC071,1-15 NOV 19,28/11/2019,0,570,570,Homelessness,B&B Accommodation,64401
http://statistics.data.gov.uk/id/local-authority/12UE,Huntingdonshire District Council,201011.00,CENTENNIAL PROPERTY LTD,23960,01/10/2019,CP-HDC068,16-30 SEPT 2019,17/10/2019,0,570,570,Homelessness,B&B Accommodation,64401
http://statistics.data.gov.uk/id/local-authority/12UE,Huntingdonshire District Council,201011.00,CENTENNIAL PROPERTY LTD,25304,01/11/2019,CP-HDC070,17-31 OCT 19,08/11/2019,0,570,570,Homelessness,B&B Accommodation,64401
http://statistics.data.gov.uk/id/local-authority/12UE,Huntingdonshire District Council,201011.00,CENTENNIAL PROPERTY LTD,26749,01/12/2019,CP-HDC072,16-30 NOV 19,05/12/2019,0,570,570,Homelessness,B&B Accommodation,64401
http://statistics.data.gov.uk/id/local-authority/12UE,Huntingdonshire District Council,200808.00,IMPERIAL PORTFOLIOS LTD,23962,01/10/2019,SEP001_HUNT_2019,SEPT 2019,17/10/2019,90,450,540,Homelessness,B&B Accommodation,64401
http://statistics.data.gov.uk/id/local-authority/12UE,Huntingdonshire District Council,200673.00,RENT CONNECT RENT CONNECT,23959,01/10/2019,RC-HDC068,SEPT 2019,17/10/2019,0,360,360,Homelessness,B&B Accommodation,64401
http://statistics.data.gov.uk/id/local-authority/12UE,Huntingdonshire District Council,200673.00,RENT CONNECT RENT CONNECT,23243,16/09/2019,RC-HDC067,HLESS ACCOMMODATION,03/10/2019,0,675,675,Homelessness,B&B Accommodation,64401
http://statistics.data.gov.uk/id/local-authority/12UE,Huntingdonshire District Council,201011.00,CENTENNIAL PROPERTY LTD,23252,16/09/2019,CP-HDC067,HLESS ACCOMMODATION,03/10/2019,0,304,304,Homelessness,B&B Accommodation,64401
http://statistics.data.gov.uk/id/local-authority/12UE,Huntingdonshire District Council,201011.00,CENTENNIAL PROPERTY LTD,23252,16/09/2019,CP-HDC067,HLESS ACCOMMODATION,03/10/2019,0,675,675,Homelessness,B&B Accommodation,64401
http://statistics.data.gov.uk/id/local-authority/12UE,Huntingdonshire District Council,201011.00,CENTENNIAL PROPERTY LTD,24621,17/10/2019,CP-HDC069,1-16 OCT 19,31/10/2019,0,630,630,Homelessness,B&B Accommodation,64401
http://statistics.data.gov.uk/id/local-authority/12UE,Huntingdonshire District Council,201011.00,CENTENNIAL PROPERTY LTD,23960,01/10/2019,CP-HDC068,16-30 SEPT 2019,17/10/2019,0,675,675,Homelessness,B&B Accommodation,64401
http://statistics.data.gov.uk/id/local-authority/12UE,Huntingdonshire District Council,201011.00,CENTENNIAL PROPERTY LTD,23252,16/09/2019,CP-HDC067,HLESS ACCOMMODATION,03/10/2019,0,456,456,Homelessness,B&B Accommodation,64401
http://statistics.data.gov.uk/id/local-authority/12UE,Huntingdonshire District Council,200808.00,IMPERIAL PORTFOLIOS LTD,23962,01/10/2019,SEP001_HUNT_2019,SEPT 2019,17/10/2019,270,1350,1620,Homelessness,B&B Accommodation,64401
http://statistics.data.gov.uk/id/local-authority/12UE,Huntingdonshire District Council,200808.00,IMPERIAL PORTFOLIOS LTD,25303,01/11/2019,OCT001_HUNT_2019,OCT 19,08/11/2019,279,1395,1674,Homelessness,B&B Accommodation,64401
http://statistics.data.gov.uk/id/local-authority/12UE,Huntingdonshire District Council,200808.00,IMPERIAL PORTFOLIOS LTD,26751,01/12/2019,NOV001_HUNT_2019,NOVEMBER 2019,05/12/2019,225,1125,1350,Homelessness,B&B Accommodation,64401
http://statistics.data.gov.uk/id/local-authority/12UE,Huntingdonshire District Council,200808.00,IMPERIAL PORTFOLIOS LTD,23962,01/10/2019,SEP001_HUNT_2019,SEPT 2019,17/10/2019,9,45,54,Homelessness,B&B Accommodation,64401
http://statistics.data.gov.uk/id/local-authority/12UE,Huntingdonshire District Council,201011.00,CENTENNIAL PROPERTY LTD,23252,16/09/2019,CP-HDC067,HLESS ACCOMMODATION,03/10/2019,0,570,570,Homelessness,B&B Accommodation,64401
http://statistics.data.gov.uk/id/local-authority/12UE,Huntingdonshire District Council,200808.00,IMPERIAL PORTFOLIOS LTD,23962,01/10/2019,SEP001_HUNT_2019,SEPT 2019,17/10/2019,72,360,432,Homelessness,B&B Accommodation,64401
http://statistics.data.gov.uk/id/local-authority/12UE,Huntingdonshire District Council,201011.00,CENTENNIAL PROPERTY LTD,23252,16/09/2019,CP-HDC067,HLESS ACCOMMODATION,03/10/2019,0,675,675,Homelessness,B&B Accommodation,64401
http://statistics.data.gov.uk/id/local-authority/12UE,Huntingdonshire District Council,201011.00,CENTENNIAL PROPERTY LTD,24621,17/10/2019,CP-HDC069,1-16 OCT 19,31/10/2019,0,720,720,Homelessness,B&B Accommodation,64401
http://statistics.data.gov.uk/id/local-authority/12UE,Huntingdonshire District Council,201011.00,CENTENNIAL PROPERTY LTD,26209,16/11/2019,CP-HDC071,1-15 NOV 19,28/11/2019,0,675,675,Homelessness,B&B Accommodation,64401
http://statistics.data.gov.uk/id/local-authority/12UE,Huntingdonshire District Council,201011.00,CENTENNIAL PROPERTY LTD,23960,01/10/2019,CP-HDC068,16-30 SEPT 2019,17/10/2019,0,675,675,Homelessness,B&B Accommodation,64401
http://statistics.data.gov.uk/id/local-authority/12UE,Huntingdonshire District Council,201011.00,CENTENNIAL PROPERTY LTD,25304,01/11/2019,CP-HDC070,17-31 OCT 19,08/11/2019,0,675,675,Homelessness,B&B Accommodation,64401
http://statistics.data.gov.uk/id/local-authority/12UE,Huntingdonshire District Council,201011.00,CENTENNIAL PROPERTY LTD,26749,01/12/2019,CP-HDC072,16-30 NOV 19,05/12/2019,0,225,225,Homelessness,B&B Accommodation,64401
http://statistics.data.gov.uk/id/local-authority/12UE,Huntingdonshire District Council,200673.00,RENT CONNECT RENT CONNECT,24570,17/10/2019,RC-HDC069,OCT 2019,31/10/2019,0,720,720,Homelessness,B&B Accommodation,64401
http://statistics.data.gov.uk/id/local-authority/12UE,Huntingdonshire District Council,200673.00,RENT CONNECT RENT CONNECT,23959,01/10/2019,RC-HDC068,SEPT 2019,17/10/2019,0,675,675,Homelessness,B&B Accommodation,64401
http://statistics.data.gov.uk/id/local-authority/12UE,Huntingdonshire District Council,200673.00,RENT CONNECT RENT CONNECT,25850,01/11/2019,RC-HDC070,OCT 2019,21/11/2019,0,675,675,Homelessness,B&B Accommodation,64401
http://statistics.data.gov.uk/id/local-authority/12UE,Huntingdonshire District Council,200673.00,RENT CONNECT RENT CONNECT,23243,16/09/2019,RC-HDC067,HLESS ACCOMMODATION,03/10/2019,0,675,675,Homelessness,B&B Accommodation,64401
http://statistics.data.gov.uk/id/local-authority/12UE,Huntingdonshire District Council,200673.00,RENT CONNECT RENT CONNECT,26264,19/11/2019,RC-HDC071,NOV 19,28/11/2019,0,675,675,Homelessness,B&B Accommodation,64401
http://statistics.data.gov.uk/id/local-authority/12UE,Huntingdonshire District Council,200673.00,RENT CONNECT RENT CONNECT,26750,01/12/2019,RC-HDC072,DECEMBER 2019,05/12/2019,0,675,675,Homelessness,B&B Accommodation,64401
http://statistics.data.gov.uk/id/local-authority/12UE,Huntingdonshire District Council,201011.00,CENTENNIAL PROPERTY LTD,23252,16/09/2019,CP-HDC067,HLESS ACCOMMODATION,03/10/2019,0,675,675,Homelessness,B&B Accommodation,64401
http://statistics.data.gov.uk/id/local-authority/12UE,Huntingdonshire District Council,201011.00,CENTENNIAL PROPERTY LTD,24621,17/10/2019,CP-HDC069,1-16 OCT 19,31/10/2019,0,675,675,Homelessness,B&B Accommodation,64401
http://statistics.data.gov.uk/id/local-authority/12UE,Huntingdonshire District Council,201011.00,CENTENNIAL PROPERTY LTD,23960,01/10/2019,CP-HDC068,16-30 SEPT 2019,17/10/2019,0,675,675,Homelessness,B&B Accommodation,64401
http://statistics.data.gov.uk/id/local-authority/12UE,Huntingdonshire District Council,201011.00,CENTENNIAL PROPERTY LTD,23252,16/09/2019,CP-HDC067,HLESS ACCOMMODATION,03/10/2019,0,825,825,Homelessness,B&B Accommodation,64401
http://statistics.data.gov.uk/id/local-authority/12UE,Huntingdonshire District Council,201011.00,CENTENNIAL PROPERTY LTD,24621,17/10/2019,CP-HDC069,1-16 OCT 19,31/10/2019,0,880,880,Homelessness,B&B Accommodation,64401
http://statistics.data.gov.uk/id/local-authority/12UE,Huntingdonshire District Council,201011.00,CENTENNIAL PROPERTY LTD,26209,16/11/2019,CP-HDC071,1-15 NOV 19,28/11/2019,0,825,825,Homelessness,B&B Accommodation,64401
http://statistics.data.gov.uk/id/local-authority/12UE,Huntingdonshire District Council,201011.00,CENTENNIAL PROPERTY LTD,23960,01/10/2019,CP-HDC068,16-30 SEPT 2019,17/10/2019,0,825,825,Homelessness,B&B Accommodation,64401
http://statistics.data.gov.uk/id/local-authority/12UE,Huntingdonshire District Council,201011.00,CENTENNIAL PROPERTY LTD,25304,01/11/2019,CP-HDC070,17-31 OCT 19,08/11/2019,0,825,825,Homelessness,B&B Accommodation,64401
http://statistics.data.gov.uk/id/local-authority/12UE,Huntingdonshire District Council,201011.00,CENTENNIAL PROPERTY LTD,26749,01/12/2019,CP-HDC072,16-30 NOV 19,05/12/2019,0,220,220,Homelessness,B&B Accommodation,64401
http://statistics.data.gov.uk/id/local-authority/12UE,Huntingdonshire District Council,200808.00,IMPERIAL PORTFOLIOS LTD,23962,01/10/2019,SEP001_HUNT_2019,SEPT 2019,17/10/2019,240,1200,1440,Homelessness,B&B Accommodation,64401
http://statistics.data.gov.uk/id/local-authority/12UE,Huntingdonshire District Council,200808.00,IMPERIAL PORTFOLIOS LTD,25303,01/11/2019,OCT001_HUNT_2019,OCT 19,08/11/2019,248,1240,1488,Homelessness,B&B Accommodation,64401
http://statistics.data.gov.uk/id/local-authority/12UE,Huntingdonshire District Council,200808.00,IMPERIAL PORTFOLIOS LTD,26751,01/12/2019,NOV001_HUNT_2019,NOVEMBER 2019,05/12/2019,240,1200,1440,Homelessness,B&B Accommodation,64401
http://statistics.data.gov.uk/id/local-authority/12UE,Huntingdonshire District Council,200673.00,RENT CONNECT RENT CONNECT,24570,17/10/2019,RC-HDC069,OCT 2019,31/10/2019,0,880,880,Homelessness,B&B Accommodation,64401
http://statistics.data.gov.uk/id/local-authority/12UE,Huntingdonshire District Council,200673.00,RENT CONNECT RENT CONNECT,23959,01/10/2019,RC-HDC068,SEPT 2019,17/10/2019,0,825,825,Homelessness,B&B Accommodation,64401
http://statistics.data.gov.uk/id/local-authority/12UE,Huntingdonshire District Council,200673.00,RENT CONNECT RENT CONNECT,25850,01/11/2019,RC-HDC070,OCT 2019,21/11/2019,0,825,825,Homelessness,B&B Accommodation,64401
http://statistics.data.gov.uk/id/local-authority/12UE,Huntingdonshire District Council,200673.00,RENT CONNECT RENT CONNECT,23243,16/09/2019,RC-HDC067,HLESS ACCOMMODATION,03/10/2019,0,825,825,Homelessness,B&B Accommodation,64401
http://statistics.data.gov.uk/id/local-authority/12UE,Huntingdonshire District Council,200673.00,RENT CONNECT RENT CONNECT,26264,19/11/2019,RC-HDC071,NOV 19,28/11/2019,0,825,825,Homelessness,B&B Accommodation,64401
http://statistics.data.gov.uk/id/local-authority/12UE,Huntingdonshire District Council,200673.00,RENT CONNECT RENT CONNECT,26750,01/12/2019,RC-HDC072,DECEMBER 2019,05/12/2019,0,825,825,Homelessness,B&B Accommodation,64401
http://statistics.data.gov.uk/id/local-authority/12UE,Huntingdonshire District Council,200808.00,IMPERIAL PORTFOLIOS LTD,26751,01/12/2019,NOV001_HUNT_2019,NOVEMBER 2019,05/12/2019,129.2,646,775.2,Homelessness,B&B Accommodation,64401
http://statistics.data.gov.uk/id/local-authority/12UE,Huntingdonshire District Council,201011.00,CENTENNIAL PROPERTY LTD,23252,16/09/2019,CP-HDC067,HLESS ACCOMMODATION,03/10/2019,0,570,570,Homelessness,B&B Accommodation,64401
http://statistics.data.gov.uk/id/local-authority/12UE,Huntingdonshire District Council,201011.00,CENTENNIAL PROPERTY LTD,24621,17/10/2019,CP-HDC069,1-16 OCT 19,31/10/2019,0,608,608,Homelessness,B&B Accommodation,64401
http://statistics.data.gov.uk/id/local-authority/12UE,Huntingdonshire District Council,201011.00,CENTENNIAL PROPERTY LTD,26209,16/11/2019,CP-HDC071,1-15 NOV 19,28/11/2019,0,494,494,Homelessness,B&B Accommodation,64401
http://statistics.data.gov.uk/id/local-authority/12UE,Huntingdonshire District Council,201011.00,CENTENNIAL PROPERTY LTD,23960,01/10/2019,CP-HDC068,16-30 SEPT 2019,17/10/2019,0,570,570,Homelessness,B&B Accommodation,64401
http://statistics.data.gov.uk/id/local-authority/12UE,Huntingdonshire District Council,201011.00,CENTENNIAL PROPERTY LTD,25304,01/11/2019,CP-HDC070,17-31 OCT 19,08/11/2019,0,570,570,Homelessness,B&B Accommodation,64401
http://statistics.data.gov.uk/id/local-authority/12UE,Huntingdonshire District Council,201011.00,CENTENNIAL PROPERTY LTD,23252,16/09/2019,CP-HDC067,HLESS ACCOMMODATION,03/10/2019,0,675,675,Homelessness,B&B Accommodation,64401
http://statistics.data.gov.uk/id/local-authority/12UE,Huntingdonshire District Council,201011.00,CENTENNIAL PROPERTY LTD,24621,17/10/2019,CP-HDC069,1-16 OCT 19,31/10/2019,0,720,720,Homelessness,B&B Accommodation,64401
http://statistics.data.gov.uk/id/local-authority/12UE,Huntingdonshire District Council,201011.00,CENTENNIAL PROPERTY LTD,26209,16/11/2019,CP-HDC071,1-15 NOV 19,28/11/2019,0,675,675,Homelessness,B&B Accommodation,64401
http://statistics.data.gov.uk/id/local-authority/12UE,Huntingdonshire District Council,201011.00,CENTENNIAL PROPERTY LTD,23960,01/10/2019,CP-HDC068,16-30 SEPT 2019,17/10/2019,0,675,675,Homelessness,B&B Accommodation,64401
http://statistics.data.gov.uk/id/local-authority/12UE,Huntingdonshire District Council,201011.00,CENTENNIAL PROPERTY LTD,25304,01/11/2019,CP-HDC070,17-31 OCT 19,08/11/2019,0,675,675,Homelessness,B&B Accommodation,64401
http://statistics.data.gov.uk/id/local-authority/12UE,Huntingdonshire District Council,201011.00,CENTENNIAL PROPERTY LTD,26749,01/12/2019,CP-HDC072,16-30 NOV 19,05/12/2019,0,675,675,Homelessness,B&B Accommodation,64401
http://statistics.data.gov.uk/id/local-authority/12UE,Huntingdonshire District Council,201011.00,CENTENNIAL PROPERTY LTD,23252,16/09/2019,CP-HDC067,HLESS ACCOMMODATION,03/10/2019,0,675,675,Homelessness,B&B Accommodation,64401
http://statistics.data.gov.uk/id/local-authority/12UE,Huntingdonshire District Council,201011.00,CENTENNIAL PROPERTY LTD,24621,17/10/2019,CP-HDC069,1-16 OCT 19,31/10/2019,0,720,720,Homelessness,B&B Accommodation,64401
http://statistics.data.gov.uk/id/local-authority/12UE,Huntingdonshire District Council,201011.00,CENTENNIAL PROPERTY LTD,26209,16/11/2019,CP-HDC071,1-15 NOV 19,28/11/2019,0,540,540,Homelessness,B&B Accommodation,64401
http://statistics.data.gov.uk/id/local-authority/12UE,Huntingdonshire District Council,201011.00,CENTENNIAL PROPERTY LTD,23960,01/10/2019,CP-HDC068,16-30 SEPT 2019,17/10/2019,0,675,675,Homelessness,B&B Accommodation,64401
http://statistics.data.gov.uk/id/local-authority/12UE,Huntingdonshire District Council,201011.00,CENTENNIAL PROPERTY LTD,25304,01/11/2019,CP-HDC070,17-31 OCT 19,08/11/2019,0,675,675,Homelessness,B&B Accommodation,64401
http://statistics.data.gov.uk/id/local-authority/12UE,Huntingdonshire District Council,200673.00,RENT CONNECT RENT CONNECT,24570,17/10/2019,RC-HDC069,OCT 2019,31/10/2019,0,608,608,Homelessness,B&B Accommodation,64401
http://statistics.data.gov.uk/id/local-authority/12UE,Huntingdonshire District Council,200673.00,RENT CONNECT RENT CONNECT,23959,01/10/2019,RC-HDC068,SEPT 2019,17/10/2019,0,570,570,Homelessness,B&B Accommodation,64401
http://statistics.data.gov.uk/id/local-authority/12UE,Huntingdonshire District Council,200673.00,RENT CONNECT RENT CONNECT,25850,01/11/2019,RC-HDC070,OCT 2019,21/11/2019,0,570,570,Homelessness,B&B Accommodation,64401
http://statistics.data.gov.uk/id/local-authority/12UE,Huntingdonshire District Council,200673.00,RENT CONNECT RENT CONNECT,23243,16/09/2019,RC-HDC067,HLESS ACCOMMODATION,03/10/2019,0,570,570,Homelessness,B&B Accommodation,64401
http://statistics.data.gov.uk/id/local-authority/12UE,Huntingdonshire District Council,200673.00,RENT CONNECT RENT CONNECT,26264,19/11/2019,RC-HDC071,NOV 19,28/11/2019,0,570,570,Homelessness,B&B Accommodation,64401
http://statistics.data.gov.uk/id/local-authority/12UE,Huntingdonshire District Council,200673.00,RENT CONNECT RENT CONNECT,26750,01/12/2019,RC-HDC072,DECEMBER 2019,05/12/2019,0,570,570,Homelessness,B&B Accommodation,64401
http://statistics.data.gov.uk/id/local-authority/12UE,Huntingdonshire District Council,201011.00,CENTENNIAL PROPERTY LTD,23252,16/09/2019,CP-HDC067,HLESS ACCOMMODATION,03/10/2019,0,45,45,Homelessness,B&B Accommodation,64401
http://statistics.data.gov.uk/id/local-authority/12UE,Huntingdonshire District Council,200808.00,IMPERIAL PORTFOLIOS LTD,26751,01/12/2019,NOV001_HUNT_2019,NOVEMBER 2019,05/12/2019,129.2,646,775.2,Homelessness,B&B Accommodation,64401
http://statistics.data.gov.uk/id/local-authority/12UE,Huntingdonshire District Council,201011.00,CENTENNIAL PROPERTY LTD,23252,16/09/2019,CP-HDC067,HLESS ACCOMMODATION,03/10/2019,0,570,570,Homelessness,B&B Accommodation,64401
http://statistics.data.gov.uk/id/local-authority/12UE,Huntingdonshire District Council,201011.00,CENTENNIAL PROPERTY LTD,24621,17/10/2019,CP-HDC069,1-16 OCT 19,31/10/2019,0,608,608,Homelessness,B&B Accommodation,64401
http://statistics.data.gov.uk/id/local-authority/12UE,Huntingdonshire District Council,201011.00,CENTENNIAL PROPERTY LTD,26209,16/11/2019,CP-HDC071,1-15 NOV 19,28/11/2019,0,494,494,Homelessness,B&B Accommodation,64401
http://statistics.data.gov.uk/id/local-authority/12UE,Huntingdonshire District Council,201011.00,CENTENNIAL PROPERTY LTD,23960,01/10/2019,CP-HDC068,16-30 SEPT 2019,17/10/2019,0,570,570,Homelessness,B&B Accommodation,64401
http://statistics.data.gov.uk/id/local-authority/12UE,Huntingdonshire District Council,201011.00,CENTENNIAL PROPERTY LTD,25304,01/11/2019,CP-HDC070,17-31 OCT 19,08/11/2019,0,570,570,Homelessness,B&B Accommodation,64401
http://statistics.data.gov.uk/id/local-authority/12UE,Huntingdonshire District Council,200673.00,RENT CONNECT RENT CONNECT,26264,19/11/2019,RC-HDC071,NOV 19,28/11/2019,0,525,525,Homelessness,B&B Accommodation,64401
http://statistics.data.gov.uk/id/local-authority/12UE,Huntingdonshire District Council,201011.00,CENTENNIAL PROPERTY LTD,26209,16/11/2019,CP-HDC071,1-15 NOV 19,28/11/2019,0,570,570,Homelessness,B&B Accommodation,64401
http://statistics.data.gov.uk/id/local-authority/12UE,Huntingdonshire District Council,201011.00,CENTENNIAL PROPERTY LTD,23252,16/09/2019,CP-HDC067,HLESS ACCOMMODATION,03/10/2019,0,600,600,Homelessness,B&B Accommodation,64401
http://statistics.data.gov.uk/id/local-authority/12UE,Huntingdonshire District Council,201011.00,CENTENNIAL PROPERTY LTD,23960,01/10/2019,CP-HDC068,16-30 SEPT 2019,17/10/2019,0,80,80,Homelessness,B&B Accommodation,64401
http://statistics.data.gov.uk/id/local-authority/12UE,Huntingdonshire District Council,201011.00,CENTENNIAL PROPERTY LTD,23252,16/09/2019,CP-HDC067,HLESS ACCOMMODATION,03/10/2019,0,675,675,Homelessness,B&B Accommodation,64401
http://statistics.data.gov.uk/id/local-authority/12UE,Huntingdonshire District Council,201011.00,CENTENNIAL PROPERTY LTD,24621,17/10/2019,CP-HDC069,1-16 OCT 19,31/10/2019,0,720,720,Homelessness,B&B Accommodation,64401
http://statistics.data.gov.uk/id/local-authority/12UE,Huntingdonshire District Council,201011.00,CENTENNIAL PROPERTY LTD,26209,16/11/2019,CP-HDC071,1-15 NOV 19,28/11/2019,0,675,675,Homelessness,B&B Accommodation,64401
http://statistics.data.gov.uk/id/local-authority/12UE,Huntingdonshire District Council,201011.00,CENTENNIAL PROPERTY LTD,23960,01/10/2019,CP-HDC068,16-30 SEPT 2019,17/10/2019,0,675,675,Homelessness,B&B Accommodation,64401
http://statistics.data.gov.uk/id/local-authority/12UE,Huntingdonshire District Council,201011.00,CENTENNIAL PROPERTY LTD,25304,01/11/2019,CP-HDC070,17-31 OCT 19,08/11/2019,0,675,675,Homelessness,B&B Accommodation,64401
http://statistics.data.gov.uk/id/local-authority/12UE,Huntingdonshire District Council,201011.00,CENTENNIAL PROPERTY LTD,26749,01/12/2019,CP-HDC072,16-30 NOV 19,05/12/2019,0,675,675,Homelessness,B&B Accommodation,64401
http://statistics.data.gov.uk/id/local-authority/12UE,Huntingdonshire District Council,201011.00,CENTENNIAL PROPERTY LTD,23252,16/09/2019,CP-HDC067,HLESS ACCOMMODATION,03/10/2019,0,570,570,Homelessness,B&B Accommodation,64401
http://statistics.data.gov.uk/id/local-authority/12UE,Huntingdonshire District Council,201011.00,CENTENNIAL PROPERTY LTD,24621,17/10/2019,CP-HDC069,1-16 OCT 19,31/10/2019,0,608,608,Homelessness,B&B Accommodation,64401
http://statistics.data.gov.uk/id/local-authority/12UE,Huntingdonshire District Council,201011.00,CENTENNIAL PROPERTY LTD,26209,16/11/2019,CP-HDC071,1-15 NOV 19,28/11/2019,0,570,570,Homelessness,B&B Accommodation,64401
http://statistics.data.gov.uk/id/local-authority/12UE,Huntingdonshire District Council,201011.00,CENTENNIAL PROPERTY LTD,23960,01/10/2019,CP-HDC068,16-30 SEPT 2019,17/10/2019,0,570,570,Homelessness,B&B Accommodation,64401
http://statistics.data.gov.uk/id/local-authority/12UE,Huntingdonshire District Council,201011.00,CENTENNIAL PROPERTY LTD,25304,01/11/2019,CP-HDC070,17-31 OCT 19,08/11/2019,0,570,570,Homelessness,B&B Accommodation,64401
http://statistics.data.gov.uk/id/local-authority/12UE,Huntingdonshire District Council,201011.00,CENTENNIAL PROPERTY LTD,26749,01/12/2019,CP-HDC072,16-30 NOV 19,05/12/2019,0,570,570,Homelessness,B&B Accommodation,64401
http://statistics.data.gov.uk/id/local-authority/12UE,Huntingdonshire District Council,200673.00,RENT CONNECT RENT CONNECT,24570,17/10/2019,RC-HDC069,OCT 2019,31/10/2019,0,720,720,Homelessness,B&B Accommodation,64401
http://statistics.data.gov.uk/id/local-authority/12UE,Huntingdonshire District Council,200673.00,RENT CONNECT RENT CONNECT,23959,01/10/2019,RC-HDC068,SEPT 2019,17/10/2019,0,675,675,Homelessness,B&B Accommodation,64401
http://statistics.data.gov.uk/id/local-authority/12UE,Huntingdonshire District Council,200673.00,RENT CONNECT RENT CONNECT,25850,01/11/2019,RC-HDC070,OCT 2019,21/11/2019,0,675,675,Homelessness,B&B Accommodation,64401
http://statistics.data.gov.uk/id/local-authority/12UE,Huntingdonshire District Council,200673.00,RENT CONNECT RENT CONNECT,23243,16/09/2019,RC-HDC067,HLESS ACCOMMODATION,03/10/2019,0,675,675,Homelessness,B&B Accommodation,64401
http://statistics.data.gov.uk/id/local-authority/12UE,Huntingdonshire District Council,200673.00,RENT CONNECT RENT CONNECT,26264,19/11/2019,RC-HDC071,NOV 19,28/11/2019,0,675,675,Homelessness,B&B Accommodation,64401
http://statistics.data.gov.uk/id/local-authority/12UE,Huntingdonshire District Council,200673.00,RENT CONNECT RENT CONNECT,26750,01/12/2019,RC-HDC072,DECEMBER 2019,05/12/2019,0,675,675,Homelessness,B&B Accommodation,64401
http://statistics.data.gov.uk/id/local-authority/12UE,Huntingdonshire District Council,200673.00,RENT CONNECT RENT CONNECT,24570,17/10/2019,RC-HDC069,OCT 2019,31/10/2019,0,720,720,Homelessness,B&B Accommodation,64401
http://statistics.data.gov.uk/id/local-authority/12UE,Huntingdonshire District Council,200673.00,RENT CONNECT RENT CONNECT,23959,01/10/2019,RC-HDC068,SEPT 2019,17/10/2019,0,675,675,Homelessness,B&B Accommodation,64401
http://statistics.data.gov.uk/id/local-authority/12UE,Huntingdonshire District Council,200673.00,RENT CONNECT RENT CONNECT,25850,01/11/2019,RC-HDC070,OCT 2019,21/11/2019,0,135,135,Homelessness,B&B Accommodation,64401
http://statistics.data.gov.uk/id/local-authority/12UE,Huntingdonshire District Council,200673.00,RENT CONNECT RENT CONNECT,23243,16/09/2019,RC-HDC067,HLESS ACCOMMODATION,03/10/2019,0,675,675,Homelessness,B&B Accommodation,64401
http://statistics.data.gov.uk/id/local-authority/12UE,Huntingdonshire District Council,200808.00,IMPERIAL PORTFOLIOS LTD,23962,01/10/2019,SEP001_HUNT_2019,SEPT 2019,17/10/2019,240,1200,1440,Homelessness,B&B Accommodation,64401
http://statistics.data.gov.uk/id/local-authority/12UE,Huntingdonshire District Council,200808.00,IMPERIAL PORTFOLIOS LTD,25303,01/11/2019,OCT001_HUNT_2019,OCT 19,08/11/2019,248,1240,1488,Homelessness,B&B Accommodation,64401
http://statistics.data.gov.uk/id/local-authority/12UE,Huntingdonshire District Council,200808.00,IMPERIAL PORTFOLIOS LTD,26751,01/12/2019,NOV001_HUNT_2019,NOVEMBER 2019,05/12/2019,240,1200,1440,Homelessness,B&B Accommodation,64401
http://statistics.data.gov.uk/id/local-authority/12UE,Huntingdonshire District Council,200808.00,IMPERIAL PORTFOLIOS LTD,23962,01/10/2019,SEP001_HUNT_2019,SEPT 2019,17/10/2019,176,880,1056,Homelessness,B&B Accommodation,64401
http://statistics.data.gov.uk/id/local-authority/12UE,Huntingdonshire District Council,200673.00,RENT CONNECT RENT CONNECT,24570,17/10/2019,RC-HDC069,OCT 2019,31/10/2019,0,720,720,Homelessness,B&B Accommodation,64401
http://statistics.data.gov.uk/id/local-authority/12UE,Huntingdonshire District Council,200673.00,RENT CONNECT RENT CONNECT,23959,01/10/2019,RC-HDC068,SEPT 2019,17/10/2019,0,675,675,Homelessness,B&B Accommodation,64401
http://statistics.data.gov.uk/id/local-authority/12UE,Huntingdonshire District Council,200673.00,RENT CONNECT RENT CONNECT,25850,01/11/2019,RC-HDC070,OCT 2019,21/11/2019,0,675,675,Homelessness,B&B Accommodation,64401
http://statistics.data.gov.uk/id/local-authority/12UE,Huntingdonshire District Council,200673.00,RENT CONNECT RENT CONNECT,23243,16/09/2019,RC-HDC067,HLESS ACCOMMODATION,03/10/2019,0,135,135,Homelessness,B&B Accommodation,64401
http://statistics.data.gov.uk/id/local-authority/12UE,Huntingdonshire District Council,200673.00,RENT CONNECT RENT CONNECT,26264,19/11/2019,RC-HDC071,NOV 19,28/11/2019,0,675,675,Homelessness,B&B Accommodation,64401
http://statistics.data.gov.uk/id/local-authority/12UE,Huntingdonshire District Council,200673.00,RENT CONNECT RENT CONNECT,26750,01/12/2019,RC-HDC072,DECEMBER 2019,05/12/2019,0,675,675,Homelessness,B&B Accommodation,64401
http://statistics.data.gov.uk/id/local-authority/12UE,Huntingdonshire District Council,201011.00,CENTENNIAL PROPERTY LTD,23252,16/09/2019,CP-HDC067,HLESS ACCOMMODATION,03/10/2019,0,825,825,Homelessness,B&B Accommodation,64401
http://statistics.data.gov.uk/id/local-authority/12UE,Huntingdonshire District Council,201011.00,CENTENNIAL PROPERTY LTD,24621,17/10/2019,CP-HDC069,1-16 OCT 19,31/10/2019,0,165,165,Homelessness,B&B Accommodation,64401
http://statistics.data.gov.uk/id/local-authority/12UE,Huntingdonshire District Council,201011.00,CENTENNIAL PROPERTY LTD,24621,17/10/2019,CP-HDC069,1-16 OCT 19,31/10/2019,0,715,715,Homelessness,B&B Accommodation,64401
http://statistics.data.gov.uk/id/local-authority/12UE,Huntingdonshire District Council,201011.00,CENTENNIAL PROPERTY LTD,26209,16/11/2019,CP-HDC071,1-15 NOV 19,28/11/2019,0,770,770,Homelessness,B&B Accommodation,64401
http://statistics.data.gov.uk/id/local-authority/12UE,Huntingdonshire District Council,201011.00,CENTENNIAL PROPERTY LTD,23960,01/10/2019,CP-HDC068,16-30 SEPT 2019,17/10/2019,0,825,825,Homelessness,B&B Accommodation,64401
http://statistics.data.gov.uk/id/local-authority/12UE,Huntingdonshire District Council,201011.00,CENTENNIAL PROPERTY LTD,25304,01/11/2019,CP-HDC070,17-31 OCT 19,08/11/2019,0,825,825,Homelessness,B&B Accommodation,64401
http://statistics.data.gov.uk/id/local-authority/12UE,Huntingdonshire District Council,201012.00,COACH & HORSES,23251,16/09/2019,401,HLESS ACCOMMODATION,03/10/2019,56,280,336,Homelessness,B&B Accommodation,64401
http://statistics.data.gov.uk/id/local-authority/12UE,Huntingdonshire District Council,201012.00,COACH & HORSES,23253,23/09/2019,402,HLESS ACCOMMODATION,03/10/2019,56,280,336,Homelessness,B&B Accommodation,64401
http://statistics.data.gov.uk/id/local-authority/12UE,Huntingdonshire District Council,201012.00,COACH & HORSES,24472,14/10/2019,405,07-13/10/19,24/10/2019,56,280,336,Homelessness,B&B Accommodation,64401
http://statistics.data.gov.uk/id/local-authority/12UE,Huntingdonshire District Council,201012.00,COACH & HORSES,23782,30/09/2019,403,23-29/09/19,17/10/2019,56,280,336,Homelessness,B&B Accommodation,64401
http://statistics.data.gov.uk/id/local-authority/12UE,Huntingdonshire District Council,201012.00,COACH & HORSES,25321,04/11/2019,408,28/10-03/11/19,08/11/2019,56,280,336,Homelessness,B&B Accommodation,64401
http://statistics.data.gov.uk/id/local-authority/12UE,Huntingdonshire District Council,201012.00,COACH & HORSES,25147,28/10/2019,407,21-27/10/19,08/11/2019,56,280,336,Homelessness,B&B Accommodation,64401
http://statistics.data.gov.uk/id/local-authority/12UE,Huntingdonshire District Council,201012.00,COACH & HORSES,24153,07/10/2019,404,30/09-06/10/19,24/10/2019,56,280,336,Homelessness,B&B Accommodation,64401
http://statistics.data.gov.uk/id/local-authority/12UE,Huntingdonshire District Council,201012.00,COACH & HORSES,24281,21/10/2019,406,14-20/10/19,24/10/2019,56,280,336,Homelessness,B&B Accommodation,64401
http://statistics.data.gov.uk/id/local-authority/12UE,Huntingdonshire District Council,200673.00,RENT CONNECT RENT CONNECT,24570,17/10/2019,RC-HDC069,OCT 2019,31/10/2019,0,880,880,Homelessness,B&B Accommodation,64401
http://statistics.data.gov.uk/id/local-authority/12UE,Huntingdonshire District Council,200673.00,RENT CONNECT RENT CONNECT,23959,01/10/2019,RC-HDC068,SEPT 2019,17/10/2019,0,825,825,Homelessness,B&B Accommodation,64401
http://statistics.data.gov.uk/id/local-authority/12UE,Huntingdonshire District Council,200673.00,RENT CONNECT RENT CONNECT,25850,01/11/2019,RC-HDC070,OCT 2019,21/11/2019,0,825,825,Homelessness,B&B Accommodation,64401
http://statistics.data.gov.uk/id/local-authority/12UE,Huntingdonshire District Council,200673.00,RENT CONNECT RENT CONNECT,23243,16/09/2019,RC-HDC067,HLESS ACCOMMODATION,03/10/2019,0,825,825,Homelessness,B&B Accommodation,64401
http://statistics.data.gov.uk/id/local-authority/12UE,Huntingdonshire District Council,200673.00,RENT CONNECT RENT CONNECT,26264,19/11/2019,RC-HDC071,NOV 19,28/11/2019,0,825,825,Homelessness,B&B Accommodation,64401
http://statistics.data.gov.uk/id/local-authority/12UE,Huntingdonshire District Council,200673.00,RENT CONNECT RENT CONNECT,26750,01/12/2019,RC-HDC072,DECEMBER 2019,05/12/2019,0,825,825,Homelessness,B&B Accommodation,64401
http://statistics.data.gov.uk/id/local-authority/12UE,Huntingdonshire District Council,201012.00,COACH & HORSES,23251,16/09/2019,401,HLESS ACCOMMODATION,03/10/2019,56,280,336,Homelessness,B&B Accommodation,64401
http://statistics.data.gov.uk/id/local-authority/12UE,Huntingdonshire District Council,201012.00,COACH & HORSES,23253,23/09/2019,402,HLESS ACCOMMODATION,03/10/2019,56,280,336,Homelessness,B&B Accommodation,64401
http://statistics.data.gov.uk/id/local-authority/12UE,Huntingdonshire District Council,201012.00,COACH & HORSES,23782,30/09/2019,403,23-29/09/19,17/10/2019,56,280,336,Homelessness,B&B Accommodation,64401
http://statistics.data.gov.uk/id/local-authority/12UE,Huntingdonshire District Council,200808.00,IMPERIAL PORTFOLIOS LTD,23962,01/10/2019,SEP001_HUNT_2019,SEPT 2019,17/10/2019,144,720,864,Homelessness,B&B Accommodation,64401
http://statistics.data.gov.uk/id/local-authority/12UE,Huntingdonshire District Council,200808.00,IMPERIAL PORTFOLIOS LTD,25303,01/11/2019,OCT001_HUNT_2019,OCT 19,08/11/2019,248,1240,1488,Homelessness,B&B Accommodation,64401
http://statistics.data.gov.uk/id/local-authority/12UE,Huntingdonshire District Council,200808.00,IMPERIAL PORTFOLIOS LTD,26751,01/12/2019,NOV001_HUNT_2019,NOVEMBER 2019,05/12/2019,240,1200,1440,Homelessness,B&B Accommodation,64401
http://statistics.data.gov.uk/id/local-authority/12UE,Huntingdonshire District Council,201012.00,COACH & HORSES,23251,16/09/2019,401,HLESS ACCOMMODATION,03/10/2019,44,220,264,Homelessness,B&B Accommodation,64401
http://statistics.data.gov.uk/id/local-authority/12UE,Huntingdonshire District Council,200673.00,RENT CONNECT RENT CONNECT,24570,17/10/2019,RC-HDC069,OCT 2019,31/10/2019,0,720,720,Homelessness,B&B Accommodation,64401
http://statistics.data.gov.uk/id/local-authority/12UE,Huntingdonshire District Council,200673.00,RENT CONNECT RENT CONNECT,23959,01/10/2019,RC-HDC068,SEPT 2019,17/10/2019,0,675,675,Homelessness,B&B Accommodation,64401
http://statistics.data.gov.uk/id/local-authority/12UE,Huntingdonshire District Council,200673.00,RENT CONNECT RENT CONNECT,25850,01/11/2019,RC-HDC070,OCT 2019,21/11/2019,0,675,675,Homelessness,B&B Accommodation,64401
http://statistics.data.gov.uk/id/local-authority/12UE,Huntingdonshire District Council,200673.00,RENT CONNECT RENT CONNECT,23243,16/09/2019,RC-HDC067,HLESS ACCOMMODATION,03/10/2019,0,90,90,Homelessness,B&B Accommodation,64401
http://statistics.data.gov.uk/id/local-authority/12UE,Huntingdonshire District Council,200673.00,RENT CONNECT RENT CONNECT,23243,16/09/2019,RC-HDC067,HLESS ACCOMMODATION,03/10/2019,0,585,585,Homelessness,B&B Accommodation,64401
http://statistics.data.gov.uk/id/local-authority/12UE,Huntingdonshire District Council,200673.00,RENT CONNECT RENT CONNECT,26750,01/12/2019,RC-HDC072,DECEMBER 2019,05/12/2019,0,675,675,Homelessness,B&B Accommodation,64401
http://statistics.data.gov.uk/id/local-authority/12UE,Huntingdonshire District Council,200808.00,IMPERIAL PORTFOLIOS LTD,23962,01/10/2019,SEP001_HUNT_2019,SEPT 2019,17/10/2019,240,1200,1440,Homelessness,B&B Accommodation,64401
http://statistics.data.gov.uk/id/local-authority/12UE,Huntingdonshire District Council,200808.00,IMPERIAL PORTFOLIOS LTD,25303,01/11/2019,OCT001_HUNT_2019,OCT 19,08/11/2019,24,120,144,Homelessness,B&B Accommodation,64401
http://statistics.data.gov.uk/id/local-authority/12UE,Huntingdonshire District Council,201012.00,COACH & HORSES,23251,16/09/2019,401,HLESS ACCOMMODATION,03/10/2019,56,280,336,Homelessness,B&B Accommodation,64401
http://statistics.data.gov.uk/id/local-authority/12UE,Huntingdonshire District Council,201012.00,COACH & HORSES,23253,23/09/2019,402,HLESS ACCOMMODATION,03/10/2019,56,280,336,Homelessness,B&B Accommodation,64401
http://statistics.data.gov.uk/id/local-authority/12UE,Huntingdonshire District Council,201012.00,COACH & HORSES,24472,14/10/2019,405,07-13/10/19,24/10/2019,56,280,336,Homelessness,B&B Accommodation,64401
http://statistics.data.gov.uk/id/local-authority/12UE,Huntingdonshire District Council,201012.00,COACH & HORSES,23782,30/09/2019,403,23-29/09/19,17/10/2019,56,280,336,Homelessness,B&B Accommodation,64401
http://statistics.data.gov.uk/id/local-authority/12UE,Huntingdonshire District Council,201012.00,COACH & HORSES,24153,07/10/2019,404,30/09-06/10/19,24/10/2019,56,280,336,Homelessness,B&B Accommodation,64401
http://statistics.data.gov.uk/id/local-authority/12UE,Huntingdonshire District Council,200673.00,RENT CONNECT RENT CONNECT,24570,17/10/2019,RC-HDC069,OCT 2019,31/10/2019,0,880,880,Homelessness,B&B Accommodation,64401
http://statistics.data.gov.uk/id/local-authority/12UE,Huntingdonshire District Council,200673.00,RENT CONNECT RENT CONNECT,23959,01/10/2019,RC-HDC068,SEPT 2019,17/10/2019,0,825,825,Homelessness,B&B Accommodation,64401
http://statistics.data.gov.uk/id/local-authority/12UE,Huntingdonshire District Council,200673.00,RENT CONNECT RENT CONNECT,25850,01/11/2019,RC-HDC070,OCT 2019,21/11/2019,0,825,825,Homelessness,B&B Accommodation,64401
http://statistics.data.gov.uk/id/local-authority/12UE,Huntingdonshire District Council,200673.00,RENT CONNECT RENT CONNECT,23243,16/09/2019,RC-HDC067,HLESS ACCOMMODATION,03/10/2019,0,825,825,Homelessness,B&B Accommodation,64401
http://statistics.data.gov.uk/id/local-authority/12UE,Huntingdonshire District Council,200673.00,RENT CONNECT RENT CONNECT,26264,19/11/2019,RC-HDC071,NOV 19,28/11/2019,0,825,825,Homelessness,B&B Accommodation,64401
http://statistics.data.gov.uk/id/local-authority/12UE,Huntingdonshire District Council,200673.00,RENT CONNECT RENT CONNECT,26750,01/12/2019,RC-HDC072,DECEMBER 2019,05/12/2019,0,825,825,Homelessness,B&B Accommodation,64401
http://statistics.data.gov.uk/id/local-authority/12UE,Huntingdonshire District Council,200808.00,IMPERIAL PORTFOLIOS LTD,23962,01/10/2019,SEP001_HUNT_2019,SEPT 2019,17/10/2019,270,1350,1620,Homelessness,B&B Accommodation,64401
http://statistics.data.gov.uk/id/local-authority/12UE,Huntingdonshire District Council,200808.00,IMPERIAL PORTFOLIOS LTD,26751,01/12/2019,NOV001_HUNT_2019,NOVEMBER 2019,05/12/2019,153,765,918,Homelessness,B&B Accommodation,64401
http://statistics.data.gov.uk/id/local-authority/12UE,Huntingdonshire District Council,200808.00,IMPERIAL PORTFOLIOS LTD,23962,01/10/2019,SEP001_HUNT_2019,SEPT 2019,17/10/2019,240,1200,1440,Homelessness,B&B Accommodation,64401
http://statistics.data.gov.uk/id/local-authority/12UE,Huntingdonshire District Council,200808.00,IMPERIAL PORTFOLIOS LTD,25303,01/11/2019,OCT001_HUNT_2019,OCT 19,08/11/2019,16,80,96,Homelessness,B&B Accommodation,64401
http://statistics.data.gov.uk/id/local-authority/12UE,Huntingdonshire District Council,201011.00,CENTENNIAL PROPERTY LTD,23252,16/09/2019,CP-HDC067,HLESS ACCOMMODATION,03/10/2019,0,304,304,Homelessness,B&B Accommodation,64401
http://statistics.data.gov.uk/id/local-authority/12UE,Huntingdonshire District Council,201011.00,CENTENNIAL PROPERTY LTD,23252,16/09/2019,CP-HDC067,HLESS ACCOMMODATION,03/10/2019,0,660,660,Homelessness,B&B Accommodation,64401
http://statistics.data.gov.uk/id/local-authority/12UE,Huntingdonshire District Council,200673.00,RENT CONNECT RENT CONNECT,24570,17/10/2019,RC-HDC069,OCT 2019,31/10/2019,0,720,720,Homelessness,B&B Accommodation,64401
http://statistics.data.gov.uk/id/local-authority/12UE,Huntingdonshire District Council,200673.00,RENT CONNECT RENT CONNECT,23959,01/10/2019,RC-HDC068,SEPT 2019,17/10/2019,0,675,675,Homelessness,B&B Accommodation,64401
http://statistics.data.gov.uk/id/local-authority/12UE,Huntingdonshire District Council,200673.00,RENT CONNECT RENT CONNECT,25850,01/11/2019,RC-HDC070,OCT 2019,21/11/2019,0,675,675,Homelessness,B&B Accommodation,64401
http://statistics.data.gov.uk/id/local-authority/12UE,Huntingdonshire District Council,200673.00,RENT CONNECT RENT CONNECT,23243,16/09/2019,RC-HDC067,HLESS ACCOMMODATION,03/10/2019,0,675,675,Homelessness,B&B Accommodation,64401
http://statistics.data.gov.uk/id/local-authority/12UE,Huntingdonshire District Council,200673.00,RENT CONNECT RENT CONNECT,26264,19/11/2019,RC-HDC071,NOV 19,28/11/2019,0,675,675,Homelessness,B&B Accommodation,64401
http://statistics.data.gov.uk/id/local-authority/12UE,Huntingdonshire District Council,200673.00,RENT CONNECT RENT CONNECT,26750,01/12/2019,RC-HDC072,DECEMBER 2019,05/12/2019,0,675,675,Homelessness,B&B Accommodation,64401
http://statistics.data.gov.uk/id/local-authority/12UE,Huntingdonshire District Council,200808.00,IMPERIAL PORTFOLIOS LTD,23962,01/10/2019,SEP001_HUNT_2019,SEPT 2019,17/10/2019,135,675,810,Homelessness,B&B Accommodation,64401
http://statistics.data.gov.uk/id/local-authority/12UE,Huntingdonshire District Council,200808.00,IMPERIAL PORTFOLIOS LTD,23962,01/10/2019,SEP001_HUNT_2019,SEPT 2019,17/10/2019,99,495,594,Homelessness,B&B Accommodation,64401
http://statistics.data.gov.uk/id/local-authority/12UE,Huntingdonshire District Council,200808.00,IMPERIAL PORTFOLIOS LTD,25303,01/11/2019,OCT001_HUNT_2019,OCT 19,08/11/2019,279,1395,1674,Homelessness,B&B Accommodation,64401
http://statistics.data.gov.uk/id/local-authority/12UE,Huntingdonshire District Council,200808.00,IMPERIAL PORTFOLIOS LTD,26751,01/12/2019,NOV001_HUNT_2019,NOVEMBER 2019,05/12/2019,270,1350,1620,Homelessness,B&B Accommodation,64401
http://statistics.data.gov.uk/id/local-authority/12UE,Huntingdonshire District Council,201012.00,COACH & HORSES,23251,16/09/2019,401,HLESS ACCOMMODATION,03/10/2019,77,385,462,Homelessness,B&B Accommodation,64401
http://statistics.data.gov.uk/id/local-authority/12UE,Huntingdonshire District Council,201012.00,COACH & HORSES,23253,23/09/2019,402,HLESS ACCOMMODATION,03/10/2019,44,220,264,Homelessness,B&B Accommodation,64401
http://statistics.data.gov.uk/id/local-authority/12UE,Huntingdonshire District Council,200808.00,IMPERIAL PORTFOLIOS LTD,23962,01/10/2019,SEP001_HUNT_2019,SEPT 2019,17/10/2019,234,1170,1404,Homelessness,B&B Accommodation,64401
http://statistics.data.gov.uk/id/local-authority/12UE,Huntingdonshire District Council,200808.00,IMPERIAL PORTFOLIOS LTD,25303,01/11/2019,OCT001_HUNT_2019,OCT 19,08/11/2019,279,1395,1674,Homelessness,B&B Accommodation,64401
http://statistics.data.gov.uk/id/local-authority/12UE,Huntingdonshire District Council,200808.00,IMPERIAL PORTFOLIOS LTD,26751,01/12/2019,NOV001_HUNT_2019,NOVEMBER 2019,05/12/2019,270,1350,1620,Homelessness,B&B Accommodation,64401
http://statistics.data.gov.uk/id/local-authority/12UE,Huntingdonshire District Council,201011.00,CENTENNIAL PROPERTY LTD,23252,16/09/2019,CP-HDC067,HLESS ACCOMMODATION,03/10/2019,0,114,114,Homelessness,B&B Accommodation,64401
http://statistics.data.gov.uk/id/local-authority/12UE,Huntingdonshire District Council,201011.00,CENTENNIAL PROPERTY LTD,24621,17/10/2019,CP-HDC069,1-16 OCT 19,31/10/2019,0,608,608,Homelessness,B&B Accommodation,64401
http://statistics.data.gov.uk/id/local-authority/12UE,Huntingdonshire District Council,201011.00,CENTENNIAL PROPERTY LTD,26209,16/11/2019,CP-HDC071,1-15 NOV 19,28/11/2019,0,570,570,Homelessness,B&B Accommodation,64401
http://statistics.data.gov.uk/id/local-authority/12UE,Huntingdonshire District Council,201011.00,CENTENNIAL PROPERTY LTD,23960,01/10/2019,CP-HDC068,16-30 SEPT 2019,17/10/2019,0,570,570,Homelessness,B&B Accommodation,64401
http://statistics.data.gov.uk/id/local-authority/12UE,Huntingdonshire District Council,201011.00,CENTENNIAL PROPERTY LTD,25304,01/11/2019,CP-HDC070,17-31 OCT 19,08/11/2019,0,570,570,Homelessness,B&B Accommodation,64401
http://statistics.data.gov.uk/id/local-authority/12UE,Huntingdonshire District Council,201011.00,CENTENNIAL PROPERTY LTD,26749,01/12/2019,CP-HDC072,16-30 NOV 19,05/12/2019,0,190,190,Homelessness,B&B Accommodation,64401
http://statistics.data.gov.uk/id/local-authority/12UE,Huntingdonshire District Council,201011.00,CENTENNIAL PROPERTY LTD,26749,01/12/2019,CP-HDC072,16-30 NOV 19,05/12/2019,0,380,380,Homelessness,B&B Accommodation,64401
http://statistics.data.gov.uk/id/local-authority/12UE,Huntingdonshire District Council,201012.00,COACH & HORSES,23251,16/09/2019,401,HLESS ACCOMMODATION,03/10/2019,8,40,48,Homelessness,B&B Accommodation,64401
http://statistics.data.gov.uk/id/local-authority/12UE,Huntingdonshire District Council,201011.00,CENTENNIAL PROPERTY LTD,23252,16/09/2019,CP-HDC067,HLESS ACCOMMODATION,03/10/2019,0,114,114,Homelessness,B&B Accommodation,64401
http://statistics.data.gov.uk/id/local-authority/12UE,Huntingdonshire District Council,201011.00,CENTENNIAL PROPERTY LTD,24621,17/10/2019,CP-HDC069,1-16 OCT 19,31/10/2019,0,608,608,Homelessness,B&B Accommodation,64401
http://statistics.data.gov.uk/id/local-authority/12UE,Huntingdonshire District Council,201011.00,CENTENNIAL PROPERTY LTD,26209,16/11/2019,CP-HDC071,1-15 NOV 19,28/11/2019,0,570,570,Homelessness,B&B Accommodation,64401
http://statistics.data.gov.uk/id/local-authority/12UE,Huntingdonshire District Council,201011.00,CENTENNIAL PROPERTY LTD,23960,01/10/2019,CP-HDC068,16-30 SEPT 2019,17/10/2019,0,570,570,Homelessness,B&B Accommodation,64401
http://statistics.data.gov.uk/id/local-authority/12UE,Huntingdonshire District Council,201011.00,CENTENNIAL PROPERTY LTD,25304,01/11/2019,CP-HDC070,17-31 OCT 19,08/11/2019,0,570,570,Homelessness,B&B Accommodation,64401
http://statistics.data.gov.uk/id/local-authority/12UE,Huntingdonshire District Council,201011.00,CENTENNIAL PROPERTY LTD,26749,01/12/2019,CP-HDC072,16-30 NOV 19,05/12/2019,0,570,570,Homelessness,B&B Accommodation,64401
http://statistics.data.gov.uk/id/local-authority/12UE,Huntingdonshire District Council,201012.00,COACH & HORSES,23253,23/09/2019,402,HLESS ACCOMMODATION,03/10/2019,24,120,144,Homelessness,B&B Accommodation,64401
http://statistics.data.gov.uk/id/local-authority/12UE,Huntingdonshire District Council,201012.00,COACH & HORSES,24472,14/10/2019,405,07-13/10/19,24/10/2019,56,280,336,Homelessness,B&B Accommodation,64401
http://statistics.data.gov.uk/id/local-authority/12UE,Huntingdonshire District Council,201012.00,COACH & HORSES,23782,30/09/2019,403,23-29/09/19,17/10/2019,56,280,336,Homelessness,B&B Accommodation,64401
http://statistics.data.gov.uk/id/local-authority/12UE,Huntingdonshire District Council,201012.00,COACH & HORSES,24153,07/10/2019,404,30/09-06/10/19,24/10/2019,56,280,336,Homelessness,B&B Accommodation,64401
http://statistics.data.gov.uk/id/local-authority/12UE,Huntingdonshire District Council,201012.00,COACH & HORSES,24281,21/10/2019,406,14-20/10/19,24/10/2019,32,160,192,Homelessness,B&B Accommodation,64401
http://statistics.data.gov.uk/id/local-authority/12UE,Huntingdonshire District Council,200673.00,RENT CONNECT RENT CONNECT,23959,01/10/2019,RC-HDC068,SEPT 2019,17/10/2019,0,38,38,Homelessness,B&B Accommodation,64401
http://statistics.data.gov.uk/id/local-authority/12UE,Huntingdonshire District Council,200808.00,IMPERIAL PORTFOLIOS LTD,23962,01/10/2019,SEP001_HUNT_2019,SEPT 2019,17/10/2019,99,495,594,Homelessness,B&B Accommodation,64401
http://statistics.data.gov.uk/id/local-authority/12UE,Huntingdonshire District Council,200808.00,IMPERIAL PORTFOLIOS LTD,25303,01/11/2019,OCT001_HUNT_2019,OCT 19,08/11/2019,36,180,216,Homelessness,B&B Accommodation,64401
http://statistics.data.gov.uk/id/local-authority/12UE,Huntingdonshire District Council,200673.00,RENT CONNECT RENT CONNECT,24570,17/10/2019,RC-HDC069,OCT 2019,31/10/2019,0,720,720,Homelessness,B&B Accommodation,64401
http://statistics.data.gov.uk/id/local-authority/12UE,Huntingdonshire District Council,200673.00,RENT CONNECT RENT CONNECT,23959,01/10/2019,RC-HDC068,SEPT 2019,17/10/2019,0,630,630,Homelessness,B&B Accommodation,64401
http://statistics.data.gov.uk/id/local-authority/12UE,Huntingdonshire District Council,200673.00,RENT CONNECT RENT CONNECT,25850,01/11/2019,RC-HDC070,OCT 2019,21/11/2019,0,675,675,Homelessness,B&B Accommodation,64401
http://statistics.data.gov.uk/id/local-authority/12UE,Huntingdonshire District Council,200673.00,RENT CONNECT RENT CONNECT,26264,19/11/2019,RC-HDC071,NOV 19,28/11/2019,0,540,540,Homelessness,B&B Accommodation,64401
http://statistics.data.gov.uk/id/local-authority/12UE,Huntingdonshire District Council,201012.00,COACH & HORSES,24472,14/10/2019,405,07-13/10/19,24/10/2019,63,315,378,Homelessness,B&B Accommodation,64401
http://statistics.data.gov.uk/id/local-authority/12UE,Huntingdonshire District Council,201012.00,COACH & HORSES,24153,07/10/2019,404,30/09-06/10/19,24/10/2019,45,225,270,Homelessness,B&B Accommodation,64401
http://statistics.data.gov.uk/id/local-authority/12UE,Huntingdonshire District Council,201012.00,COACH & HORSES,24281,21/10/2019,406,14-20/10/19,24/10/2019,27,135,162,Homelessness,B&B Accommodation,64401
http://statistics.data.gov.uk/id/local-authority/12UE,Huntingdonshire District Council,200808.00,IMPERIAL PORTFOLIOS LTD,25303,01/11/2019,OCT001_HUNT_2019,OCT 19,08/11/2019,189,945,1134,Homelessness,B&B Accommodation,64401
http://statistics.data.gov.uk/id/local-authority/12UE,Huntingdonshire District Council,200808.00,IMPERIAL PORTFOLIOS LTD,26751,01/12/2019,NOV001_HUNT_2019,NOVEMBER 2019,05/12/2019,270,1350,1620,Homelessness,B&B Accommodation,64401
http://statistics.data.gov.uk/id/local-authority/12UE,Huntingdonshire District Council,201011.00,CENTENNIAL PROPERTY LTD,24621,17/10/2019,CP-HDC069,1-16 OCT 19,31/10/2019,0,40,40,Homelessness,B&B Accommodation,64401
http://statistics.data.gov.uk/id/local-authority/12UE,Huntingdonshire District Council,201012.00,COACH & HORSES,24472,14/10/2019,405,07-13/10/19,24/10/2019,8,40,48,Homelessness,B&B Accommodation,64401
http://statistics.data.gov.uk/id/local-authority/12UE,Huntingdonshire District Council,200673.00,RENT CONNECT RENT CONNECT,24570,17/10/2019,RC-HDC069,OCT 2019,31/10/2019,0,720,720,Homelessness,B&B Accommodation,64401
http://statistics.data.gov.uk/id/local-authority/12UE,Huntingdonshire District Council,200673.00,RENT CONNECT RENT CONNECT,25850,01/11/2019,RC-HDC070,OCT 2019,21/11/2019,0,675,675,Homelessness,B&B Accommodation,64401
http://statistics.data.gov.uk/id/local-authority/12UE,Huntingdonshire District Council,200673.00,RENT CONNECT RENT CONNECT,26264,19/11/2019,RC-HDC071,NOV 19,28/11/2019,0,675,675,Homelessness,B&B Accommodation,64401
http://statistics.data.gov.uk/id/local-authority/12UE,Huntingdonshire District Council,200673.00,RENT CONNECT RENT CONNECT,26750,01/12/2019,RC-HDC072,DECEMBER 2019,05/12/2019,0,90,90,Homelessness,B&B Accommodation,64401
http://statistics.data.gov.uk/id/local-authority/12UE,Huntingdonshire District Council,200808.00,IMPERIAL PORTFOLIOS LTD,25303,01/11/2019,OCT001_HUNT_2019,OCT 19,08/11/2019,279,1395,1674,Homelessness,B&B Accommodation,64401
http://statistics.data.gov.uk/id/local-authority/12UE,Huntingdonshire District Council,201011.00,CENTENNIAL PROPERTY LTD,26209,16/11/2019,CP-HDC071,1-15 NOV 19,28/11/2019,0,38,38,Homelessness,B&B Accommodation,64401
http://statistics.data.gov.uk/id/local-authority/12UE,Huntingdonshire District Council,201011.00,CENTENNIAL PROPERTY LTD,26749,01/12/2019,CP-HDC072,16-30 NOV 19,05/12/2019,0,570,570,Homelessness,B&B Accommodation,64401
http://statistics.data.gov.uk/id/local-authority/12UE,Huntingdonshire District Council,200808.00,IMPERIAL PORTFOLIOS LTD,25303,01/11/2019,OCT001_HUNT_2019,OCT 19,08/11/2019,128,640,768,Homelessness,B&B Accommodation,64401
http://statistics.data.gov.uk/id/local-authority/12UE,Huntingdonshire District Council,200808.00,IMPERIAL PORTFOLIOS LTD,26751,01/12/2019,NOV001_HUNT_2019,NOVEMBER 2019,05/12/2019,40,200,240,Homelessness,B&B Accommodation,64401
http://statistics.data.gov.uk/id/local-authority/12UE,Huntingdonshire District Council,201011.00,CENTENNIAL PROPERTY LTD,26749,01/12/2019,CP-HDC072,16-30 NOV 19,05/12/2019,0,912,912,Homelessness,B&B Accommodation,64401
http://statistics.data.gov.uk/id/local-authority/12UE,Huntingdonshire District Council,200673.00,RENT CONNECT RENT CONNECT,25850,01/11/2019,RC-HDC070,OCT 2019,21/11/2019,0,525,525,Homelessness,B&B Accommodation,64401
http://statistics.data.gov.uk/id/local-authority/12UE,Huntingdonshire District Council,200673.00,RENT CONNECT RENT CONNECT,26750,01/12/2019,RC-HDC072,DECEMBER 2019,05/12/2019,0,525,525,Homelessness,B&B Accommodation,64401
http://statistics.data.gov.uk/id/local-authority/12UE,Huntingdonshire District Council,201011.00,CENTENNIAL PROPERTY LTD,24621,17/10/2019,CP-HDC069,1-16 OCT 19,31/10/2019,0,608,608,Homelessness,B&B Accommodation,64401
http://statistics.data.gov.uk/id/local-authority/12UE,Huntingdonshire District Council,201011.00,CENTENNIAL PROPERTY LTD,25304,01/11/2019,CP-HDC070,17-31 OCT 19,08/11/2019,0,570,570,Homelessness,B&B Accommodation,64401
http://statistics.data.gov.uk/id/local-authority/12UE,Huntingdonshire District Council,201011.00,CENTENNIAL PROPERTY LTD,26749,01/12/2019,CP-HDC072,16-30 NOV 19,05/12/2019,0,570,570,Homelessness,B&B Accommodation,64401
http://statistics.data.gov.uk/id/local-authority/12UE,Huntingdonshire District Council,201011.00,CENTENNIAL PROPERTY LTD,24621,17/10/2019,CP-HDC069,1-16 OCT 19,31/10/2019,0,135,135,Homelessness,B&B Accommodation,64401
http://statistics.data.gov.uk/id/local-authority/12UE,Huntingdonshire District Council,201011.00,CENTENNIAL PROPERTY LTD,26209,16/11/2019,CP-HDC071,1-15 NOV 19,28/11/2019,0,675,675,Homelessness,B&B Accommodation,64401
http://statistics.data.gov.uk/id/local-authority/12UE,Huntingdonshire District Council,201011.00,CENTENNIAL PROPERTY LTD,25304,01/11/2019,CP-HDC070,17-31 OCT 19,08/11/2019,0,675,675,Homelessness,B&B Accommodation,64401
http://statistics.data.gov.uk/id/local-authority/12UE,Huntingdonshire District Council,201011.00,CENTENNIAL PROPERTY LTD,26749,01/12/2019,CP-HDC072,16-30 NOV 19,05/12/2019,0,675,675,Homelessness,B&B Accommodation,64401
http://statistics.data.gov.uk/id/local-authority/12UE,Huntingdonshire District Council,201011.00,CENTENNIAL PROPERTY LTD,24621,17/10/2019,CP-HDC069,1-16 OCT 19,31/10/2019,0,630,630,Homelessness,B&B Accommodation,64401
http://statistics.data.gov.uk/id/local-authority/12UE,Huntingdonshire District Council,201011.00,CENTENNIAL PROPERTY LTD,26209,16/11/2019,CP-HDC071,1-15 NOV 19,28/11/2019,0,675,675,Homelessness,B&B Accommodation,64401
http://statistics.data.gov.uk/id/local-authority/12UE,Huntingdonshire District Council,201011.00,CENTENNIAL PROPERTY LTD,25304,01/11/2019,CP-HDC070,17-31 OCT 19,08/11/2019,0,675,675,Homelessness,B&B Accommodation,64401
http://statistics.data.gov.uk/id/local-authority/12UE,Huntingdonshire District Council,201011.00,CENTENNIAL PROPERTY LTD,26749,01/12/2019,CP-HDC072,16-30 NOV 19,05/12/2019,0,675,675,Homelessness,B&B Accommodation,64401
http://statistics.data.gov.uk/id/local-authority/12UE,Huntingdonshire District Council,201011.00,CENTENNIAL PROPERTY LTD,26209,16/11/2019,CP-HDC071,1-15 NOV 19,28/11/2019,0,760,760,Homelessness,B&B Accommodation,64401
http://statistics.data.gov.uk/id/local-authority/12UE,Huntingdonshire District Council,201012.00,COACH & HORSES,26390,25/11/2019,411,18-24/11/19,28/11/2019,56,280,336,Homelessness,B&B Accommodation,64401
http://statistics.data.gov.uk/id/local-authority/12UE,Huntingdonshire District Council,201012.00,COACH & HORSES,25321,04/11/2019,408,28/10-03/11/19,08/11/2019,56,280,336,Homelessness,B&B Accommodation,64401
http://statistics.data.gov.uk/id/local-authority/12UE,Huntingdonshire District Council,201012.00,COACH & HORSES,25147,28/10/2019,407,21-27/10/19,08/11/2019,56,280,336,Homelessness,B&B Accommodation,64401
http://statistics.data.gov.uk/id/local-authority/12UE,Huntingdonshire District Council,201012.00,COACH & HORSES,25905,11/11/2019,409,04-10/11/19,21/11/2019,56,280,336,Homelessness,B&B Accommodation,64401
http://statistics.data.gov.uk/id/local-authority/12UE,Huntingdonshire District Council,201012.00,COACH & HORSES,26628,02/12/2019,412,25/11 - 01/12/19,05/12/2019,56,280,336,Homelessness,B&B Accommodation,64401
http://statistics.data.gov.uk/id/local-authority/12UE,Huntingdonshire District Council,201012.00,COACH & HORSES,25976,18/11/2019,410,11-17/11/19,21/11/2019,56,280,336,Homelessness,B&B Accommodation,64401
http://statistics.data.gov.uk/id/local-authority/12UE,Huntingdonshire District Council,201012.00,COACH & HORSES,27195,09/12/2019,413,02-08/12/19,19/12/2019,8,40,48,Homelessness,B&B Accommodation,64401
http://statistics.data.gov.uk/id/local-authority/12UE,Huntingdonshire District Council,201012.00,COACH & HORSES,24281,21/10/2019,406,14-20/10/19,24/10/2019,8,40,48,Homelessness,B&B Accommodation,64401
http://statistics.data.gov.uk/id/local-authority/12UE,Huntingdonshire District Council,201012.00,COACH & HORSES,26390,25/11/2019,411,18-24/11/19,28/11/2019,36,180,216,Homelessness,B&B Accommodation,64401
http://statistics.data.gov.uk/id/local-authority/12UE,Huntingdonshire District Council,201012.00,COACH & HORSES,25321,04/11/2019,408,28/10-03/11/19,08/11/2019,63,315,378,Homelessness,B&B Accommodation,64401
http://statistics.data.gov.uk/id/local-authority/12UE,Huntingdonshire District Council,201012.00,COACH & HORSES,25905,11/11/2019,409,04-10/11/19,21/11/2019,63,315,378,Homelessness,B&B Accommodation,64401
http://statistics.data.gov.uk/id/local-authority/12UE,Huntingdonshire District Council,201012.00,COACH & HORSES,25976,18/11/2019,410,11-17/11/19,21/11/2019,63,315,378,Homelessness,B&B Accommodation,64401
http://statistics.data.gov.uk/id/local-authority/12UE,Huntingdonshire District Council,200673.00,RENT CONNECT RENT CONNECT,26264,19/11/2019,RC-HDC071,NOV 19,28/11/2019,0,225,225,Homelessness,B&B Accommodation,64401
http://statistics.data.gov.uk/id/local-authority/12UE,Huntingdonshire District Council,200673.00,RENT CONNECT RENT CONNECT,26750,01/12/2019,RC-HDC072,DECEMBER 2019,05/12/2019,0,675,675,Homelessness,B&B Accommodation,64401
http://statistics.data.gov.uk/id/local-authority/12UE,Huntingdonshire District Council,201012.00,COACH & HORSES,26390,25/11/2019,411,18-24/11/19,28/11/2019,112,560,672,Homelessness,B&B Accommodation,64401
http://statistics.data.gov.uk/id/local-authority/12UE,Huntingdonshire District Council,201012.00,COACH & HORSES,26628,02/12/2019,412,25/11 - 01/12/19,05/12/2019,56,280,336,Homelessness,B&B Accommodation,64401
http://statistics.data.gov.uk/id/local-authority/12UE,Huntingdonshire District Council,201012.00,COACH & HORSES,27195,09/12/2019,413,02-08/12/19,19/12/2019,56,280,336,Homelessness,B&B Accommodation,64401
http://statistics.data.gov.uk/id/local-authority/12UE,Huntingdonshire District Council,201012.00,COACH & HORSES,26628,02/12/2019,412,25/11 - 01/12/19,05/12/2019,40,200,240,Homelessness,B&B Accommodation,64401
http://statistics.data.gov.uk/id/local-authority/12UE,Huntingdonshire District Council,201012.00,COACH & HORSES,27195,09/12/2019,413,02-08/12/19,19/12/2019,32,160,192,Homelessness,B&B Accommodation,64401
http://statistics.data.gov.uk/id/local-authority/12UE,Huntingdonshire District Council,201012.00,COACH & HORSES,27195,09/12/2019,413,02-08/12/19,19/12/2019,24,120,144,Homelessness,B&B Accommodation,64401
http://statistics.data.gov.uk/id/local-authority/12UE,Huntingdonshire District Council,200673.00,RENT CONNECT RENT CONNECT,26750,01/12/2019,RC-HDC072,DECEMBER 2019,05/12/2019,0,135,135,Homelessness,B&B Accommodation,64401
http://statistics.data.gov.uk/id/local-authority/12UE,Huntingdonshire District Council,201012.00,COACH & HORSES,27195,09/12/2019,413,02-08/12/19,19/12/2019,32,160,192,Homelessness,B&B Accommodation,64401
http://statistics.data.gov.uk/id/local-authority/12UE,Huntingdonshire District Council,200673.00,RENT CONNECT RENT CONNECT,26264,19/11/2019,RC-HDC071,NOV 19,28/11/2019,0,675,675,Homelessness,B&B Costs Recovered,51406
http://statistics.data.gov.uk/id/local-authority/12UE,Huntingdonshire District Council,200309.00,FRANKLINS GROUP FRANKLINS GROUP,24833,10/09/2019,0000175592,OL ST IVES,31/10/2019,39.94,199.69,239.63,OLH - Swimming,Badges and Certificates,61712
http://statistics.data.gov.uk/id/local-authority/12UE,Huntingdonshire District Council,200309.00,FRANKLINS GROUP FRANKLINS GROUP,24833,10/09/2019,0000175592,OL ST IVES,31/10/2019,16.67,83.33,100,OLR - Swimming,Badges and Certificates,61712
http://statistics.data.gov.uk/id/local-authority/12UE,Huntingdonshire District Council,200309.00,FRANKLINS GROUP FRANKLINS GROUP,24833,10/09/2019,0000175592,OL ST IVES,31/10/2019,16.67,83.33,100,OLS - Swimming,Badges and Certificates,61712
http://statistics.data.gov.uk/id/local-authority/12UE,Huntingdonshire District Council,200309.00,FRANKLINS GROUP FRANKLINS GROUP,24833,10/09/2019,0000175592,OL ST IVES,31/10/2019,77.76,388.82,466.58,OLSI - Swimming,Badges and Certificates,61712
http://statistics.data.gov.uk/id/local-authority/12UE,Huntingdonshire District Council,200309.00,FRANKLINS GROUP FRANKLINS GROUP,24833,10/09/2019,0000175592,OL ST IVES,31/10/2019,86.67,433.33,520,OLSN - Swimming,Badges and Certificates,61712
http://statistics.data.gov.uk/id/local-authority/12UE,Huntingdonshire District Council,200113.00,BOOKER CASH AND CARRY BOOKER CASH AND CARRY,26988,04/12/2019,2109595225,OL ST IVES,19/12/2019,772.14,3860.7,4632.84,OLSI - Burgess Bar,Bar Provisions,61905
http://statistics.data.gov.uk/id/local-authority/12UE,Huntingdonshire District Council,200113.00,BOOKER CASH AND CARRY BOOKER CASH AND CARRY,24214,02/10/2019,2109080890,OL ST IVES,24/10/2019,396.65,1983.26,2379.91,OLSI - Burgess Bar,Bar Provisions,61905
http://statistics.data.gov.uk/id/local-authority/12UE,Huntingdonshire District Council,200113.00,BOOKER CASH AND CARRY BOOKER CASH AND CARRY,25966,13/11/2019,2109418655,OL ST IVES,05/12/2019,286,1430.02,1716.02,OLSI - Burgess Bar,Bar Provisions,61905
http://statistics.data.gov.uk/id/local-authority/12UE,Huntingdonshire District Council,200113.00,BOOKER CASH AND CARRY BOOKER CASH AND CARRY,24950,23/10/2019,2109247798,OL ST IVES,13/11/2019,315.07,1575.34,1890.41,OLSI - Burgess Bar,Bar Provisions,61905
http://statistics.data.gov.uk/id/local-authority/12UE,Huntingdonshire District Council,200471.00,LACONS LACONS,24307,03/10/2019,808598,OL ST IVES,31/10/2019,272.6,1363.01,1635.61,OLSI - Burgess Bar,Bar Provisions,61905
http://statistics.data.gov.uk/id/local-authority/12UE,Huntingdonshire District Council,200471.00,LACONS LACONS,24947,24/10/2019,811590,OL ST IVES,21/11/2019,275.26,1376.3,1651.56,OLSI - Burgess Bar,Bar Provisions,61905
http://statistics.data.gov.uk/id/local-authority/12UE,Huntingdonshire District Council,200583.00,OAKHAM ALES OAKHAM ALES,25965,15/11/2019,I221672,OL ST IVES,21/11/2019,279.97,1399.87,1679.84,OLSI - Burgess Bar,Bar Provisions,61905
http://statistics.data.gov.uk/id/local-authority/12UE,Huntingdonshire District Council,200471.00,LACONS LACONS,23998,19/09/2019,806472,OL ST IVES,17/10/2019,265.18,1325.91,1591.09,OLSI - Burgess Bar,Bar Provisions,61905
http://statistics.data.gov.uk/id/local-authority/12UE,Huntingdonshire District Council,200583.00,OAKHAM ALES OAKHAM ALES,24256,11/10/2019,I219676,OL ST IVES,24/10/2019,261.36,1306.8,1568.16,OLSI - Burgess Bar,Bar Provisions,61905
http://statistics.data.gov.uk/id/local-authority/12UE,Huntingdonshire District Council,200583.00,OAKHAM ALES OAKHAM ALES,27055,06/12/2019,I222963,BURGESS HALL,12/12/2019,209.16,1045.82,1254.98,OLSI - Burgess Bar,Bar Provisions,61905
http://statistics.data.gov.uk/id/local-authority/12UE,Huntingdonshire District Council,200113.00,BOOKER CASH AND CARRY BOOKER CASH AND CARRY,23201,18/09/2019,2108964985,OLSI DRINKS,10/10/2019,135,674.99,809.99,OLSI - Burgess Bar,Bar Provisions,61905
http://statistics.data.gov.uk/id/local-authority/12UE,Huntingdonshire District Council,200113.00,BOOKER CASH AND CARRY BOOKER CASH AND CARRY,22772,11/09/2019,2108914990,OL ST IVES,10/10/2019,81.38,406.88,488.26,OLSI - Burgess Bar,Bar Provisions,61905
http://statistics.data.gov.uk/id/local-authority/12UE,Huntingdonshire District Council,200113.00,BOOKER CASH AND CARRY BOOKER CASH AND CARRY,24920,25/09/2019,2109021799,OL ST IVES,31/10/2019,54.97,274.87,329.84,OLSI - Burgess Bar,Bar Provisions,61905
http://statistics.data.gov.uk/id/local-authority/12UE,Huntingdonshire District Council,200113.00,BOOKER CASH AND CARRY BOOKER CASH AND CARRY,26283,09/10/2019,2109135745,OL ST IVES,28/11/2019,22.72,113.62,136.34,OLSI - Burgess Bar,Bar Provisions,61905
http://statistics.data.gov.uk/id/local-authority/12UE,Huntingdonshire District Council,200113.00,BOOKER CASH AND CARRY BOOKER CASH AND CARRY,27073,30/10/2019,2109304855,OL ST IVES,12/12/2019,8.09,40.47,48.56,OLSI - Burgess Bar,Bar Provisions,61905
http://statistics.data.gov.uk/id/local-authority/12UE,Huntingdonshire District Council,200113.00,BOOKER CASH AND CARRY BOOKER CASH AND CARRY,24566,16/10/2019,2109191203,OL ST IVES,08/11/2019,27.31,136.57,163.88,OLSI - Burgess Bar,Bar Provisions,61905
http://statistics.data.gov.uk/id/local-authority/12UE,Huntingdonshire District Council,200845.00,WESTMINSTER FOODSERVICE WESTMINSTER FOODSERVICE,24836,24/10/2019,1114,OL ST IVES,21/11/2019,37.47,187.34,224.81,OLSI - Hospitality,Bar Provisions,61905
http://statistics.data.gov.uk/id/local-authority/12UE,Huntingdonshire District Council,200726.00,SNACKLINE DIRECT LTD SNACKLINE DIRECT LTD,26968,25/11/2019,112509,OL ST IVES,19/12/2019,24.78,123.92,148.7,OLSI - Hospitality,Bar Provisions,61905
http://statistics.data.gov.uk/id/local-authority/12UE,Huntingdonshire District Council,200845.00,WESTMINSTER FOODSERVICE WESTMINSTER FOODSERVICE,22669,05/09/2019,337939,OL ST IVES,03/10/2019,28.97,144.84,173.81,OLSI - Hospitality,Bar Provisions,61905
http://statistics.data.gov.uk/id/local-authority/12UE,Huntingdonshire District Council,200845.00,WESTMINSTER FOODSERVICE WESTMINSTER FOODSERVICE,25988,14/11/2019,2095,OL ST IVES,12/12/2019,22.98,114.92,137.9,OLSI - Hospitality,Bar Provisions,61905
http://statistics.data.gov.uk/id/local-authority/12UE,Huntingdonshire District Council,200845.00,WESTMINSTER FOODSERVICE WESTMINSTER FOODSERVICE,24748,19/09/2019,338636,OL ST IVES,31/10/2019,34.82,174.08,208.9,OLSI - Hospitality,Bar Provisions,61905
http://statistics.data.gov.uk/id/local-authority/12UE,Huntingdonshire District Council,200845.00,WESTMINSTER FOODSERVICE WESTMINSTER FOODSERVICE,26484,21/11/2019,2431,OL ST IVES,19/12/2019,26.18,130.9,157.08,OLSI - Hospitality,Bar Provisions,61905
http://statistics.data.gov.uk/id/local-authority/12UE,Huntingdonshire District Council,200845.00,WESTMINSTER FOODSERVICE WESTMINSTER FOODSERVICE,24534,10/10/2019,510,OL ST IVES,08/11/2019,25.77,128.86,154.63,OLSI - Hospitality,Bar Provisions,61905
http://statistics.data.gov.uk/id/local-authority/12UE,Huntingdonshire District Council,200726.00,SNACKLINE DIRECT LTD SNACKLINE DIRECT LTD,24542,07/10/2019,110780,OL ST IVES,31/10/2019,12.39,61.96,74.35,OLSI - Hospitality,Bar Provisions,61905
http://statistics.data.gov.uk/id/local-authority/12UE,Huntingdonshire District Council,200734.00,SOUTH LINCS FOOD SERVICE SOUTH LINCS FOOD SERVICE,24204,01/10/2019,376813,OL ST IVES,24/10/2019,1.37,6.84,8.21,OLSI - Hospitality,Bar Provisions,61905
http://statistics.data.gov.uk/id/local-authority/12UE,Huntingdonshire District Council,200845.00,WESTMINSTER FOODSERVICE WESTMINSTER FOODSERVICE,25666,07/11/2019,1752,OL ST IVES,05/12/2019,18.73,93.67,112.4,OLSI - Hospitality,Bar Provisions,61905
http://statistics.data.gov.uk/id/local-authority/12UE,Huntingdonshire District Council,200734.00,SOUTH LINCS FOOD SERVICE SOUTH LINCS FOOD SERVICE,24533,08/10/2019,379556,OL ST IVES,31/10/2019,0.56,2.8,3.36,OLSI - Hospitality,Bar Provisions,61905
http://statistics.data.gov.uk/id/local-authority/12UE,Huntingdonshire District Council,200734.00,SOUTH LINCS FOOD SERVICE SOUTH LINCS FOOD SERVICE,24835,22/10/2019,384866,OL ST IVES,13/11/2019,4.12,20.62,24.74,OLSI - Hospitality,Bar Provisions,61905
http://statistics.data.gov.uk/id/local-authority/12UE,Huntingdonshire District Council,200726.00,SNACKLINE DIRECT LTD SNACKLINE DIRECT LTD,25982,11/11/2019,111995,OL ST IVES,05/12/2019,12.99,64.96,77.95,OLSI - Hospitality,Bar Provisions,61905
http://statistics.data.gov.uk/id/local-authority/12UE,Huntingdonshire District Council,200726.00,SNACKLINE DIRECT LTD SNACKLINE DIRECT LTD,24822,21/10/2019,111290,OL ST IVES,13/11/2019,15.79,78.95,94.74,OLSI - Hospitality,Bar Provisions,61905
http://statistics.data.gov.uk/id/local-authority/12UE,Huntingdonshire District Council,200471.00,LACONS LACONS,23274,20/09/2019,806880,olsi alcohol,17/10/2019,119.57,597.87,717.44,OLSIO - Hospitality,Bar Provisions,61905
http://statistics.data.gov.uk/id/local-authority/12UE,Huntingdonshire District Council,200471.00,LACONS LACONS,23999,27/09/2019,807766,OL ST IVES,24/10/2019,100.15,500.77,600.92,OLSIO - Hospitality,Bar Provisions,61905
http://statistics.data.gov.uk/id/local-authority/12UE,Huntingdonshire District Council,200471.00,LACONS LACONS,25064,25/10/2019,811881,OL ST IVES,21/11/2019,89.66,448.28,537.94,OLSIO - Hospitality,Bar Provisions,61905
http://statistics.data.gov.uk/id/local-authority/12UE,Huntingdonshire District Council,200471.00,LACONS LACONS,26220,15/11/2019,814892,OL ST IVES,12/12/2019,85.85,429.26,515.11,OLSIO - Hospitality,Bar Provisions,61905
http://statistics.data.gov.uk/id/local-authority/12UE,Huntingdonshire District Council,200471.00,LACONS LACONS,26926,29/11/2019,816954,OL ST IVES,19/12/2019,77.12,385.58,462.7,OLSIO - Hospitality,Bar Provisions,61905
http://statistics.data.gov.uk/id/local-authority/12UE,Huntingdonshire District Council,200471.00,LACONS LACONS,25449,01/11/2019,812897,OL ST IVES,28/11/2019,66.46,332.31,398.77,OLSIO - Hospitality,Bar Provisions,61905
http://statistics.data.gov.uk/id/local-authority/12UE,Huntingdonshire District Council,200471.00,LACONS LACONS,26494,22/11/2019,815964,OL ST IVES,19/12/2019,63.16,315.8,378.96,OLSIO - Hospitality,Bar Provisions,61905
http://statistics.data.gov.uk/id/local-authority/12UE,Huntingdonshire District Council,200471.00,LACONS LACONS,24735,11/10/2019,809902,OL ST IVES,08/11/2019,53.1,265.52,318.62,OLSIO - Hospitality,Bar Provisions,61905
http://statistics.data.gov.uk/id/local-authority/12UE,Huntingdonshire District Council,200471.00,LACONS LACONS,24308,04/10/2019,808803,OL ST IVES,31/10/2019,50.16,250.79,300.95,OLSIO - Hospitality,Bar Provisions,61905
http://statistics.data.gov.uk/id/local-authority/12UE,Huntingdonshire District Council,200490.01,LEXISNEXIS,25609,09/10/2019,DI302739U,LOCAL GOVERNMENT 2019-20,13/11/2019,301.5,1507.49,1808.99,Electoral Registration,"Books, Publications And Resources",62003
http://statistics.data.gov.uk/id/local-authority/12UE,Huntingdonshire District Council,200770.00,TELEFONICA UK LTD TELEFONICA UK LTD,24867,01/10/2019,42661602,BROADBAND LINE RENTAL,31/10/2019,77.99,389.94,467.93,City Recoverable,Broadband Line Rental,64080
http://statistics.data.gov.uk/id/local-authority/12UE,Huntingdonshire District Council,200770.00,TELEFONICA UK LTD TELEFONICA UK LTD,24868,01/09/2019,40318821,BROADBAND LINE RENTAL,31/10/2019,77.99,389.94,467.93,City Recoverable,Broadband Line Rental,64080
http://statistics.data.gov.uk/id/local-authority/12UE,Huntingdonshire District Council,200825.00,VIRGIN MEDIA BUSINESS VIRGIN MEDIA BUSINESS,24858,01/10/2019,930635-072A,BROADBAND LINE RENTAL,31/10/2019,1392.77,6963.83,8356.6,CCC Recharge Invoices,Broadband Line Rental,64080
http://statistics.data.gov.uk/id/local-authority/12UE,Huntingdonshire District Council,200825.00,VIRGIN MEDIA BUSINESS VIRGIN MEDIA BUSINESS,26168,01/11/2019,930635-073A,BROADBAND LINE RENTAL,28/11/2019,1367.58,6837.92,8205.5,CCC Recharge Invoices,Broadband Line Rental,64080
http://statistics.data.gov.uk/id/local-authority/12UE,Huntingdonshire District Council,200825.00,VIRGIN MEDIA BUSINESS VIRGIN MEDIA BUSINESS,27338,01/12/2019,930635-074A,BROADBAND LINE RENTAL,19/12/2019,1353.74,6768.72,8122.46,CCC Recharge Invoices,Broadband Line Rental,64080
http://statistics.data.gov.uk/id/local-authority/12UE,Huntingdonshire District Council,200951.00,ENTANET INTERNATIONAL LTD,27404,01/11/2019,IN0015273,BROADBAND LINE RENTAL,19/12/2019,180,900,1080,CCC Recharge Invoices,Broadband Line Rental,64080
http://statistics.data.gov.uk/id/local-authority/12UE,Huntingdonshire District Council,200951.00,ENTANET INTERNATIONAL LTD,27428,01/10/2019,IN0013920,BROADBAND LINE RENTAL,19/12/2019,180,900,1080,CCC Recharge Invoices,Broadband Line Rental,64080
http://statistics.data.gov.uk/id/local-authority/12UE,Huntingdonshire District Council,200951.00,ENTANET INTERNATIONAL LTD,27429,01/09/2019,IN0011176,BROADBAND LINE RENTAL,19/12/2019,180,900,1080,CCC Recharge Invoices,Broadband Line Rental,64080
http://statistics.data.gov.uk/id/local-authority/12UE,Huntingdonshire District Council,200951.00,ENTANET INTERNATIONAL LTD,27430,01/08/2019,IN0009754,BROADBAND LINE RENTAL,19/12/2019,180,900,1080,CCC Recharge Invoices,Broadband Line Rental,64080
http://statistics.data.gov.uk/id/local-authority/12UE,Huntingdonshire District Council,200951.00,ENTANET INTERNATIONAL LTD,27431,01/07/2019,IN0008653,BROADBAND LINE RENTAL,19/12/2019,180,900,1080,CCC Recharge Invoices,Broadband Line Rental,64080
http://statistics.data.gov.uk/id/local-authority/12UE,Huntingdonshire District Council,200951.00,ENTANET INTERNATIONAL LTD,27543,01/12/2019,IN0017972,BROADBAND LINE RENTAL,19/12/2019,180,900,1080,CCC Recharge Invoices,Broadband Line Rental,64080
http://statistics.data.gov.uk/id/local-authority/12UE,Huntingdonshire District Council,200770.00,TELEFONICA UK LTD TELEFONICA UK LTD,24867,01/10/2019,42661602,BROADBAND LINE RENTAL,31/10/2019,19.4,97,116.4,CCC Recharge Invoices,Broadband Line Rental,64080
http://statistics.data.gov.uk/id/local-authority/12UE,Huntingdonshire District Council,200770.00,TELEFONICA UK LTD TELEFONICA UK LTD,24868,01/09/2019,40318821,BROADBAND LINE RENTAL,31/10/2019,19.4,97,116.4,CCC Recharge Invoices,Broadband Line Rental,64080
http://statistics.data.gov.uk/id/local-authority/12UE,Huntingdonshire District Council,200825.00,VIRGIN MEDIA BUSINESS VIRGIN MEDIA BUSINESS,24859,01/10/2019,923186-097A,BROADBAND LINE RENTAL,31/10/2019,224.48,1122.41,1346.89,SCDC Recharge Invoices,Broadband Line Rental,64080
http://statistics.data.gov.uk/id/local-authority/12UE,Huntingdonshire District Council,200825.00,VIRGIN MEDIA BUSINESS VIRGIN MEDIA BUSINESS,26166,01/11/2019,923186-098A,BROADBAND LINE RENTAL,28/11/2019,155.58,777.88,933.46,SCDC Recharge Invoices,Broadband Line Rental,64080
http://statistics.data.gov.uk/id/local-authority/12UE,Huntingdonshire District Council,200825.00,VIRGIN MEDIA BUSINESS VIRGIN MEDIA BUSINESS,27340,01/12/2019,923186-099A,BROADBAND LINE RENTAL,19/12/2019,155.16,775.79,930.95,SCDC Recharge Invoices,Broadband Line Rental,64080
http://statistics.data.gov.uk/id/local-authority/12UE,Huntingdonshire District Council,200825.00,VIRGIN MEDIA BUSINESS VIRGIN MEDIA BUSINESS,25380,01/06/2019,923469-104A,BROADBAND LINE RENTAL,08/11/2019,1877.55,9387.76,11265.31,HDC Recharge Invoices,Broadband Line Rental,64080
http://statistics.data.gov.uk/id/local-authority/12UE,Huntingdonshire District Council,200825.00,VIRGIN MEDIA BUSINESS VIRGIN MEDIA BUSINESS,24155,04/07/2019,242095-150,BROADBAND LINE RENTAL,18/10/2019,1785.35,8926.75,10712.1,HDC Recharge Invoices,Broadband Line Rental,64080
http://statistics.data.gov.uk/id/local-authority/12UE,Huntingdonshire District Council,200825.00,VIRGIN MEDIA BUSINESS VIRGIN MEDIA BUSINESS,24857,01/10/2019,923469-109A,BROADBAND LINE RENTAL,31/10/2019,1247.28,6236.41,7483.69,HDC Recharge Invoices,Broadband Line Rental,64080
http://statistics.data.gov.uk/id/local-authority/12UE,Huntingdonshire District Council,200825.00,VIRGIN MEDIA BUSINESS VIRGIN MEDIA BUSINESS,25381,01/07/2019,923469-105A,BROADBAND LINE RENTAL,08/11/2019,1247.28,6236.41,7483.69,HDC Recharge Invoices,Broadband Line Rental,64080
http://statistics.data.gov.uk/id/local-authority/12UE,Huntingdonshire District Council,200825.00,VIRGIN MEDIA BUSINESS VIRGIN MEDIA BUSINESS,26167,01/11/2019,923469-110A,BROADBAND LINE RENTAL,28/11/2019,1247.28,6236.41,7483.69,HDC Recharge Invoices,Broadband Line Rental,64080
http://statistics.data.gov.uk/id/local-authority/12UE,Huntingdonshire District Council,200825.00,VIRGIN MEDIA BUSINESS VIRGIN MEDIA BUSINESS,27339,01/12/2019,923469-111A,BROADBAND LINE RENTAL,19/12/2019,1241.37,6206.83,7448.2,HDC Recharge Invoices,Broadband Line Rental,64080
http://statistics.data.gov.uk/id/local-authority/12UE,Huntingdonshire District Council,200824.00,VIRGIN MEDIA VIRGIN MEDIA,25378,01/01/2017,923469-075A,BROADBAND LINE RENTAL,08/11/2019,1224.3,6121.5,7345.8,HDC Recharge Invoices,Broadband Line Rental,64080
http://statistics.data.gov.uk/id/local-authority/12UE,Huntingdonshire District Council,200824.00,VIRGIN MEDIA VIRGIN MEDIA,25377,06/11/2014,923469-001,BROADBAND LINE RENTAL,08/11/2019,66.23,331.16,397.39,HDC Recharge Invoices,Broadband Line Rental,64080
http://statistics.data.gov.uk/id/local-authority/12UE,Huntingdonshire District Council,200825.00,VIRGIN MEDIA BUSINESS VIRGIN MEDIA BUSINESS,25382,01/05/2019,923469103A,RENTAL CHARGES,08/11/2019,-2959.35,-14796.73,-17756.08,HDC Recharge Invoices,Broadband Line Rental,64080
http://statistics.data.gov.uk/id/local-authority/12UE,Huntingdonshire District Council,200147.00,CALE ACCESS UK LTD CALE ACCESS UK LTD,24229,27/09/2019,UK121479,CALE MACHINE UPGRADE,24/10/2019,19537,97685,117222,Parking Strategy,Cark Park Machines,61707
http://statistics.data.gov.uk/id/local-authority/12UE,Huntingdonshire District Council,200147.00,CALE ACCESS UK LTD CALE ACCESS UK LTD,24229,27/09/2019,UK121479,CALE MACHINE UPGRADE,24/10/2019,588,2940,3528,Parking Strategy,Cark Park Machines,61707
http://statistics.data.gov.uk/id/local-authority/12UE,Huntingdonshire District Council,200147.00,CALE ACCESS UK LTD CALE ACCESS UK LTD,24229,27/09/2019,UK121479,CALE MACHINE UPGRADE,24/10/2019,875,4375,5250,Parking Strategy,Cark Park Machines,61707
http://statistics.data.gov.uk/id/local-authority/12UE,Huntingdonshire District Council,201912.00,FLOWBIRD SMART CITY UK LTD,27443,29/11/2019,UK123477,CALE MACHINE UPGRADE,19/12/2019,700,3500,4200,Parking Strategy,Cark Park Machines,61707
http://statistics.data.gov.uk/id/local-authority/12UE,Huntingdonshire District Council,201912.00,FLOWBIRD SMART CITY UK LTD,27443,29/11/2019,UK123477,CALE MACHINE UPGRADE,19/12/2019,15629.6,78148,93777.6,Parking Strategy,Cark Park Machines,61707
http://statistics.data.gov.uk/id/local-authority/12UE,Huntingdonshire District Council,201912.00,FLOWBIRD SMART CITY UK LTD,24225,25/09/2019,UK121357,BATTERIES,24/10/2019,140,700,840,Car Park Management,Cark Park Machines,61707
http://statistics.data.gov.uk/id/local-authority/12UE,Huntingdonshire District Council,201912.00,FLOWBIRD SMART CITY UK LTD,24225,25/09/2019,UK121357,BATTERIES,24/10/2019,0,0,0,Car Park Management,Cark Park Machines,61707
http://statistics.data.gov.uk/id/local-authority/12UE,Huntingdonshire District Council,201912.00,FLOWBIRD SMART CITY UK LTD,24225,25/09/2019,UK121357,BATTERIES,24/10/2019,0,0,0,Car Park Management,Cark Park Machines,61707
http://statistics.data.gov.uk/id/local-authority/12UE,Huntingdonshire District Council,201912.00,FLOWBIRD SMART CITY UK LTD,24225,25/09/2019,UK121357,BATTERIES,24/10/2019,72,360,432,Car Park Management,Cark Park Machines,61707
http://statistics.data.gov.uk/id/local-authority/12UE,Huntingdonshire District Council,201912.00,FLOWBIRD SMART CITY UK LTD,24225,25/09/2019,UK121357,BATTERIES,24/10/2019,0,0,0,Car Park Management,Cark Park Machines,61707
http://statistics.data.gov.uk/id/local-authority/12UE,Huntingdonshire District Council,201912.00,FLOWBIRD SMART CITY UK LTD,24225,25/09/2019,UK121357,BATTERIES,24/10/2019,0,0,0,Car Park Management,Cark Park Machines,61707
http://statistics.data.gov.uk/id/local-authority/12UE,Huntingdonshire District Council,201912.00,FLOWBIRD SMART CITY UK LTD,24225,25/09/2019,UK121357,BATTERIES,24/10/2019,525.6,2628,3153.6,Car Park Management,Cark Park Machines,61707
http://statistics.data.gov.uk/id/local-authority/12UE,Huntingdonshire District Council,201912.00,FLOWBIRD SMART CITY UK LTD,24225,25/09/2019,UK121357,BATTERIES,24/10/2019,0,0,0,Car Park Management,Cark Park Machines,61707
http://statistics.data.gov.uk/id/local-authority/12UE,Huntingdonshire District Council,201912.00,FLOWBIRD SMART CITY UK LTD,24225,25/09/2019,UK121357,BATTERIES,24/10/2019,0,0,0,Car Park Management,Cark Park Machines,61707
http://statistics.data.gov.uk/id/local-authority/12UE,Huntingdonshire District Council,201912.00,FLOWBIRD SMART CITY UK LTD,24225,25/09/2019,UK121357,BATTERIES,24/10/2019,43.2,216,259.2,Car Park Management,Cark Park Machines,61707
http://statistics.data.gov.uk/id/local-authority/12UE,Huntingdonshire District Council,201912.00,FLOWBIRD SMART CITY UK LTD,24225,25/09/2019,UK121357,BATTERIES,24/10/2019,14,70,84,Car Park Management,Cark Park Machines,61707
http://statistics.data.gov.uk/id/local-authority/12UE,Huntingdonshire District Council,201912.00,FLOWBIRD SMART CITY UK LTD,24225,25/09/2019,UK121357,BATTERIES,24/10/2019,14,70,84,Car Park Management,Cark Park Machines,61707
http://statistics.data.gov.uk/id/local-authority/12UE,Huntingdonshire District Council,201581.00,REDACTED,11954,19/02/2019,PRF190219,REFUND,17/10/2019,0,277.62,277.62,Rent Deposit- Advanced Rent,Cash Advance Repaid,13009
http://statistics.data.gov.uk/id/local-authority/12UE,Huntingdonshire District Council,201996.00,Housden Outside Caterers,23953,10/09/2019,11412,BURGESS HALL,17/10/2019,647.5,3237.5,3885,OLSI - Burgess Bar,Catering Services,61902
http://statistics.data.gov.uk/id/local-authority/12UE,Huntingdonshire District Council,201410.00,ABBOTS EVENTS CATERING LTD,23435,20/09/2019,SI-2466,OLSIFOOD,03/10/2019,562.5,2812.5,3375,OLSI - Burgess Bar,Catering Services,61902
http://statistics.data.gov.uk/id/local-authority/12UE,Huntingdonshire District Council,201410.00,ABBOTS EVENTS CATERING LTD,23438,20/09/2019,SI-2465,OLSI FOOD,03/10/2019,562.5,2812.5,3375,OLSI - Burgess Bar,Catering Services,61902
http://statistics.data.gov.uk/id/local-authority/12UE,Huntingdonshire District Council,201410.00,ABBOTS EVENTS CATERING LTD,27468,16/12/2019,SI-2676,BURGESS HALL,19/12/2019,315,1575,1890,OLSI - Burgess Bar,Catering Services,61902
http://statistics.data.gov.uk/id/local-authority/12UE,Huntingdonshire District Council,201410.00,ABBOTS EVENTS CATERING LTD,27149,09/12/2019,SI-2661,BURGESS HALL,12/12/2019,273.75,1368.75,1642.5,OLSI - Burgess Bar,Catering Services,61902
http://statistics.data.gov.uk/id/local-authority/12UE,Huntingdonshire District Council,200130.00,BROOKES BROOKES,24046,27/09/2019,0102128,CATERING SEPT 2019,17/10/2019,0,365.9,365.9,Pathfinder House,Catering Services,61902
